﻿"organisation_name","service_responsible","supplier_name","supplier_code","payment_date","transaction_ref","net_amount_by_line_item","irrecoverable_vat","purpose_of_spend","procurement_category_name","transaction_type","payment_type","card_transaction","invoice_date","financial_year","financial_period","supplier_invoice_reference","cost_centre_code","cost_centre_desc","account_code","account_desc"
"GUILDFORD BOROUGH COUNCIL","Crematorium","Scribes Plus Ltd","204670","20/07/2021",30018966,513.1,0,"Stock For Re-Sale","Stationery And Office Products Suppliers","II","BACS","None",2021-03-23 00:00:00,"2021","04","10653","A1500","Crematorium","D2004","Stock For Re-Sale"
"GUILDFORD BOROUGH COUNCIL","Executive - Miscellaneous","Pinsent Masons LLP","992900","13/07/2021",30020388,4006,0,"Consultants Fees","Other Legal Service Providers","II","BACS","None",2021-03-31 00:00:00,"2021","04","6597371","P79100","Wuv - Allotment Relocation","1221","Consultants Fees"
"GUILDFORD BOROUGH COUNCIL","Street Cleansing","Spaldings (UK) Ltd","761300","27/07/2021",30021332,35.2,0,"Equipment","Farming And Agricultural Equipment Suppliers","II","BACS","None",2021-04-16 00:00:00,"2021","04","SI-2668523","K4551","Street Cleansing","D2001","Equipment"
"GUILDFORD BOROUGH COUNCIL","Street Cleansing","Spaldings (UK) Ltd","761300","27/07/2021",30021332,8.8,0,"Equipment","Farming And Agricultural Equipment Suppliers","II","BACS","None",2021-04-16 00:00:00,"2021","04","SI-2668523","K4551","Street Cleansing","D2001","Equipment"
"GUILDFORD BOROUGH COUNCIL","Street Cleansing","Spaldings (UK) Ltd","761300","27/07/2021",30021332,83.4,0,"Equipment","Farming And Agricultural Equipment Suppliers","II","BACS","None",2021-04-16 00:00:00,"2021","04","SI-2668523","K4551","Street Cleansing","D2001","Equipment"
"GUILDFORD BOROUGH COUNCIL","Street Cleansing","Spaldings (UK) Ltd","761300","27/07/2021",30021332,52.45,0,"Equipment","Farming And Agricultural Equipment Suppliers","II","BACS","None",2021-04-16 00:00:00,"2021","04","SI-2668523","K4551","Street Cleansing","D2001","Equipment"
"GUILDFORD BOROUGH COUNCIL","Development Control","Francis Taylor Building","972970","06/07/2021",30022250,1800,0,"Consultancy","","II","BACS","None",2021-04-23 00:00:00,"2021","04","86593/230421","D5100","Development Control - Fee Earn","D6001","Consultancy"
"GUILDFORD BOROUGH COUNCIL","Other Short Term Creditors","Response Technical Services Ltd [RTS]","1000171","08/07/2021",30022702,500,0,"Current Years Expenditure","","II","BACS","None",2021-02-10 00:00:00,"2021","04","25468","L02158","Weir Costs","2239","Current Years Expenditure"
"GUILDFORD BOROUGH COUNCIL","Other Short Term Creditors","Response Technical Services Ltd [RTS]","1000171","08/07/2021",30022702,100,0,"Current Years Expenditure","","II","BACS","None",2021-02-10 00:00:00,"2021","04","25468","L02158","Weir Costs","2239","Current Years Expenditure"
"GUILDFORD BOROUGH COUNCIL","Building Control","Hays Specialist Recruitment Limited","156250","06/07/2021",30022827,2532.9,0,"Consultancy","Other Recruitment Agencies And Service Providers","II","BACS","None",2021-05-07 00:00:00,"2021","04","1011276936","D5700","Building Control - Fee","D6001","Consultancy"
"GUILDFORD BOROUGH COUNCIL","Government Short Term Debtors","Royal Mail Group Ltd (Chesterfield)","878030","03/08/2021",30022984,1189.83,0,"Postal Voting Costs","","II","BACS","None",2021-04-27 00:00:00,"2021","04","9062854998","J01194","Elections - PCC","2447","Postal Voting Costs"
"GUILDFORD BOROUGH COUNCIL","Government Short Term Debtors","Royal Mail Group Ltd (Chesterfield)","878030","03/08/2021",30022984,1189.83,0,"Postal Voting Costs","","II","BACS","None",2021-04-27 00:00:00,"2021","04","9062854998","J01195","Elections - SCC","2447","Postal Voting Costs"
"GUILDFORD BOROUGH COUNCIL","Elections","Royal Mail Group Ltd (Chesterfield)","878030","03/08/2021",30022984,751.47,0,"Postage","","II","BACS","None",2021-04-27 00:00:00,"2021","04","9062854998","F2151","Elections","D5003","Postage"
"GUILDFORD BOROUGH COUNCIL","Elections","Royal Mail Group Ltd (Chesterfield)","878030","20/07/2021",30022992,1421.05,0,"Postage","","II","BACS","None",2021-05-04 00:00:00,"2021","04","9062893554","F2151","Elections","D5003","Postage"
"GUILDFORD BOROUGH COUNCIL","Government Short Term Debtors","Royal Mail Group Ltd (Chesterfield)","878030","20/07/2021",30022992,2250,0,"Postal Voting Costs","","II","BACS","None",2021-05-04 00:00:00,"2021","04","9062893554","J01195","Elections - SCC","2447","Postal Voting Costs"
"GUILDFORD BOROUGH COUNCIL","Government Short Term Debtors","Royal Mail Group Ltd (Chesterfield)","878030","20/07/2021",30022992,2250,0,"Postal Voting Costs","","II","BACS","None",2021-05-04 00:00:00,"2021","04","9062893554","J01194","Elections - PCC","2447","Postal Voting Costs"
"GUILDFORD BOROUGH COUNCIL","Electoral Registration","Royal Mail Group Ltd (Chesterfield)","878030","15/07/2021",30022996,145.48,0,"Postage","","II","BACS","None",2021-04-20 00:00:00,"2021","04","1109543298","F2511","Electoral Registration","D5003","Postage"
"GUILDFORD BOROUGH COUNCIL","Executive - Miscellaneous","Pinsent Masons LLP","992900","01/07/2021",30023301,57325,0,"Consultants Fees","Other Legal Service Providers","II","BACS","None",2021-04-30 00:00:00,"2021","04","6607164","P79100","Wuv - Allotment Relocation","1221","Consultants Fees"
"GUILDFORD BOROUGH COUNCIL","Government Short Term Debtors","Print For Business Ltd","673000","13/07/2021",30023447,999.6,0,"Postal Voting Costs","Printing Service Providers","II","BACS","None",2021-04-30 00:00:00,"2021","04","71460","J01195","Elections - SCC","2447","Postal Voting Costs"
"GUILDFORD BOROUGH COUNCIL","Government Short Term Debtors","Print For Business Ltd","673000","13/07/2021",30023447,617.7,0,"Polling Station Costs","Printing Service Providers","II","BACS","None",2021-04-30 00:00:00,"2021","04","71460","J01195","Elections - SCC","2445","Polling Station Costs"
"GUILDFORD BOROUGH COUNCIL","Government Short Term Debtors","Print For Business Ltd","673000","13/07/2021",30023447,617.7,0,"Debt Royalties/Commisions","Printing Service Providers","II","BACS","None",2021-04-30 00:00:00,"2021","04","71460","J01195","Elections - SCC","2445","Debt Royalties/Commisions"
"GUILDFORD BOROUGH COUNCIL","Government Short Term Debtors","Print For Business Ltd","673000","13/07/2021",30023447,617.7,0,"Debt Royalties/Commisions","Printing Service Providers","II","BACS","None",2021-04-30 00:00:00,"2021","04","71460","J01195","Elections - SCC","2445","Debt Royalties/Commisions"
"GUILDFORD BOROUGH COUNCIL","Government Short Term Debtors","Print For Business Ltd","673000","13/07/2021",30023447,1335.04,0,"Postal Voting Costs","Printing Service Providers","II","BACS","None",2021-04-30 00:00:00,"2021","04","71460","J01194","Elections - PCC","2447","Postal Voting Costs"
"GUILDFORD BOROUGH COUNCIL","Strategic Support","A.I.M. Removals & Deliveries","718130","06/07/2021",30023869,650,0,"Expenses","Removal Service Providers","II","BACS","None",2021-05-19 00:00:00,"2021","04","9485","M8121","Strategic Support (SHS)","D8004","Expenses"
"GUILDFORD BOROUGH COUNCIL","Countryside and Parks Services","A & P Services (Surrey) Ltd","320160","27/07/2021",30024340,680.89,0,"Repair And Maintenance Of Vehicles","Agricultural Engineers","II","BACS","None",2021-05-26 00:00:00,"2021","04","6780","A1100","Horticulture","C1002","Repair And Maintenance Of Vehicles"
"GUILDFORD BOROUGH COUNCIL","Parks Countryside Management","AVS Fencing Supplies Ltd","908500","13/07/2021",30024414,73.2,0,"Materials","Builders Merchants","II","BACS","None",2021-05-27 00:00:00,"2021","04","SINV-1039227","A1300","Trees And Countryside","D2003","Materials"
"GUILDFORD BOROUGH COUNCIL","Countryside and Parks Services","AVS Fencing Supplies Ltd","908500","13/07/2021",30024414,73.2,0,"Materials","Builders Merchants","II","BACS","None",2021-05-27 00:00:00,"2021","04","SINV-1039227","A1300","Trees And Countryside","D2003","Materials"
"GUILDFORD BOROUGH COUNCIL","Business Improvement","Softcat Limited","668140","13/07/2021",30024415,83622.5,0,"Services","It Support Service Providers","II","BACS","None",2021-05-27 00:00:00,"2021","04","INV02943117","G3531","Future Guildford","D6004","Services"
"GUILDFORD BOROUGH COUNCIL","Audit Management","Softcat Limited","668140","13/07/2021",30024415,83622.5,0,"Services","It Support Service Providers","II","BACS","None",2021-05-27 00:00:00,"2021","04","INV02943117","G3531","Future Guildford","D6004","Services"
"GUILDFORD BOROUGH COUNCIL","Lead Specialist - ICT","Softcat Limited","668140","08/07/2021",30024428,7505,0,"ICT Software","It Support Service Providers","II","BACS","None",2021-05-27 00:00:00,"2021","04","INV02944078","G3548","ICT Technical & Infrastructure","D7002","ICT Software"
"GUILDFORD BOROUGH COUNCIL","Resources Caseworker","RF Print Solutions Limited","815680","06/07/2021",30024745,95,0,"Printing, Photocopying And Reprographics External","Printing Service Providers","II","BACS","None",2021-06-03 00:00:00,"2021","04","2178","G4545","Reprographics","D5005","Printing, Photocopying And Reprographics External"
"GUILDFORD BOROUGH COUNCIL","Affordable Hsg - Site Prep Etc","Thames Water Utilities Ltd","171920","13/07/2021",30024958,49.8,0,"Legal Expenses","Mains Water Suppliers","II","BACS","None",2021-04-21 00:00:00,"2021","04","OSS211286873","N55035","17 Wharf Lane","1395","Legal Expenses"
"GUILDFORD BOROUGH COUNCIL","Community Safety","Applied Resilience Limited","822600","27/07/2021",30024992,700.42,0,"Consultancy","Other Business Service Providers","II","BACS","None",2019-11-01 00:00:00,"2021","04","GBC51","F5724","Safer Guildford Partnership","D6001","Consultancy"
"GUILDFORD BOROUGH COUNCIL","Refuse and Recycling","Straight Manufacturing Limited","770800","01/07/2021",30025104,784.08,0,"Equipment","Bins And Waste Container Suppliers","II","BACS","None",2021-06-08 00:00:00,"2021","04","0000055659","K3551","Refuse - Domestic","D2001","Equipment"
"GUILDFORD BOROUGH COUNCIL","Refuse and Recycling","Straight Manufacturing Limited","770800","01/07/2021",30025104,3920,0,"Equipment","Bins And Waste Container Suppliers","II","BACS","None",2021-06-08 00:00:00,"2021","04","0000055659","K3551","Refuse - Domestic","D2001","Equipment"
"GUILDFORD BOROUGH COUNCIL","Business Improvement","Rapid Office Systems Limited","706600","27/07/2021",30025290,7436,0,"Equipment","Interior Designers","II","BACS","None",2021-06-03 00:00:00,"2021","04","103775","G3531","Future Guildford","D2001","Equipment"
"GUILDFORD BOROUGH COUNCIL","Audit Management","Rapid Office Systems Limited","706600","27/07/2021",30025290,7436,0,"Equipment","Interior Designers","II","BACS","None",2021-06-03 00:00:00,"2021","04","103775","G3531","Future Guildford","D2001","Equipment"
"GUILDFORD BOROUGH COUNCIL","Countryside and Parks Services","Univar Solutions B.V.","803130","15/07/2021",30025370,106.02,0,"Materials","Other Chemical Suppliers","II","BACS","None",2021-06-07 00:00:00,"2021","04","92288691","A1250","Stoke Park","D2003","Materials"
"GUILDFORD BOROUGH COUNCIL","Countryside and Parks Services","Univar Solutions B.V.","803130","15/07/2021",30025370,29.5,0,"Postage","Other Chemical Suppliers","II","BACS","None",2021-06-07 00:00:00,"2021","04","92288691","A1250","Stoke Park","D5003","Postage"
"GUILDFORD BOROUGH COUNCIL","Corporate Services","Plainsong Consulting","869210","15/07/2021",30025395,6333.65,0,"Consultancy","Other Business And Management Consultants","II","BACS","None",2021-06-07 00:00:00,"2021","04","1-2021","F1111","Corporate Services","D6001","Consultancy"
"GUILDFORD BOROUGH COUNCIL","Lead Specialist - ICT","Nouveau Solutions Ltd","568970","06/07/2021",30025513,1000,0,"ICT Software","It Support Service Providers","II","BACS","None",2021-06-10 00:00:00,"2021","04","NSLI39665","G3548","ICT Technical & Infrastructure","D7002","ICT Software"
"GUILDFORD BOROUGH COUNCIL","Lead Specialist - ICT","Nouveau Solutions Ltd","568970","06/07/2021",30025513,300,0,"ICT Software","It Support Service Providers","II","BACS","None",2021-06-10 00:00:00,"2021","04","NSLI39665","G3548","ICT Technical & Infrastructure","D7002","ICT Software"
"GUILDFORD BOROUGH COUNCIL","Environment and Transport","Portsmouth City Council","1000240","01/07/2021",30025532,8016,0,"Consultants Fees","","II","BACS","None",2021-06-04 00:00:00,"2021","04","19130000","P59048","SALIX solar arrays Farnham Road carpark and Millmead House","1221","Consultants Fees"
"GUILDFORD BOROUGH COUNCIL","Guildford House","Picture Hanging Systems Ltd","1000397","20/07/2021",30025535,72.9,0,"Equipment","","II","BACS","None",2021-06-15 00:00:00,"2021","04","24855","A4511","Guildford House Administration","D2001","Equipment"
"GUILDFORD BOROUGH COUNCIL","Countryside and Parks Services","Margnor (Fasteners) Limited","312200","22/07/2021",30025543,71.61,0,"Materials","Other Fittings And Furnishings Suppliers","II","BACS","None",2021-06-15 00:00:00,"2021","04","SIN245183","A1100","Horticulture","D2003","Materials"
"GUILDFORD BOROUGH COUNCIL","Countryside and Parks Services","Lister Wilder Ltd","299800","27/07/2021",30025737,574,0,"Materials","Emergency And Other Specialist Vehicle Dealers","II","BACS","None",2021-03-31 00:00:00,"2021","04","506472","A1100","Horticulture","D2003","Materials"
"GUILDFORD BOROUGH COUNCIL","Countryside and Parks Services","Lister Wilder Ltd","299800","27/07/2021",30025737,346,0,"Materials","Emergency And Other Specialist Vehicle Dealers","II","BACS","None",2021-03-31 00:00:00,"2021","04","506472","A1100","Horticulture","D2003","Materials"
"GUILDFORD BOROUGH COUNCIL","Countryside and Parks Services","Lister Wilder Ltd","299800","27/07/2021",30025737,410,0,"Materials","Emergency And Other Specialist Vehicle Dealers","II","BACS","None",2021-03-31 00:00:00,"2021","04","506472","A1100","Horticulture","D2003","Materials"
"GUILDFORD BOROUGH COUNCIL","Countryside and Parks Services","Lister Wilder Ltd","299800","27/07/2021",30025737,59,0,"Materials","Emergency And Other Specialist Vehicle Dealers","II","BACS","None",2021-03-31 00:00:00,"2021","04","506472","A1100","Horticulture","D2003","Materials"
"GUILDFORD BOROUGH COUNCIL","Planning Policy","Print For Business Ltd","673000","15/07/2021",30025738,788.87,0,"Printing, Photocopying And Reprographics External","Printing Service Providers","II","BACS","None",2021-05-27 00:00:00,"2021","04","71621","D5301","Neigbourhood Plans","D5005","Printing, Photocopying And Reprographics External"
"GUILDFORD BOROUGH COUNCIL","Government Short Term Debtors","Print For Business Ltd","673000","15/07/2021",30025738,13747.96,0,"Poll Cards","Printing Service Providers","II","BACS","None",2021-05-27 00:00:00,"2021","04","71621","J01194","Elections - PCC","2278","Poll Cards"
"GUILDFORD BOROUGH COUNCIL","Elections","Print For Business Ltd","673000","15/07/2021",30025738,2450.27,0,"Printing, Photocopying And Reprographics External","Printing Service Providers","II","BACS","None",2021-05-27 00:00:00,"2021","04","71621","F2151","Elections","D5005","Printing, Photocopying And Reprographics External"
"GUILDFORD BOROUGH COUNCIL","Executive - Miscellaneous","The Oyster Partnership Ltd","814220","13/07/2021",30025743,2784,0,"Agency Staff","Other Recruitment Agencies And Service Providers","II","BACS","None",2021-06-09 00:00:00,"2021","04","1097131","P79100","Wuv - Allotment Relocation","1222","Agency Staff"
"GUILDFORD BOROUGH COUNCIL","Countryside and Parks Services","Machine Mart Limited","309200","13/07/2021",30025747,19.98,0,"Equipment","Builders Merchants","II","BACS","None",2021-06-16 00:00:00,"2021","04","1081282","A1000","Parks Contracts","D2001","Equipment"
"GUILDFORD BOROUGH COUNCIL","Countryside and Parks Services","Machine Mart Limited","309200","13/07/2021",30025747,23.98,0,"Equipment","Builders Merchants","II","BACS","None",2021-06-16 00:00:00,"2021","04","1081282","A1000","Parks Contracts","D2001","Equipment"
"GUILDFORD BOROUGH COUNCIL","Countryside and Parks Services","Machine Mart Limited","309200","13/07/2021",30025747,0.58,0,"Equipment","Builders Merchants","II","BACS","None",2021-06-16 00:00:00,"2021","04","1081282","A1000","Parks Contracts","D2001","Equipment"
"GUILDFORD BOROUGH COUNCIL","Countryside and Parks Services","Machine Mart Limited","309200","13/07/2021",30025747,8.99,0,"Equipment","Builders Merchants","II","BACS","None",2021-06-16 00:00:00,"2021","04","1081282","A1000","Parks Contracts","D2001","Equipment"
"GUILDFORD BOROUGH COUNCIL","Countryside and Parks Services","Machine Mart Limited","309200","13/07/2021",30025747,9.98,0,"Equipment","Builders Merchants","II","BACS","None",2021-06-16 00:00:00,"2021","04","1081282","A1000","Parks Contracts","D2001","Equipment"
"GUILDFORD BOROUGH COUNCIL","Countryside and Parks Services","Machine Mart Limited","309200","13/07/2021",30025747,36.66,0,"Equipment","Builders Merchants","II","BACS","None",2021-06-16 00:00:00,"2021","04","1081282","A1000","Parks Contracts","D2001","Equipment"
"GUILDFORD BOROUGH COUNCIL","Countryside and Parks Services","Machine Mart Limited","309200","13/07/2021",30025747,32.99,0,"Equipment","Builders Merchants","II","BACS","None",2021-06-16 00:00:00,"2021","04","1081282","A1000","Parks Contracts","D2001","Equipment"
"GUILDFORD BOROUGH COUNCIL","Countryside and Parks Services","Machine Mart Limited","309200","13/07/2021",30025747,47.96,0,"Equipment","Builders Merchants","II","BACS","None",2021-06-16 00:00:00,"2021","04","1081282","A1000","Parks Contracts","D2001","Equipment"
"GUILDFORD BOROUGH COUNCIL","Countryside and Parks Services","Machine Mart Limited","309200","13/07/2021",30025747,25.98,0,"Equipment","Builders Merchants","II","BACS","None",2021-06-16 00:00:00,"2021","04","1081282","A1000","Parks Contracts","D2001","Equipment"
"GUILDFORD BOROUGH COUNCIL","Countryside and Parks Services","Machine Mart Limited","309200","13/07/2021",30025747,15.98,0,"Equipment","Builders Merchants","II","BACS","None",2021-06-16 00:00:00,"2021","04","1081282","A1000","Parks Contracts","D2001","Equipment"
"GUILDFORD BOROUGH COUNCIL","Countryside and Parks Services","Machine Mart Limited","309200","13/07/2021",30025747,25.98,0,"Equipment","Builders Merchants","II","BACS","None",2021-06-16 00:00:00,"2021","04","1081282","A1000","Parks Contracts","D2001","Equipment"
"GUILDFORD BOROUGH COUNCIL","Countryside and Parks Services","Machine Mart Limited","309200","13/07/2021",30025747,2.99,0,"Equipment","Builders Merchants","II","BACS","None",2021-06-16 00:00:00,"2021","04","1081282","A1000","Parks Contracts","D2001","Equipment"
"GUILDFORD BOROUGH COUNCIL","Countryside and Parks Services","Machine Mart Limited","309200","13/07/2021",30025747,5.99,0,"Equipment","Builders Merchants","II","BACS","None",2021-06-16 00:00:00,"2021","04","1081282","A1000","Parks Contracts","D2001","Equipment"
"GUILDFORD BOROUGH COUNCIL","Countryside and Parks Services","Machine Mart Limited","309200","13/07/2021",30025747,24.99,0,"Equipment","Builders Merchants","II","BACS","None",2021-06-16 00:00:00,"2021","04","1081282","A1000","Parks Contracts","D2001","Equipment"
"GUILDFORD BOROUGH COUNCIL","Countryside and Parks Services","Machine Mart Limited","309200","13/07/2021",30025747,10.99,0,"Equipment","Builders Merchants","II","BACS","None",2021-06-16 00:00:00,"2021","04","1081282","A1000","Parks Contracts","D2001","Equipment"
"GUILDFORD BOROUGH COUNCIL","Off Street Parking","Castle Water Limited","896380","08/07/2021",30025748,6.55,0,"Utilities","Mains Water Suppliers","II","BACS","None",2021-06-02 00:00:00,"2021","04","0005583144","B2225","Connaught House Car Park","B2001","Utilities"
"GUILDFORD BOROUGH COUNCIL","Off Street Parking","Castle Water Limited","896380","08/07/2021",30025748,13.09,0,"Utilities","Mains Water Suppliers","II","BACS","None",2021-06-02 00:00:00,"2021","04","0005583144","B2228","Bright Hill Car Park","B2001","Utilities"
"GUILDFORD BOROUGH COUNCIL","Off Street Parking","Castle Water Limited","896380","08/07/2021",30025748,6.55,0,"Utilities","Mains Water Suppliers","II","BACS","None",2021-06-02 00:00:00,"2021","04","0005583144","B2231","St Josephs Church","B2001","Utilities"
"GUILDFORD BOROUGH COUNCIL","Off Street Parking","Castle Water Limited","896380","08/07/2021",30025748,6.55,0,"Utilities","Mains Water Suppliers","II","BACS","None",2021-06-02 00:00:00,"2021","04","0005583144","B2257","Leapale Road Mscp","B2001","Utilities"
"GUILDFORD BOROUGH COUNCIL","Off Street Parking","Castle Water Limited","896380","08/07/2021",30025748,6.55,0,"Utilities","Mains Water Suppliers","II","BACS","None",2021-06-02 00:00:00,"2021","04","0005583144","B2261","Mary Road Car Park","B2001","Utilities"
"GUILDFORD BOROUGH COUNCIL","Off Street Parking","Castle Water Limited","896380","08/07/2021",30025748,6.55,0,"Utilities","Mains Water Suppliers","II","BACS","None",2021-06-02 00:00:00,"2021","04","0005583144","B2271","North Street Car Park","B2001","Utilities"
"GUILDFORD BOROUGH COUNCIL","Off Street Parking","Castle Water Limited","896380","08/07/2021",30025748,0.84,0,"Utilities","Mains Water Suppliers","II","BACS","None",2021-06-02 00:00:00,"2021","04","0005583144","B2241","Commercial Road 2 Car Park","B2001","Utilities"
"GUILDFORD BOROUGH COUNCIL","Off Street Parking","Castle Water Limited","896380","08/07/2021",30025748,13.09,0,"Utilities","Mains Water Suppliers","II","BACS","None",2021-06-02 00:00:00,"2021","04","0005583144","B2241","Commercial Road 2 Car Park","B2001","Utilities"
"GUILDFORD BOROUGH COUNCIL","Off Street Parking","Castle Water Limited","896380","08/07/2021",30025748,6.55,0,"Utilities","Mains Water Suppliers","II","BACS","None",2021-06-02 00:00:00,"2021","04","0005583144","B2281","Tunsgate Car Park","B2001","Utilities"
"GUILDFORD BOROUGH COUNCIL","Off Street Parking","Castle Water Limited","896380","08/07/2021",30025748,6.55,0,"Utilities","Mains Water Suppliers","II","BACS","None",2021-06-02 00:00:00,"2021","04","0005583144","B2291","York Road Mscp","B2001","Utilities"
"GUILDFORD BOROUGH COUNCIL","Planning Policy","Print For Business Ltd","673000","13/07/2021",30025760,842.88,0,"Printing, Photocopying And Reprographics External","Printing Service Providers","II","BACS","None",2021-05-27 00:00:00,"2021","04","71620","D5301","Neigbourhood Plans","D5005","Printing, Photocopying And Reprographics External"
"GUILDFORD BOROUGH COUNCIL","Government Short Term Debtors","Print For Business Ltd","673000","13/07/2021",30025760,13129.56,0,"Postal Voting Costs","Printing Service Providers","II","BACS","None",2021-05-27 00:00:00,"2021","04","71620","J01195","Elections - SCC","2447","Postal Voting Costs"
"GUILDFORD BOROUGH COUNCIL","Elections","Print For Business Ltd","673000","13/07/2021",30025760,2254.92,0,"Printing, Photocopying And Reprographics External","Printing Service Providers","II","BACS","None",2021-05-27 00:00:00,"2021","04","71620","F2151","Elections","D5005","Printing, Photocopying And Reprographics External"
"GUILDFORD BOROUGH COUNCIL","Resources Caseworker","Hays Specialist Recruitment Limited","156250","29/07/2021",30025761,664.65,0,"Agency","Other Recruitment Agencies And Service Providers","II","BACS","None",2021-05-24 00:00:00,"2021","04","1011323291","G3550","Resources Caseworker","A5191","Agency"
"GUILDFORD BOROUGH COUNCIL","Resources Caseworker","Hays Specialist Recruitment Limited","156250","29/07/2021",30025766,777.29,0,"Agency","Other Recruitment Agencies And Service Providers","II","BACS","None",2021-05-24 00:00:00,"2021","04","1011302302","G3550","Resources Caseworker","A5191","Agency"
"GUILDFORD BOROUGH COUNCIL","Vehicle Maintenance","Rossetts (UK) Ltd","720900","20/07/2021",30025770,349.3,0,"Repair And Maintenance Of Vehicles","Truck And Bus Dealers","II","BACS","None",2021-06-16 00:00:00,"2021","04","52527764","K5551","Fleet Workshops","C1002","Repair And Maintenance Of Vehicles"
"GUILDFORD BOROUGH COUNCIL","Resources Caseworker","Hays Specialist Recruitment Limited","156250","06/07/2021",30025775,726.6,0,"Agency","Other Recruitment Agencies And Service Providers","II","BACS","None",2021-05-24 00:00:00,"2021","04","1011284704","G3550","Resources Caseworker","A5191","Agency"
"GUILDFORD BOROUGH COUNCIL","Vehicle Maintenance","IC Autocare Limited","938530","13/07/2021",30025784,1201.04,0,"Repair And Maintenance Of Vehicles","Other Retailers","II","BACS","None",2020-12-22 00:00:00,"2021","04","0206364","K5551","Fleet Workshops","C1002","Repair And Maintenance Of Vehicles"
"GUILDFORD BOROUGH COUNCIL","Countryside and Parks Services","Margnor (Fasteners) Limited","312200","13/07/2021",30025793,72.3,0,"Materials","Other Fittings And Furnishings Suppliers","II","BACS","None",2021-06-16 00:00:00,"2021","04","SIN245285","A1100","Horticulture","D2003","Materials"
"GUILDFORD BOROUGH COUNCIL","Resources Caseworker","Hays Specialist Recruitment Limited","156250","06/07/2021",30025801,642.12,0,"Agency","Other Recruitment Agencies And Service Providers","II","BACS","None",2021-06-07 00:00:00,"2021","04","1011364836","G3550","Resources Caseworker","A5191","Agency"
"GUILDFORD BOROUGH COUNCIL","Street Cleansing","Arton Monoseal Ltd","775190","13/07/2021",30025805,220,0,"Waste Removal","Asbestos Removal Service Providers","II","BACS","None",2021-03-26 00:00:00,"2021","04","5220","K4551","Street Cleansing","D6010","Waste Removal"
"GUILDFORD BOROUGH COUNCIL","Resources Caseworker","Hays Specialist Recruitment Limited","156250","08/07/2021",30025828,664.65,0,"Agency","Other Recruitment Agencies And Service Providers","II","BACS","None",2021-06-14 00:00:00,"2021","04","1011393165","G3550","Resources Caseworker","A5191","Agency"
"GUILDFORD BOROUGH COUNCIL","Tenant Services","Southern Electric Gas","260350","13/07/2021",30025913,105.35,0,"Utilities","Mains Gas Suppliers","II","BACS","None",2021-06-10 00:00:00,"2021","04","8375305519100621","M1151","Tenants Services (BHS)","B2001","Utilities"
"GUILDFORD BOROUGH COUNCIL","SPA Avoidance Strategy","Bill Kear Plant & Agricultural Cont. Ltd - Non CIS","1000016","27/07/2021",30025927,6101,0,"Contractor Payments","","II","BACS","None",2021-06-21 00:00:00,"2021","04","INV-0752","P20001","Pre-SANG Costs","1233","Contractor Payments"
"GUILDFORD BOROUGH COUNCIL","Lead Specialist - HR","First Advantage Europe Ltd","1000434","06/07/2021",30025932,293,0,"Vacancy And Interview Costs","","II","BACS","None",2021-05-31 00:00:00,"2021","04","PSLINV0002131","G2555","HR Services","A7120","Vacancy And Interview Costs"
"GUILDFORD BOROUGH COUNCIL","Lead Specialist - HR","First Advantage Europe Ltd","1000434","06/07/2021",30025932,162,0,"Vacancy And Interview Costs","","II","BACS","None",2021-05-31 00:00:00,"2021","04","PSLINV0002131","G2555","HR Services","A7120","Vacancy And Interview Costs"
"GUILDFORD BOROUGH COUNCIL","Planning Policy","LC Ecological Services Ltd","1000083","13/07/2021",30025944,1515,0,"Consultancy","","II","BACS","None",2021-06-16 00:00:00,"2021","04","21-5659","D5300","Policy","D6001","Consultancy"
"GUILDFORD BOROUGH COUNCIL","Executive - Miscellaneous","Pinsent Masons LLP","992900","15/07/2021",30026128,7378.43,0,"Consultants Fees","Other Legal Service Providers","II","BACS","None",2021-06-21 00:00:00,"2021","04","6612951","P79104","Wuv - Thames Water Relocation","1221","Consultants Fees"
"GUILDFORD BOROUGH COUNCIL","Project Aspire","Beeline Taxis","908000","13/07/2021",30026131,582.34,0,"Grants And Subscriptions","Taxis And Private Hire Companies","II","BACS","None",2021-04-30 00:00:00,"2021","04","58310","F1126","Project Aspire","D9001","Grants And Subscriptions"
"GUILDFORD BOROUGH COUNCIL","Executive - Miscellaneous","Pinsent Masons LLP","992900","15/07/2021",30026135,430.95,0,"Consultants Fees","Other Legal Service Providers","II","BACS","None",2021-06-21 00:00:00,"2021","04","6612945","P79100","Wuv - Allotment Relocation","1221","Consultants Fees"
"GUILDFORD BOROUGH COUNCIL","Property","Pinsent Masons LLP","992900","15/07/2021",30026157,2514.85,0,"Consultants Fees","Other Legal Service Providers","II","BACS","None",2021-06-21 00:00:00,"2021","04","6612942","P74040","Slyfield Area Regeneration Project","1221","Consultants Fees"
"GUILDFORD BOROUGH COUNCIL","Government Short Term Debtors","Queen Eleanor's C of E Junior School (ELections only)","677600","15/07/2021",30026160,29.89,0,"Polling Station Costs","","II","BACS","None",2021-06-21 00:00:00,"2021","04","0000000076","J01194","Elections - PCC","2445","Polling Station Costs"
"GUILDFORD BOROUGH COUNCIL","Government Short Term Debtors","Queen Eleanor's C of E Junior School (ELections only)","677600","15/07/2021",30026160,29.89,0,"Debt Royalties/Commisions","","II","BACS","None",2021-06-21 00:00:00,"2021","04","0000000076","J01194","Elections - PCC","2445","Debt Royalties/Commisions"
"GUILDFORD BOROUGH COUNCIL","Government Short Term Debtors","Queen Eleanor's C of E Junior School (ELections only)","677600","15/07/2021",30026160,29.89,0,"Debt Royalties/Commisions","","II","BACS","None",2021-06-21 00:00:00,"2021","04","0000000076","J01194","Elections - PCC","2445","Debt Royalties/Commisions"
"GUILDFORD BOROUGH COUNCIL","Government Short Term Debtors","Queen Eleanor's C of E Junior School (ELections only)","677600","15/07/2021",30026160,29.89,0,"Debt Royalties/Commisions","","II","BACS","None",2021-06-21 00:00:00,"2021","04","0000000076","J01195","Elections - SCC","2445","Debt Royalties/Commisions"
"GUILDFORD BOROUGH COUNCIL","Government Short Term Debtors","Queen Eleanor's C of E Junior School (ELections only)","677600","15/07/2021",30026160,29.89,0,"Debt Royalties/Commisions","","II","BACS","None",2021-06-21 00:00:00,"2021","04","0000000076","J01195","Elections - SCC","2445","Debt Royalties/Commisions"
"GUILDFORD BOROUGH COUNCIL","Government Short Term Debtors","Queen Eleanor's C of E Junior School (ELections only)","677600","15/07/2021",30026160,29.89,0,"Polling Station Costs","","II","BACS","None",2021-06-21 00:00:00,"2021","04","0000000076","J01195","Elections - SCC","2445","Polling Station Costs"
"GUILDFORD BOROUGH COUNCIL","Countryside and Parks Services","Winchester Garden Machinery Limited","863000","20/07/2021",30026169,360.45,0,"Vehicle Operating Costs","Gardening Equipment Suppliers","II","BACS","None",2021-06-25 00:00:00,"2021","04","161990","A1600","Stoke Park Depot","C1001","Vehicle Operating Costs"
"GUILDFORD BOROUGH COUNCIL","Countryside and Parks Services","Winchester Garden Machinery Limited","863000","20/07/2021",30026169,1065.15,0,"Vehicle Operating Costs","Gardening Equipment Suppliers","II","BACS","None",2021-06-25 00:00:00,"2021","04","161990","A1600","Stoke Park Depot","C1001","Vehicle Operating Costs"
"GUILDFORD BOROUGH COUNCIL","Lead Specialist - HR","First Advantage Europe Ltd","1000434","06/07/2021",30026208,212,0,"Vacancy And Interview Costs","","II","BACS","None",2021-04-30 00:00:00,"2021","04","PSLINV0000799","G2555","HR Services","A7120","Vacancy And Interview Costs"
"GUILDFORD BOROUGH COUNCIL","Lead Specialist - HR","First Advantage Europe Ltd","1000434","06/07/2021",30026208,83,0,"Vacancy And Interview Costs","","II","BACS","None",2021-04-30 00:00:00,"2021","04","PSLINV0000799","G2555","HR Services","A7120","Vacancy And Interview Costs"
"GUILDFORD BOROUGH COUNCIL","Community Wellbeing","Industrial Workwear Limited","772150","20/07/2021",30026211,5,0,"Postage","Other Clothing And Accessory Suppliers","II","BACS","None",2021-06-25 00:00:00,"2021","04","262260","F5713","Community Wellbeing","D5003","Postage"
"GUILDFORD BOROUGH COUNCIL","Community Wellbeing","Industrial Workwear Limited","772150","20/07/2021",30026211,35.8,0,"Clothing & Uniform","Other Clothing And Accessory Suppliers","II","BACS","None",2021-06-25 00:00:00,"2021","04","262260","F5713","Community Wellbeing","D4001","Clothing & Uniform"
"GUILDFORD BOROUGH COUNCIL","Community Wellbeing","Industrial Workwear Limited","772150","20/07/2021",30026211,26.85,0,"Clothing & Uniform","Other Clothing And Accessory Suppliers","II","BACS","None",2021-06-25 00:00:00,"2021","04","262260","F5713","Community Wellbeing","D4001","Clothing & Uniform"
"GUILDFORD BOROUGH COUNCIL","Vehicle Maintenance","Partsplusuk","984320","15/07/2021",30026216,58.16,0,"Repair And Maintenance Of Vehicles","Third Party Supplier","II","BACS","None",2021-06-22 00:00:00,"2021","04","16450259","K5551","Fleet Workshops","C1002","Repair And Maintenance Of Vehicles"
"GUILDFORD BOROUGH COUNCIL","Executive - Miscellaneous","H T P Consulting Limited","899630","13/07/2021",30026217,5331.25,0,"Consultants Fees","Transport Consultants","II","BACS","None",2021-06-18 00:00:00,"2021","04","1192/53","P79032","SMC (West) Phase 1","1221","Consultants Fees"
"GUILDFORD BOROUGH COUNCIL","Building Control","JJ Surveying Ltd","877460","15/07/2021",30026229,500,0,"Consultancy","Surveyors And Inspectors","II","BACS","None",2021-06-21 00:00:00,"2021","04","1324","D5700","Building Control - Fee","D6001","Consultancy"
"GUILDFORD BOROUGH COUNCIL","Building Control","JJ Surveying Ltd","877460","22/07/2021",30026234,500,0,"Consultancy","Surveyors And Inspectors","II","BACS","None",2021-06-28 00:00:00,"2021","04","1326","D5700","Building Control - Fee","D6001","Consultancy"
"GUILDFORD BOROUGH COUNCIL","Lead Specialist - Finance","Hays Specialist Recruitment Limited","156250","20/07/2021",30026239,2005,0,"Agency","Other Recruitment Agencies And Service Providers","II","BACS","None",2021-06-24 00:00:00,"2021","04","1011430233","G3593","Procurement Services","A5191","Agency"
"GUILDFORD BOROUGH COUNCIL","Planning Policy","APSE","105080","22/07/2021",30026242,2925,0,"Consultancy","Trade Associations And Regulatory Bodies","II","BACS","None",2020-10-08 00:00:00,"2021","04","2021/1084","D5400","Local Plan","D6001","Consultancy"
"GUILDFORD BOROUGH COUNCIL","Climate Change","APSE","105080","22/07/2021",30026242,2925,0,"Consultancy","Trade Associations And Regulatory Bodies","II","BACS","None",2020-10-08 00:00:00,"2021","04","2021/1084","B3911","Climate Change Strategy","D6001","Consultancy"
"GUILDFORD BOROUGH COUNCIL","Lead Specialist - ICT","BT Global Services","777540","29/07/2021",30026245,6188.96,0,"Telephones & Broadband","Fixed Telecoms Service Providers","II","BACS","None",2021-06-25 00:00:00,"2021","04","569876","G3548","ICT Technical & Infrastructure","D7004","Telephones & Broadband"
"GUILDFORD BOROUGH COUNCIL","Executive - Miscellaneous","Perfect Circle JV Ltd","919010","01/07/2021",30026249,2486.93,0,"Consultants Fees","Construction Project Management Consultants","II","BACS","None",2021-04-23 00:00:00,"2021","04","28457701","P79100","Wuv - Allotment Relocation","1221","Consultants Fees"
"GUILDFORD BOROUGH COUNCIL","Private Sector Housing Maintenance","Chambers Waste Management Plc","127500","06/07/2021",30026250,24,0,"Contractors","Other Waste Disposal Suppliers","II","BACS","None",2021-02-07 00:00:00,"2021","04","P459755","C5136","Handyperson Service","D6012","Contractors"
"GUILDFORD BOROUGH COUNCIL","Countryside and Parks Services","Amazon Payments Europe S.C.A.","951330","22/07/2021",30026251,126.98,0,"Events","Other Retailers","II","BACS","None",2021-06-28 00:00:00,"2021","04","AEU-INV-GB-2021-290940231","A1960","Guildford In Bloom","D8006","Events"
"GUILDFORD BOROUGH COUNCIL","Parks Countryside Management","Amazon Payments Europe S.C.A.","951330","22/07/2021",30026251,126.98,0,"Events","Other Retailers","II","BACS","None",2021-06-28 00:00:00,"2021","04","AEU-INV-GB-2021-290940231","A1960","Guildford In Bloom","D8006","Events"
"GUILDFORD BOROUGH COUNCIL","Guildford House","Julie Noles","710270","22/07/2021",30026365,-12.86,0,"Sale of Items","","II","BACS","None",2021-06-28 00:00:00,"2021","04","Goods sold GHG payment","A4511","Guildford House Administration","K3001","Sale of Items"
"GUILDFORD BOROUGH COUNCIL","Guildford House","Julie Noles","710270","22/07/2021",30026365,36.75,0,"Sale of Items","","II","BACS","None",2021-06-28 00:00:00,"2021","04","Goods sold GHG payment","A4511","Guildford House Administration","K3001","Sale of Items"
"GUILDFORD BOROUGH COUNCIL","Development Control","Portal Planquest Ltd.","1000021","06/07/2021",30026377,206,0,"Planning Fees","","II","BACS","None",2021-06-28 00:00:00,"2021","04","PP09948630v1SEC","D5100","Development Control - Fee Earn","K4006","Planning Fees"
"GUILDFORD BOROUGH COUNCIL","Guildford House","Roz Norman","499640","22/07/2021",30026382,71.75,0,"Sale of Items","","II","BACS","None",2021-06-28 00:00:00,"2021","04","Roz Norman sale of goods","A4511","Guildford House Administration","K3001","Sale of Items"
"GUILDFORD BOROUGH COUNCIL","Guildford House","Roz Norman","499640","22/07/2021",30026382,-25.11,0,"Sale of Items","","II","BACS","None",2021-06-28 00:00:00,"2021","04","Roz Norman sale of goods","A4511","Guildford House Administration","K3001","Sale of Items"
"GUILDFORD BOROUGH COUNCIL","Guildford House","Mrs Terri Smart","575300","22/07/2021",30026424,45,0,"Sale of Items","","II","BACS","None",2021-06-28 00:00:00,"2021","04","Terri Smart sale of good payment","A4511","Guildford House Administration","K3001","Sale of Items"
"GUILDFORD BOROUGH COUNCIL","Guildford House","Mrs Terri Smart","575300","22/07/2021",30026424,-15.75,0,"Sale of Items","","II","BACS","None",2021-06-28 00:00:00,"2021","04","Terri Smart sale of good payment","A4511","Guildford House Administration","K3001","Sale of Items"
"GUILDFORD BOROUGH COUNCIL","Guildford House","Phedra Menas","868740","22/07/2021",30026425,33,0,"Sale of Items","","II","BACS","None",2021-06-28 00:00:00,"2021","04","Phedra Menas sale of good payment","A4511","Guildford House Administration","K3001","Sale of Items"
"GUILDFORD BOROUGH COUNCIL","Guildford House","Phedra Menas","868740","22/07/2021",30026425,-11.55,0,"Sale of Items","","II","BACS","None",2021-06-28 00:00:00,"2021","04","Phedra Menas sale of good payment","A4511","Guildford House Administration","K3001","Sale of Items"
"GUILDFORD BOROUGH COUNCIL","Guildford House","Brenda Sones","239620","22/07/2021",30026426,15.24,0,"Sale of Items","","II","BACS","None",2021-06-28 00:00:00,"2021","04","Brenda Sones sale of goods payment","A4511","Guildford House Administration","K3001","Sale of Items"
"GUILDFORD BOROUGH COUNCIL","Guildford House","Brenda Sones","239620","22/07/2021",30026426,-5.33,0,"Sale of Items","","II","BACS","None",2021-06-28 00:00:00,"2021","04","Brenda Sones sale of goods payment","A4511","Guildford House Administration","K3001","Sale of Items"
"GUILDFORD BOROUGH COUNCIL","Guildford House","Misha Seelhoff","1000181","22/07/2021",30026427,55,0,"Sale of Items","","II","BACS","None",2021-06-28 00:00:00,"2021","04","Misha Seelhoff sale of goods payment","A4511","Guildford House Administration","K3001","Sale of Items"
"GUILDFORD BOROUGH COUNCIL","Guildford House","Misha Seelhoff","1000181","22/07/2021",30026427,-19.25,0,"Sale of Items","","II","BACS","None",2021-06-28 00:00:00,"2021","04","Misha Seelhoff sale of goods payment","A4511","Guildford House Administration","K3001","Sale of Items"
"GUILDFORD BOROUGH COUNCIL","Guildford House","Joanne Eddon","272500","22/07/2021",30026428,54,0,"Sale of Items","","II","BACS","None",2021-06-28 00:00:00,"2021","04","Joanna Eddon sale of goods payment","A4511","Guildford House Administration","K3001","Sale of Items"
"GUILDFORD BOROUGH COUNCIL","Guildford House","Joanne Eddon","272500","22/07/2021",30026428,-18.9,0,"Sale of Items","","II","BACS","None",2021-06-28 00:00:00,"2021","04","Joanna Eddon sale of goods payment","A4511","Guildford House Administration","K3001","Sale of Items"
"GUILDFORD BOROUGH COUNCIL","Guildford House","Iona Mackenzie Laycock","157630","22/07/2021",30026429,-59.5,0,"Sale of Items","","II","BACS","None",2021-06-28 00:00:00,"2021","04","Iona MacKenzie Laycock sale of goods payment","A4511","Guildford House Administration","K3001","Sale of Items"
"GUILDFORD BOROUGH COUNCIL","Guildford House","Iona Mackenzie Laycock","157630","22/07/2021",30026429,170,0,"Sale of Items","","II","BACS","None",2021-06-28 00:00:00,"2021","04","Iona MacKenzie Laycock sale of goods payment","A4511","Guildford House Administration","K3001","Sale of Items"
"GUILDFORD BOROUGH COUNCIL","Grants","SCBS (Grants only)","729250","20/07/2021",30026430,28000,0,"Outgoing VAT on sales to EU Member states","General Builders","II","BACS","None",2021-06-24 00:00:00,"2021","04","1420","N51008","Mandatory DFG","1311","Outgoing VAT on sales to EU Member states"
"GUILDFORD BOROUGH COUNCIL","Grants","SCBS (Grants only)","729250","20/07/2021",30026430,28000,0,"Outgoing VAT on sales to EU Member states","General Builders","II","BACS","None",2021-06-24 00:00:00,"2021","04","1420","N51008","Mandatory DFG","1311","Outgoing VAT on sales to EU Member states"
"GUILDFORD BOROUGH COUNCIL","Grants","SCBS (Grants only)","729250","20/07/2021",30026430,28000,0,"Grants To Private Owners","General Builders","II","BACS","None",2021-06-24 00:00:00,"2021","04","1420","N51008","Mandatory DFG","1311","Grants To Private Owners"
"GUILDFORD BOROUGH COUNCIL","Grants","Bentley Mobility Services Limited","929000","08/07/2021",30026431,4875,0,"Outgoing VAT on sales to EU Member states","Mobility Disability Equipment Suppliers","II","BACS","None",2021-06-14 00:00:00,"2021","04","27889","N51019","BCF Non Grant Expenditure","1311","Outgoing VAT on sales to EU Member states"
"GUILDFORD BOROUGH COUNCIL","Grants","Bentley Mobility Services Limited","929000","08/07/2021",30026431,4875,0,"Grants To Private Owners","Mobility Disability Equipment Suppliers","II","BACS","None",2021-06-14 00:00:00,"2021","04","27889","N51019","BCF Non Grant Expenditure","1311","Grants To Private Owners"
"GUILDFORD BOROUGH COUNCIL","Grants","Bentley Mobility Services Limited","929000","08/07/2021",30026431,4875,0,"Outgoing VAT on sales to EU Member states","Mobility Disability Equipment Suppliers","II","BACS","None",2021-06-14 00:00:00,"2021","04","27889","N51019","BCF Non Grant Expenditure","1311","Outgoing VAT on sales to EU Member states"
"GUILDFORD BOROUGH COUNCIL","Responsive & Planned Maintenance","Des Bone Limited","169401","15/07/2021",30026433,120,0,"Cleaning Contractors","","II","BACS","None",2021-06-22 00:00:00,"2021","04","15101","M5113","Repairs-Responsive (BHS)","D6006","Cleaning Contractors"
"GUILDFORD BOROUGH COUNCIL","Responsive & Planned Maintenance","Des Bone Limited","169401","15/07/2021",30026434,120,0,"Cleaning Contractors","","II","BACS","None",2021-06-22 00:00:00,"2021","04","15102","M5113","Repairs-Responsive (BHS)","D6006","Cleaning Contractors"
"GUILDFORD BOROUGH COUNCIL","Modern Homes","Breyer Group Plc","129090","01/07/2021",30026435,14742.33,0,"Contractor Payments","General Builders","II","BACS","None",2021-05-25 00:00:00,"2021","04","51742","N42066","Kitchen & Bathroom refurb 2020-21","1233","Contractor Payments"
"GUILDFORD BOROUGH COUNCIL","Modern Homes","Breyer Group Plc","129090","01/07/2021",30026435,18373.47,0,"Contractor Payments","General Builders","II","BACS","None",2021-05-25 00:00:00,"2021","04","51742","N42067","Void properties 2020-21","1233","Contractor Payments"
"GUILDFORD BOROUGH COUNCIL","Millmead House","Constant Power Services Ltd","145500","22/07/2021",30026436,830,0,"Asset Maintenance","Mains Electricity Suppliers","II","BACS","None",2021-06-28 00:00:00,"2021","04","57228","G7511","Millmead House","B1001","Asset Maintenance"
"GUILDFORD BOROUGH COUNCIL","Resources Caseworker","Constant Power Services Ltd","145500","22/07/2021",30026436,830,0,"Asset Maintenance","Mains Electricity Suppliers","II","BACS","None",2021-06-28 00:00:00,"2021","04","57228","G7511","Millmead House","B1001","Asset Maintenance"
"GUILDFORD BOROUGH COUNCIL","Off Street Parking","Kone Plc","904300","01/07/2021",30026437,53.38,0,"Asset Maintenance","Lift Contractors","II","BACS","None",2021-06-23 00:00:00,"2021","04","38357540","B2244","Farnham Road Mscp","B1001","Asset Maintenance"
"GUILDFORD BOROUGH COUNCIL","Leisure and Community","Kone Plc","904300","01/07/2021",30026438,63.81,0,"Asset Maintenance","Lift Contractors","II","BACS","None",2020-09-22 00:00:00,"2021","04","113249492","A8161","Beverley Hall Community Centre","B1001","Asset Maintenance"
"GUILDFORD BOROUGH COUNCIL","Other Property","Kone Plc","904300","01/07/2021",30026438,63.81,0,"Asset Maintenance","Lift Contractors","II","BACS","None",2020-09-22 00:00:00,"2021","04","113249492","B6100","Other Property Admin","B1001","Asset Maintenance"
"GUILDFORD BOROUGH COUNCIL","Investment Properties","Kone Plc","904300","01/07/2021",30026438,63.81,0,"Asset Maintenance","Lift Contractors","II","BACS","None",2020-09-22 00:00:00,"2021","04","113249492","B6111","Investment Property","B1001","Asset Maintenance"
"GUILDFORD BOROUGH COUNCIL","Millmead House","Kone Plc","904300","01/07/2021",30026438,188.93,0,"Asset Maintenance","Lift Contractors","II","BACS","None",2020-09-22 00:00:00,"2021","04","113249492","G7511","Millmead House","B1001","Asset Maintenance"
"GUILDFORD BOROUGH COUNCIL","Resources Caseworker","Kone Plc","904300","01/07/2021",30026438,188.93,0,"Asset Maintenance","Lift Contractors","II","BACS","None",2020-09-22 00:00:00,"2021","04","113249492","G7511","Millmead House","B1001","Asset Maintenance"
"GUILDFORD BOROUGH COUNCIL","Flats Communal Services","Kone Plc","904300","01/07/2021",30026438,319.05,0,"Asset Maintenance","Lift Contractors","II","BACS","None",2020-09-22 00:00:00,"2021","04","113249492","M2636","Bedford House (67)","B1001","Asset Maintenance"
"GUILDFORD BOROUGH COUNCIL","Flats Communal Services","Kone Plc","904300","01/07/2021",30026438,63.81,0,"Asset Maintenance","Lift Contractors","II","BACS","None",2020-09-22 00:00:00,"2021","04","113249492","M2736","Friary House 1-61 (61)","B1001","Asset Maintenance"
"GUILDFORD BOROUGH COUNCIL","Off Street Parking","Kone Plc","904300","01/07/2021",30026438,127.62,0,"Asset Maintenance","Lift Contractors","II","BACS","None",2020-09-22 00:00:00,"2021","04","113249492","B2216","General Upkeep- Urban Car Pks","B1001","Asset Maintenance"
"GUILDFORD BOROUGH COUNCIL","Off Street Parking","Kone Plc","904300","01/07/2021",30026438,127.62,0,"Asset Maintenance","Lift Contractors","II","BACS","None",2020-09-22 00:00:00,"2021","04","113249492","B2216","General Upkeep- Urban Car Pks","B1001","Asset Maintenance"
"GUILDFORD BOROUGH COUNCIL","Off Street Parking","Kone Plc","904300","01/07/2021",30026438,62.14,0,"Asset Maintenance","Lift Contractors","II","BACS","None",2020-09-22 00:00:00,"2021","04","113249492","B2216","General Upkeep- Urban Car Pks","B1001","Asset Maintenance"
"GUILDFORD BOROUGH COUNCIL","Off Street Parking","Kone Plc","904300","01/07/2021",30026438,63.81,0,"Asset Maintenance","Lift Contractors","II","BACS","None",2020-09-22 00:00:00,"2021","04","113249492","B2216","General Upkeep- Urban Car Pks","B1001","Asset Maintenance"
"GUILDFORD BOROUGH COUNCIL","Off Street Parking","Kone Plc","904300","01/07/2021",30026438,63.81,0,"Asset Maintenance","Lift Contractors","II","BACS","None",2020-09-22 00:00:00,"2021","04","113249492","B2216","General Upkeep- Urban Car Pks","B1001","Asset Maintenance"
"GUILDFORD BOROUGH COUNCIL","Responsive & Planned Maintenance","Kone Plc","904300","01/07/2021",30026438,191.43,0,"Asset Maintenance","Lift Contractors","II","BACS","None",2020-09-22 00:00:00,"2021","04","113249492","M5107","Repairs-Shelt-Cyclical (BHS)","B1001","Asset Maintenance"
"GUILDFORD BOROUGH COUNCIL","Responsive & Planned Maintenance","Kone Plc","904300","01/07/2021",30026438,63.81,0,"Asset Maintenance","Lift Contractors","II","BACS","None",2020-09-22 00:00:00,"2021","04","113249492","M5107","Repairs-Shelt-Cyclical (BHS)","B1001","Asset Maintenance"
"GUILDFORD BOROUGH COUNCIL","Responsive & Planned Maintenance","Kone Plc","904300","01/07/2021",30026438,63.81,0,"Asset Maintenance","Lift Contractors","II","BACS","None",2020-09-22 00:00:00,"2021","04","113249492","M5107","Repairs-Shelt-Cyclical (BHS)","B1001","Asset Maintenance"
"GUILDFORD BOROUGH COUNCIL","Flats Communal Services","Kone Plc","904300","01/07/2021",30026438,127.62,0,"Asset Maintenance","Lift Contractors","II","BACS","None",2020-09-22 00:00:00,"2021","04","113249492","M2646","Bishops Court 1-40 (40)","B1001","Asset Maintenance"
"GUILDFORD BOROUGH COUNCIL","Flats Communal Services","Kone Plc","904300","01/07/2021",30026438,127.62,0,"Asset Maintenance","Lift Contractors","II","BACS","None",2020-09-22 00:00:00,"2021","04","113249492","M2811","Mount Court 1 - 40 (40)","B1001","Asset Maintenance"
"GUILDFORD BOROUGH COUNCIL","Responsive & Planned Maintenance","Kone Plc","904300","01/07/2021",30026438,382.86,0,"Asset Maintenance","Lift Contractors","II","BACS","None",2020-09-22 00:00:00,"2021","04","113249492","M5107","Repairs-Shelt-Cyclical (BHS)","B1001","Asset Maintenance"
"GUILDFORD BOROUGH COUNCIL","Responsive & Planned Maintenance","Cranleigh Aerials Limited","698990","01/07/2021",30026439,75,0,"Building Expenses","Audio And Visual Equipment Suppliers","II","BACS","None",2021-06-23 00:00:00,"2021","04","705425","M5113","Repairs-Responsive (BHS)","B1002","Building Expenses"
"GUILDFORD BOROUGH COUNCIL","Responsive & Planned Maintenance","Cranleigh Aerials Limited","698990","01/07/2021",30026440,75,0,"Building Expenses","Audio And Visual Equipment Suppliers","II","BACS","None",2021-06-23 00:00:00,"2021","04","705426","M5113","Repairs-Responsive (BHS)","B1002","Building Expenses"
"GUILDFORD BOROUGH COUNCIL","Responsive & Planned Maintenance","Cranleigh Aerials Limited","698990","01/07/2021",30026440,2.5,0,"Building Expenses","Audio And Visual Equipment Suppliers","II","BACS","None",2021-06-23 00:00:00,"2021","04","705426","M5113","Repairs-Responsive (BHS)","B1002","Building Expenses"
"GUILDFORD BOROUGH COUNCIL","Responsive & Planned Maintenance","Cranleigh Aerials Limited","698990","01/07/2021",30026441,75,0,"Building Expenses","Audio And Visual Equipment Suppliers","II","BACS","None",2021-06-23 00:00:00,"2021","04","705427","M5106","Repairs-Shelt-Responsive (BHS)","B1002","Building Expenses"
"GUILDFORD BOROUGH COUNCIL","Responsive & Planned Maintenance","Stannah Limited (CIS)","913700","01/07/2021",30026442,44.9,0,"Asset Maintenance","Stairlift Suppliers","II","BACS","None",2021-06-21 00:00:00,"2021","04","1085319521","M5114","Repairs-Cyclical (BHS)","B1001","Asset Maintenance"
"GUILDFORD BOROUGH COUNCIL","Responsive & Planned Maintenance","Stannah Limited (CIS)","913700","01/07/2021",30026443,44.9,0,"Asset Maintenance","Stairlift Suppliers","II","BACS","None",2021-06-21 00:00:00,"2021","04","1085319524","M5114","Repairs-Cyclical (BHS)","B1001","Asset Maintenance"
"GUILDFORD BOROUGH COUNCIL","Responsive & Planned Maintenance","Stannah Limited (CIS)","913700","01/07/2021",30026444,44.9,0,"Asset Maintenance","Stairlift Suppliers","II","BACS","None",2021-06-24 00:00:00,"2021","04","1085320883","M5114","Repairs-Cyclical (BHS)","B1001","Asset Maintenance"
"GUILDFORD BOROUGH COUNCIL","Renovations","C L C Contractors Limited","982900","01/07/2021",30026445,644.2,0,"Contractor Payments","Property Maintenance Contractors","II","BACS","None",2021-06-25 00:00:00,"2021","04","AP93479-001","N40281","Condition Appraisals works 2020-21","1233","Contractor Payments"
"GUILDFORD BOROUGH COUNCIL","Flats Communal Services","Tunstall Healthcare (UK) Ltd","100310","15/07/2021",30026446,35,0,"Asset Maintenance","Community Alarm Suppliers","II","BACS","None",2021-06-21 00:00:00,"2021","04","INV/50370018","M2736","Friary House 1-61 (61)","B1001","Asset Maintenance"
"GUILDFORD BOROUGH COUNCIL","Public Conveniences","Guildford Lock And Safe Limited","229400","20/07/2021",30026447,176,0,"Asset Maintenance","Keys And Locksmiths","II","BACS","None",2021-06-26 00:00:00,"2021","04","27703","K6500","Public Conveniences","B1001","Asset Maintenance"
"GUILDFORD BOROUGH COUNCIL","Responsive & Planned Maintenance","Guildford Lock And Safe Limited","229400","20/07/2021",30026448,200,0,"Asset Maintenance","Keys And Locksmiths","II","BACS","None",2021-06-26 00:00:00,"2021","04","27704","M5113","Repairs-Responsive (BHS)","B1001","Asset Maintenance"
"GUILDFORD BOROUGH COUNCIL","Tenant Services","Guildford Lock And Safe Limited","229400","20/07/2021",30026449,28.75,0,"Asset Maintenance","Keys And Locksmiths","II","BACS","None",2021-06-26 00:00:00,"2021","04","27709","M1151","Tenants Services (BHS)","B1001","Asset Maintenance"
"GUILDFORD BOROUGH COUNCIL","Responsive & Planned Maintenance","Paul Phelan","261400","01/07/2021",30026450,59.5,0,"Asset Maintenance","Sewerage And Drainage Service Providers","II","BACS","None",2021-06-23 00:00:00,"2021","04","83571","M5106","Repairs-Shelt-Responsive (BHS)","B1001","Asset Maintenance"
"GUILDFORD BOROUGH COUNCIL","Responsive & Planned Maintenance","Paul Phelan","261400","01/07/2021",30026451,59.5,0,"Asset Maintenance","Sewerage And Drainage Service Providers","II","BACS","None",2021-06-23 00:00:00,"2021","04","83573","M5113","Repairs-Responsive (BHS)","B1001","Asset Maintenance"
"GUILDFORD BOROUGH COUNCIL","Responsive & Planned Maintenance","Paul Phelan","261400","01/07/2021",30026452,59.5,0,"Asset Maintenance","Sewerage And Drainage Service Providers","II","BACS","None",2021-06-25 00:00:00,"2021","04","83589","M5113","Repairs-Responsive (BHS)","B1001","Asset Maintenance"
"GUILDFORD BOROUGH COUNCIL","Vehicle Maintenance","Rossetts (UK) Ltd","720900","20/07/2021",30026454,948.36,0,"Repair And Maintenance Of Vehicles","Truck And Bus Dealers","II","BACS","None",2021-06-26 00:00:00,"2021","04","52528827","K5551","Fleet Workshops","C1002","Repair And Maintenance Of Vehicles"
"GUILDFORD BOROUGH COUNCIL","Countryside and Parks Services","South East Water Ltd","625680","15/07/2021",30026455,15.15,0,"Services","Mains Water Suppliers","II","BACS","None",2021-06-21 00:00:00,"2021","04","INV0213175","A1250","Stoke Park","D6004","Services"
"GUILDFORD BOROUGH COUNCIL","Development Control","Francis Taylor Building","972970","27/07/2021",30026456,875,0,"Consultancy","","II","BACS","None",2021-06-30 00:00:00,"2021","04","88093/300621","D5100","Development Control - Fee Earn","D6001","Consultancy"
"GUILDFORD BOROUGH COUNCIL","Industrial Estates","Artelia Projects UK Limited","874420","22/07/2021",30026457,2775.33,0,"Consultants Fees","Civil Engineers","II","BACS","None",2021-06-29 00:00:00,"2021","04","PIN010450","P72037","Midleton Ind Est Redevelop","1221","Consultants Fees"
"GUILDFORD BOROUGH COUNCIL","Investment Properties","Addison Glass & Windscreens Ltd","459000","27/07/2021",30026458,120,0,"Asset Maintenance","Window And Door Installers","II","BACS","None",2021-06-30 00:00:00,"2021","04","INV-0241","B6111","Investment Property","B1001","Asset Maintenance"
"GUILDFORD BOROUGH COUNCIL","Parks & Countryside","KOMPAN Ltd","1000200","08/07/2021",30026460,13176.85,0,"Contractor Payments","","II","BACS","None",2021-04-26 00:00:00,"2021","04","234603","P18232","Waterside Road Play Area Multi-Unit 10P02276 / 14P00249","1233","Contractor Payments"
"GUILDFORD BOROUGH COUNCIL","Street Cleansing","Glasdon UK Limited","355440","22/07/2021",30026461,175.1,0,"Equipment","Bins And Waste Container Suppliers","II","BACS","None",2021-06-29 00:00:00,"2021","04","SI818485","K4551","Street Cleansing","D2001","Equipment"
"GUILDFORD BOROUGH COUNCIL","Street Cleansing","Glasdon UK Limited","355440","22/07/2021",30026461,78,0,"Equipment","Bins And Waste Container Suppliers","II","BACS","None",2021-06-29 00:00:00,"2021","04","SI818485","K4551","Street Cleansing","D2001","Equipment"
"GUILDFORD BOROUGH COUNCIL","Vehicle Maintenance","Fuller Tyres Limited","882220","20/07/2021",30026462,83,0,"Repair And Maintenance Of Vehicles","Other Vehicle Equipment Providers","II","BACS","None",2021-06-25 00:00:00,"2021","04","FTI-31162","K5551","Fleet Workshops","C1002","Repair And Maintenance Of Vehicles"
"GUILDFORD BOROUGH COUNCIL","Countryside and Parks Services","Waterlogic Gb Limited","952250","13/07/2021",30026463,-108.12,0,"Hire","Water Cooler And Bottled Water Suppliers","II","BACS","None",2021-06-25 00:00:00,"2021","04","6281102","A1250","Stoke Park","D1001","Hire"
"GUILDFORD BOROUGH COUNCIL","Corporate Services","Sharpe Pritchard LLP","415180","06/07/2021",30026464,8438,0,"Services","Solicitors [Uk Only]","II","BACS","None",2021-05-31 00:00:00,"2021","04","126496","F1111","Corporate Services","D6004","Services"
"GUILDFORD BOROUGH COUNCIL","Inventories","Akw Medi-Care Limited","178400","08/07/2021",30026465,20.22,0,"Purchases","Mobility Disability Equipment Suppliers","II","BACS","None",2021-06-15 00:00:00,"2021","04","1935329","I01001","Stocks","2591","Purchases"
"GUILDFORD BOROUGH COUNCIL","Vehicle Maintenance","Fuller Tyres Limited","882220","20/07/2021",30026466,298,0,"Repair And Maintenance Of Vehicles","Other Vehicle Equipment Providers","II","BACS","None",2021-06-25 00:00:00,"2021","04","FTI-31163","K5551","Fleet Workshops","C1002","Repair And Maintenance Of Vehicles"
"GUILDFORD BOROUGH COUNCIL","Crematorium","Ant Structures Ltd","933760","08/07/2021",30026467,2130,0,"Contractor Payments","Scaffolders","II","BACS","None",2021-05-31 00:00:00,"2021","04","909","P05012","Broadwater Cottage","1233","Contractor Payments"
"GUILDFORD BOROUGH COUNCIL","Vehicle Maintenance","Partsplusuk","984320","20/07/2021",30026468,30,0,"Repair And Maintenance Of Vehicles","Third Party Supplier","II","BACS","None",2021-06-23 00:00:00,"2021","04","1692810","K5551","Fleet Workshops","C1002","Repair And Maintenance Of Vehicles"
"GUILDFORD BOROUGH COUNCIL","Vehicle Maintenance","Partsplusuk","984320","20/07/2021",30026469,213.8,0,"Repair And Maintenance Of Vehicles","Third Party Supplier","II","BACS","None",2021-06-23 00:00:00,"2021","04","16469124","K5551","Fleet Workshops","C1002","Repair And Maintenance Of Vehicles"
"GUILDFORD BOROUGH COUNCIL","Property","Perfect Circle JV Ltd","919010","06/07/2021",30026470,6666.67,0,"Consultants Fees","Construction Project Management Consultants","II","BACS","None",2021-05-28 00:00:00,"2021","04","LNDM0036/001","P74040","Slyfield Area Regeneration Project","1221","Consultants Fees"
"GUILDFORD BOROUGH COUNCIL","Investment Properties","British Gas (Payment Area 60)","412860","20/07/2021",30026471,18.16,0,"Utilities","Mains Gas Suppliers","II","BACS","None",2021-06-22 00:00:00,"2021","04","103518835","B6543","High St 5","B2001","Utilities"
"GUILDFORD BOROUGH COUNCIL","Property","Perfect Circle JV Ltd","919010","08/07/2021",30026472,23534.64,0,"Consultants Fees","Construction Project Management Consultants","II","BACS","None",2021-05-28 00:00:00,"2021","04","LNDM0034/005","P74040","Slyfield Area Regeneration Project","1221","Consultants Fees"
"GUILDFORD BOROUGH COUNCIL","Industrial Estates","Artelia Projects UK Limited","874420","22/07/2021",30026473,3680,0,"Consultants Fees","Civil Engineers","II","BACS","None",2021-06-29 00:00:00,"2021","04","PIN010449","P72037","Midleton Ind Est Redevelop","1221","Consultants Fees"
"GUILDFORD BOROUGH COUNCIL","Vehicle Maintenance","Fluid Systems Ltd T/A Pirtek (Guildford)","667001","20/07/2021",30026474,92.03,0,"Repair And Maintenance Of Vehicles","","II","BACS","None",2021-06-23 00:00:00,"2021","04","GUI5037","K5551","Fleet Workshops","C1002","Repair And Maintenance Of Vehicles"
"GUILDFORD BOROUGH COUNCIL","Woking Road Depot","Brakes","101300","06/07/2021",30026475,50.38,0,"Catering","Other Food Suppliers","II","BACS","None",2020-06-24 00:00:00,"2021","04","92913221782","B4452","Woking Road Depot","D3001","Catering"
"GUILDFORD BOROUGH COUNCIL","Woking Road Depot","Brakes","101300","06/07/2021",30026475,312.36,0,"Catering","Other Food Suppliers","II","BACS","None",2020-06-24 00:00:00,"2021","04","92913221782","B4452","Woking Road Depot","D3001","Catering"
"GUILDFORD BOROUGH COUNCIL","Countryside and Parks Services","Contract Cleaning & Facilities Ltd","974800","20/07/2021",30026476,614.3,0,"Contractors","Commercial Cleaners","II","BACS","None",2021-06-25 00:00:00,"2021","04","61144","A1600","Stoke Park Depot","D6012","Contractors"
"GUILDFORD BOROUGH COUNCIL","Vehicle Maintenance","Fuller Tyres Limited","882220","20/07/2021",30026477,112,0,"Repair And Maintenance Of Vehicles","Other Vehicle Equipment Providers","II","BACS","None",2021-06-25 00:00:00,"2021","04","FTI-31161","K5551","Fleet Workshops","C1002","Repair And Maintenance Of Vehicles"
"GUILDFORD BOROUGH COUNCIL","Vehicle Maintenance","Faun Zoeller (UK) Limited","875210","22/07/2021",30026478,724.3,0,"Repair And Maintenance Of Vehicles","Waste Disposal Equipment Suppliers","II","BACS","None",2021-06-28 00:00:00,"2021","04","210624","K5551","Fleet Workshops","C1002","Repair And Maintenance Of Vehicles"
"GUILDFORD BOROUGH COUNCIL","Vehicle Maintenance","F G Barnes & Sons Ltd T/A Barnes Daf","882000","20/07/2021",30026479,54.67,0,"Repair And Maintenance Of Vehicles","Car And Van Dealers","II","BACS","None",2021-06-24 00:00:00,"2021","04","403046231","K5551","Fleet Workshops","C1002","Repair And Maintenance Of Vehicles"
"GUILDFORD BOROUGH COUNCIL","Industrial Estates","Artelia Projects UK Limited","874420","22/07/2021",30026480,3472,0,"Consultants Fees","Civil Engineers","II","BACS","None",2021-06-29 00:00:00,"2021","04","PIN010452","P72037","Midleton Ind Est Redevelop","1221","Consultants Fees"
"GUILDFORD BOROUGH COUNCIL","Off Street Parking","Bemrose Booth Paragon Ltd","953400","06/07/2021",30026481,45,0,"Postage","Printing Service Providers","II","BACS","None",2021-05-13 00:00:00,"2021","04","493464","B2216","General Upkeep- Urban Car Pks","D5003","Postage"
"GUILDFORD BOROUGH COUNCIL","Off Street Parking","Bemrose Booth Paragon Ltd","953400","06/07/2021",30026481,704,0,"Printing, Photocopying And Reprographics External","Printing Service Providers","II","BACS","None",2021-05-13 00:00:00,"2021","04","493464","B2216","General Upkeep- Urban Car Pks","D5005","Printing, Photocopying And Reprographics External"
"GUILDFORD BOROUGH COUNCIL","Vehicle Maintenance","F G Barnes & Sons Ltd T/A Barnes Daf","882000","27/07/2021",30026482,54.67,0,"Repair And Maintenance Of Vehicles","Car And Van Dealers","II","BACS","None",2021-06-30 00:00:00,"2021","04","40304654","K5551","Fleet Workshops","C1002","Repair And Maintenance Of Vehicles"
"GUILDFORD BOROUGH COUNCIL","Parks Countryside Management","Gristman Tree Surgery Limited","342640","22/07/2021",30026483,925,0,"Grounds Maintenance","Tree Work Contractors","II","BACS","None",2021-06-29 00:00:00,"2021","04","02390","A1300","Trees And Countryside","B6001","Grounds Maintenance"
"GUILDFORD BOROUGH COUNCIL","Countryside and Parks Services","Gristman Tree Surgery Limited","342640","22/07/2021",30026483,925,0,"Grounds Maintenance","Tree Work Contractors","II","BACS","None",2021-06-29 00:00:00,"2021","04","02390","A1300","Trees And Countryside","B6001","Grounds Maintenance"
"GUILDFORD BOROUGH COUNCIL","Elections","Royal Mail Group Ltd (Chesterfield)","878030","08/07/2021",30026484,6.18,0,"Postage","","II","BACS","None",2021-06-14 00:00:00,"2021","04","9063099761","F2151","Elections","D5003","Postage"
"GUILDFORD BOROUGH COUNCIL","Government Short Term Debtors","Royal Mail Group Ltd (Chesterfield)","878030","08/07/2021",30026484,9.78,0,"Postal Voting Costs","","II","BACS","None",2021-06-14 00:00:00,"2021","04","9063099761","J01194","Elections - PCC","2447","Postal Voting Costs"
"GUILDFORD BOROUGH COUNCIL","Government Short Term Debtors","Royal Mail Group Ltd (Chesterfield)","878030","08/07/2021",30026484,9.78,0,"Postal Voting Costs","","II","BACS","None",2021-06-14 00:00:00,"2021","04","9063099761","J01195","Elections - SCC","2447","Postal Voting Costs"
"GUILDFORD BOROUGH COUNCIL","Vehicle Maintenance","Fuller Tyres Limited","882220","20/07/2021",30026485,76,0,"Repair And Maintenance Of Vehicles","Other Vehicle Equipment Providers","II","BACS","None",2021-06-25 00:00:00,"2021","04","FTI-31160","K5551","Fleet Workshops","C1002","Repair And Maintenance Of Vehicles"
"GUILDFORD BOROUGH COUNCIL","Property","Perfect Circle JV Ltd","919010","06/07/2021",30026487,18425.55,0,"Consultants Fees","Construction Project Management Consultants","II","BACS","None",2021-05-28 00:00:00,"2021","04","LNDM0032/006","P74040","Slyfield Area Regeneration Project","1221","Consultants Fees"
"GUILDFORD BOROUGH COUNCIL","Building Maintenance","Davis Property Services GU Limited (CIS)","946970","06/07/2021",30026488,100,0,"Services","Roofers","II","BACS","None",2021-06-28 00:00:00,"2021","04","2126","K1515","Building Maintenance","D6004","Services"
"GUILDFORD BOROUGH COUNCIL","Cemeteries","Stone Edge Conservation Limited (CIS)","972760","08/07/2021",30026489,801.28,0,"Asset Maintenance","Restoration Specialists","II","BACS","None",2021-06-29 00:00:00,"2021","04","SE19231-2302","A1440","Closed Burial Grounds","B1001","Asset Maintenance"
"GUILDFORD BOROUGH COUNCIL","Countryside and Parks Services","Addison Glass & Windscreens Ltd","459000","27/07/2021",30026490,70,0,"Asset Maintenance","Window And Door Installers","II","BACS","None",2021-06-30 00:00:00,"2021","04","INV-0235","A1250","Stoke Park","B1001","Asset Maintenance"
"GUILDFORD BOROUGH COUNCIL","Countryside and Parks Services","TMP (UK) Ltd","937520","22/07/2021",30026491,301.4,0,"Advertising, Publicity & Promotion","Advertising Agencies","II","BACS","None",2021-06-29 00:00:00,"2021","04","100001282567","A1250","Stoke Park","D5002","Advertising, Publicity & Promotion"
"GUILDFORD BOROUGH COUNCIL","Countryside and Parks Services","Waterlogic Gb Limited","952250","13/07/2021",30026492,108.12,0,"Hire","Water Cooler And Bottled Water Suppliers","II","BACS","None",2021-04-30 00:00:00,"2021","04","6197189","A1250","Stoke Park","D1001","Hire"
"GUILDFORD BOROUGH COUNCIL","Building Maintenance","Royal Mail Group Ltd (Chesterfield)","878030","20/07/2021",30026493,2.64,0,"Materials","","II","BACS","None",2021-06-23 00:00:00,"2021","04","9063166784","K1515","Building Maintenance","D2003","Materials"
"GUILDFORD BOROUGH COUNCIL","Building Maintenance","Davis Property Services GU Limited (CIS)","946970","06/07/2021",30026494,2986.05,0,"Services","Roofers","II","BACS","None",2021-06-28 00:00:00,"2021","04","2125","K1515","Building Maintenance","D6004","Services"
"GUILDFORD BOROUGH COUNCIL","Countryside and Parks Services","Lister Wilder Ltd","299800","27/07/2021",30026495,12,0,"Equipment","Emergency And Other Specialist Vehicle Dealers","II","BACS","None",2021-06-30 00:00:00,"2021","04","508777","A1100","Horticulture","D2001","Equipment"
"GUILDFORD BOROUGH COUNCIL","Countryside and Parks Services","Lister Wilder Ltd","299800","27/07/2021",30026495,120,0,"Equipment","Emergency And Other Specialist Vehicle Dealers","II","BACS","None",2021-06-30 00:00:00,"2021","04","508777","A1100","Horticulture","D2001","Equipment"
"GUILDFORD BOROUGH COUNCIL","Tenant Services","Southern Electric Gas","260350","13/07/2021",30026496,105.35,0,"Utilities","Mains Gas Suppliers","II","BACS","None",2021-06-10 00:00:00,"2021","04","8375305519/100621","M1151","Tenants Services (BHS)","B2001","Utilities"
"GUILDFORD BOROUGH COUNCIL","Property","Perfect Circle JV Ltd","919010","06/07/2021",30026497,23088.75,0,"Consultants Fees","Construction Project Management Consultants","II","BACS","None",2021-05-28 00:00:00,"2021","04","LNDM0035/005","P74040","Slyfield Area Regeneration Project","1221","Consultants Fees"
"GUILDFORD BOROUGH COUNCIL","Lead Specialist - Finance","Hays Specialist Recruitment Limited","156250","06/07/2021",30026498,1570.68,0,"Agency","Other Recruitment Agencies And Service Providers","II","BACS","None",2021-04-26 00:00:00,"2021","04","1011228898","G3565","Finance Specialists","A5191","Agency"
"GUILDFORD BOROUGH COUNCIL","Woking Road Depot","Brakes","101300","06/07/2021",30026499,409.51,0,"Catering","Other Food Suppliers","II","BACS","None",2020-07-29 00:00:00,"2021","04","9293261473","B4452","Woking Road Depot","D3001","Catering"
"GUILDFORD BOROUGH COUNCIL","Countryside and Parks Services","TMP (UK) Ltd","937520","22/07/2021",30026500,301.4,0,"Advertising, Publicity & Promotion","Advertising Agencies","II","BACS","None",2021-06-29 00:00:00,"2021","04","100001282568","A1250","Stoke Park","D5002","Advertising, Publicity & Promotion"
"GUILDFORD BOROUGH COUNCIL","Property","Perfect Circle JV Ltd","919010","06/07/2021",30026501,18111.11,0,"Consultants Fees","Construction Project Management Consultants","II","BACS","None",2021-05-28 00:00:00,"2021","04","LNDM0033/005","P74040","Slyfield Area Regeneration Project","1221","Consultants Fees"
"GUILDFORD BOROUGH COUNCIL","Vehicle Maintenance","Partsplusuk","984320","20/07/2021",30026503,209.2,0,"Repair And Maintenance Of Vehicles","Third Party Supplier","II","BACS","None",2021-06-23 00:00:00,"2021","04","16469025","K5551","Fleet Workshops","C1002","Repair And Maintenance Of Vehicles"
"GUILDFORD BOROUGH COUNCIL","Vehicle Maintenance","Partsplusuk","984320","20/07/2021",30026503,17.96,0,"Repair And Maintenance Of Vehicles","Third Party Supplier","II","BACS","None",2021-06-23 00:00:00,"2021","04","16469025","K5551","Fleet Workshops","C1002","Repair And Maintenance Of Vehicles"
"GUILDFORD BOROUGH COUNCIL","Executive - Miscellaneous","Montagu Evans LLP","952020","22/07/2021",30026504,3000,0,"Consultants Fees","Surveyors And Inspectors","II","BACS","None",2021-06-28 00:00:00,"2021","04","DVC220275","P79100","Wuv - Allotment Relocation","1221","Consultants Fees"
"GUILDFORD BOROUGH COUNCIL","Roads & Footpaths","Arcadis Consulting (UK) Limited","138190","08/07/2021",30026505,9000,0,"Consultants Fees","Other Construction Consultants","II","BACS","None",2021-05-31 00:00:00,"2021","04","14124623","P51012","Bridges - Walnut Bridge","1221","Consultants Fees"
"GUILDFORD BOROUGH COUNCIL","Roads & Footpaths","VolkerLaser Limited","1000198","06/07/2021",30026506,72313.95,0,"Consultants Fees","","II","BACS","None",2021-06-09 00:00:00,"2021","04","VL4806","P51012","Bridges - Walnut Bridge","1221","Consultants Fees"
"GUILDFORD BOROUGH COUNCIL","Corporate Services","Hallmark Vending Ltd","461450","31/08/2021",30026507,-38.75,0,"Catering","Other Vending Services Suppliers","II","BACS","None",2021-06-18 00:00:00,"2021","04","1822907-C","F1111","Corporate Services","D3001","Catering"
"GUILDFORD BOROUGH COUNCIL","Inventories","Guildford Lock And Safe Limited","229400","06/07/2021",30026508,65.75,0,"Purchases","Keys And Locksmiths","II","BACS","None",2021-05-24 00:00:00,"2021","04","34698","I01001","Stocks","2591","Purchases"
"GUILDFORD BOROUGH COUNCIL","Building Maintenance","Cinnamon Construction Limited (CIS)","921860","06/07/2021",30026509,3481,0,"Services","General Builders","II","BACS","None",2021-06-28 00:00:00,"2021","04","X0068127/27/280621","K1515","Building Maintenance","D6004","Services"
"GUILDFORD BOROUGH COUNCIL","Inventories","Screwfix (Trade UK - Screwfix / B&Q)","650550","13/07/2021",30026510,7.08,0,"Purchases","Do-It-Yourself (Diy) Stores","II","BACS","None",2021-06-16 00:00:00,"2021","04","1171059507","I01001","Stocks","2591","Purchases"
"GUILDFORD BOROUGH COUNCIL","Guildford House","Gidden Place Ltd","215900","20/07/2021",30026511,250,0,"Equipment","Graphic Design And Creative Agencies","II","BACS","None",2021-06-25 00:00:00,"2021","04","89527","A4511","Guildford House Administration","D2001","Equipment"
"GUILDFORD BOROUGH COUNCIL","Inventories","Saint-Gobain Building Distribution Limited (Jewson)","271200","06/07/2021",30026512,4245.05,0,"Purchases","Builders Merchants","II","BACS","None",2021-05-09 00:00:00,"2021","04","0652/00791838","I01001","Stocks","2591","Purchases"
"GUILDFORD BOROUGH COUNCIL","Vehicle Maintenance","Fuller Tyres Limited","882220","15/07/2021",30026513,153,0,"Repair And Maintenance Of Vehicles","Other Vehicle Equipment Providers","II","BACS","None",2021-06-21 00:00:00,"2021","04","FTI-31025","K5551","Fleet Workshops","C1002","Repair And Maintenance Of Vehicles"
"GUILDFORD BOROUGH COUNCIL","Environmental Works","Gristman Tree Surgery Limited","342640","22/07/2021",30026514,275,0,"Grounds Maintenance","Tree Work Contractors","II","BACS","None",2021-06-29 00:00:00,"2021","04","02391","M4615","Env Wks To Estate (BHS)","B6001","Grounds Maintenance"
"GUILDFORD BOROUGH COUNCIL","Vehicle Maintenance","Certas Energy UK Limited","759300","06/07/2021",30026515,14926,0,"Vehicle Operating Costs","Oil Fuel Suppliers","II","BACS","None",2021-06-11 00:00:00,"2021","04","5857305","K5551","Fleet Workshops","C1001","Vehicle Operating Costs"
"GUILDFORD BOROUGH COUNCIL","Vehicle Maintenance","Fuller Tyres Limited","882220","20/07/2021",30026516,26,0,"Repair And Maintenance Of Vehicles","Other Vehicle Equipment Providers","II","BACS","None",2021-06-25 00:00:00,"2021","04","FTI-31155","K5551","Fleet Workshops","C1002","Repair And Maintenance Of Vehicles"
"GUILDFORD BOROUGH COUNCIL","Day Services","Chambers Waste Management Plc","127500","06/07/2021",30026517,211,0,"Waste Removal","Other Waste Disposal Suppliers","II","BACS","None",2021-04-11 00:00:00,"2021","04","P472526","C8100","Community Hubs","D6010","Waste Removal"
"GUILDFORD BOROUGH COUNCIL","Vehicle Maintenance","Fuller Tyres Limited","882220","15/07/2021",30026518,97,0,"Repair And Maintenance Of Vehicles","Other Vehicle Equipment Providers","II","BACS","None",2021-06-21 00:00:00,"2021","04","FTI-31032","K5551","Fleet Workshops","C1002","Repair And Maintenance Of Vehicles"
"GUILDFORD BOROUGH COUNCIL","Building Maintenance","C A Moore (CIS)","113100","06/07/2021",30026520,1431,0,"Services","Joiners And Carpenters","II","BACS","None",2021-06-25 00:00:00,"2021","04","479","K1515","Building Maintenance","D6004","Services"
"GUILDFORD BOROUGH COUNCIL","Building Maintenance","C A Moore (CIS)","113100","06/07/2021",30026520,849,0,"Materials","Joiners And Carpenters","II","BACS","None",2021-06-25 00:00:00,"2021","04","479","K1515","Building Maintenance","D2003","Materials"
"GUILDFORD BOROUGH COUNCIL","Vehicle Maintenance","Rossetts (UK) Ltd","720900","22/07/2021",30026521,217.13,0,"Repair And Maintenance Of Vehicles","Truck And Bus Dealers","II","BACS","None",2021-06-29 00:00:00,"2021","04","52528995","K5551","Fleet Workshops","C1002","Repair And Maintenance Of Vehicles"
"GUILDFORD BOROUGH COUNCIL","Building Maintenance","Cinnamon Construction Limited (CIS)","921860","06/07/2021",30026522,4395,0,"Services","General Builders","II","BACS","None",2021-06-21 00:00:00,"2021","04","262021","K1515","Building Maintenance","D6004","Services"
"GUILDFORD BOROUGH COUNCIL","Inventories","Akw Medi-Care Limited","178400","08/07/2021",30026523,243.78,0,"Purchases","Mobility Disability Equipment Suppliers","II","BACS","None",2021-06-15 00:00:00,"2021","04","1935344","I01001","Stocks","2591","Purchases"
"GUILDFORD BOROUGH COUNCIL","Vehicle Maintenance","F G Barnes & Sons Ltd T/A Barnes Daf","882000","20/07/2021",30026524,192.44,0,"Repair And Maintenance Of Vehicles","Car And Van Dealers","II","BACS","None",2021-06-23 00:00:00,"2021","04","10312271","K5551","Fleet Workshops","C1002","Repair And Maintenance Of Vehicles"
"GUILDFORD BOROUGH COUNCIL","Development Control","Alexander Advertising (International) Ltd","454730","06/07/2021",30026525,326.94,0,"Advertising, Publicity & Promotion","Full Service Marketing Agencies","II","BACS","None",2021-06-11 00:00:00,"2021","04","148R22","D5100","Development Control - Fee Earn","D5002","Advertising, Publicity & Promotion"
"GUILDFORD BOROUGH COUNCIL","Millmead House","Berendsen Workwear Ltd T/A Elis","817300","27/07/2021",30026526,637.47,0,"Materials","Linen And Blanket Suppliers","II","BACS","None",2021-06-01 00:00:00,"2021","04","SN3380685","G7511","Millmead House","D2003","Materials"
"GUILDFORD BOROUGH COUNCIL","Resources Caseworker","Berendsen Workwear Ltd T/A Elis","817300","27/07/2021",30026526,637.47,0,"Materials","Linen And Blanket Suppliers","II","BACS","None",2021-06-01 00:00:00,"2021","04","SN3380685","G7511","Millmead House","D2003","Materials"
"GUILDFORD BOROUGH COUNCIL","Building Maintenance","D G Property Refurbishment Ltd","713710","06/07/2021",30026527,1740,0,"Services","Restoration Specialists","II","BACS","None",2021-06-28 00:00:00,"2021","04","X0068124/114/280621","K1515","Building Maintenance","D6004","Services"
"GUILDFORD BOROUGH COUNCIL","Building Maintenance","D G Property Refurbishment Ltd","713710","06/07/2021",30026527,1800,0,"Materials","Restoration Specialists","II","BACS","None",2021-06-28 00:00:00,"2021","04","X0068124/114/280621","K1515","Building Maintenance","D2003","Materials"
"GUILDFORD BOROUGH COUNCIL","Vehicle Maintenance","HTS Spares Limited","928730","22/07/2021",30026528,51.66,0,"Repair And Maintenance Of Vehicles","Machinery And Engineering Parts Suppliers","II","BACS","None",2021-06-29 00:00:00,"2021","04","398738","K5551","Fleet Workshops","C1002","Repair And Maintenance Of Vehicles"
"GUILDFORD BOROUGH COUNCIL","Development Control","Alexander Advertising (International) Ltd","454730","13/07/2021",30026529,544.89,0,"Advertising, Publicity & Promotion","Full Service Marketing Agencies","II","BACS","None",2021-06-18 00:00:00,"2021","04","328R22","D5100","Development Control - Fee Earn","D5002","Advertising, Publicity & Promotion"
"GUILDFORD BOROUGH COUNCIL","Major Projects","The Oyster Partnership Ltd","814220","13/07/2021",30026530,2911.76,0,"Agency","Other Recruitment Agencies And Service Providers","II","BACS","None",2021-06-16 00:00:00,"2021","04","1097585","F5530","Major Projects","A5191","Agency"
"GUILDFORD BOROUGH COUNCIL","Vehicle Maintenance","Fuller Tyres Limited","882220","15/07/2021",30026531,57,0,"Repair And Maintenance Of Vehicles","Other Vehicle Equipment Providers","II","BACS","None",2021-06-21 00:00:00,"2021","04","FTI-31031","K5551","Fleet Workshops","C1002","Repair And Maintenance Of Vehicles"
"GUILDFORD BOROUGH COUNCIL","Vehicle Maintenance","F G Barnes & Sons Ltd T/A Barnes Daf","882000","22/07/2021",30026532,273.72,0,"Repair And Maintenance Of Vehicles","Car And Van Dealers","II","BACS","None",2021-06-29 00:00:00,"2021","04","10312302","K5551","Fleet Workshops","C1002","Repair And Maintenance Of Vehicles"
"GUILDFORD BOROUGH COUNCIL","Executive - Miscellaneous","The Oyster Partnership Ltd","814220","13/07/2021",30026533,2900,0,"Agency Staff","Other Recruitment Agencies And Service Providers","II","BACS","None",2021-06-16 00:00:00,"2021","04","1097583","P79023","Guild Town Centre Regeneration","1222","Agency Staff"
"GUILDFORD BOROUGH COUNCIL","Street Cleansing","Arton Monoseal Ltd","775190","22/07/2021",30026534,786,0,"Waste Removal","Asbestos Removal Service Providers","II","BACS","None",2021-06-29 00:00:00,"2021","04","INV-5298","K4551","Street Cleansing","D6010","Waste Removal"
"GUILDFORD BOROUGH COUNCIL","Inventories","Saint-Gobain Building Distribution Limited (Jewson)","271200","06/07/2021",30026536,-273.2,0,"Purchases","Builders Merchants","II","BACS","None",2021-06-10 00:00:00,"2021","04","0625/00106174","I01001","Stocks","2591","Purchases"
"GUILDFORD BOROUGH COUNCIL","Vehicle Maintenance","F G Barnes & Sons Ltd T/A Barnes Daf","882000","15/07/2021",30026537,133.5,0,"Repair And Maintenance Of Vehicles","Car And Van Dealers","II","BACS","None",2021-06-22 00:00:00,"2021","04","10312264","K5551","Fleet Workshops","C1002","Repair And Maintenance Of Vehicles"
"GUILDFORD BOROUGH COUNCIL","Digital Services","Goss Interactive Ltd","577320","06/07/2021",30026538,319,0,"ICT Software","Digital Marketing Service Providers","II","BACS","None",2021-05-27 00:00:00,"2021","04","19944","F1141","Internet Site Access","D7002","ICT Software"
"GUILDFORD BOROUGH COUNCIL","Building Maintenance","Surrey County Windows Ltd","686720","06/07/2021",30026539,1402,0,"Services","Window And Door Installers","II","BACS","None",2021-06-25 00:00:00,"2021","04","27","K1515","Building Maintenance","D6004","Services"
"GUILDFORD BOROUGH COUNCIL","Building Maintenance","Surrey County Windows Ltd","686720","06/07/2021",30026539,635.88,0,"Materials","Window And Door Installers","II","BACS","None",2021-06-25 00:00:00,"2021","04","27","K1515","Building Maintenance","D2003","Materials"
"GUILDFORD BOROUGH COUNCIL","Tenant Services","Southern Electric (Business Accounts)","760100","06/07/2021",30026540,1438.8,0,"Utilities","Mains Electricity Suppliers","II","BACS","None",2021-06-11 00:00:00,"2021","04","9094234515/110621","M1151","Tenants Services (BHS)","B2001","Utilities"
"GUILDFORD BOROUGH COUNCIL","Building Maintenance","Chambers Waste Management Plc","127500","13/07/2021",30026541,201.75,0,"Materials","Other Waste Disposal Suppliers","II","BACS","None",2021-06-19 00:00:00,"2021","04","P486681","K1515","Building Maintenance","D2003","Materials"
"GUILDFORD BOROUGH COUNCIL","Community Development","IRM Trading Limited","1000447","08/07/2021",30026542,700,0,"Staff Costs","","II","BACS","None",2021-06-14 00:00:00,"2021","04","INV000010743","F1127","Community Development","A7100","Staff Costs"
"GUILDFORD BOROUGH COUNCIL","Roads & Footpaths","Arcadis Consulting (UK) Limited","138190","08/07/2021",30026543,27000,0,"Consultants Fees","Other Construction Consultants","II","BACS","None",2021-05-31 00:00:00,"2021","04","14124622","P51012","Bridges - Walnut Bridge","1221","Consultants Fees"
"GUILDFORD BOROUGH COUNCIL","Housing Benefits","Civica UK Ltd","963100","13/07/2021",30026544,13149.53,0,"Agency","Computer Systems Integrators","II","BACS","None",2021-06-17 00:00:00,"2021","04","C/BN219259","C4511","Housing Benefits Admin.","A5191","Agency"
"GUILDFORD BOROUGH COUNCIL","Countryside and Parks Services","Manor Farm Nurseries","1000369","06/07/2021",30026545,627.99,0,"Materials","","II","BACS","None",2021-04-16 00:00:00,"2021","04","16569","A1250","Stoke Park","D2003","Materials"
"GUILDFORD BOROUGH COUNCIL","Countryside and Parks Services","Manor Farm Nurseries","1000369","06/07/2021",30026545,261.66,0,"Materials","","II","BACS","None",2021-04-16 00:00:00,"2021","04","16569","A1100","Horticulture","D2003","Materials"
"GUILDFORD BOROUGH COUNCIL","Countryside and Parks Services","Manor Farm Nurseries","1000369","06/07/2021",30026545,157,0,"Materials","","II","BACS","None",2021-04-16 00:00:00,"2021","04","16569","A1232","Sutherland Memorial Park","D2003","Materials"
"GUILDFORD BOROUGH COUNCIL","Markets","Gidden Place Ltd","215900","20/07/2021",30026546,75,0,"Printing, Photocopying And Reprographics External","Graphic Design And Creative Agencies","II","BACS","None",2021-06-25 00:00:00,"2021","04","89525","F5550","Farmers Market","D5005","Printing, Photocopying And Reprographics External"
"GUILDFORD BOROUGH COUNCIL","Vehicle Maintenance","Fuller Tyres Limited","882220","15/07/2021",30026547,123,0,"Repair And Maintenance Of Vehicles","Other Vehicle Equipment Providers","II","BACS","None",2021-06-21 00:00:00,"2021","04","FTI-31034","K5551","Fleet Workshops","C1002","Repair And Maintenance Of Vehicles"
"GUILDFORD BOROUGH COUNCIL","Vehicle Maintenance","Fuller Tyres Limited","882220","15/07/2021",30026548,117,0,"Repair And Maintenance Of Vehicles","Other Vehicle Equipment Providers","II","BACS","None",2021-06-21 00:00:00,"2021","04","FTI-31033","K5551","Fleet Workshops","C1002","Repair And Maintenance Of Vehicles"
"GUILDFORD BOROUGH COUNCIL","Business Improvement","Unit4 Business Software Ltd","975910","22/07/2021",30026549,7500,0,"Consultancy","","II","BACS","None",2021-06-28 00:00:00,"2021","04","20000012579","G3531","Future Guildford","D6001","Consultancy"
"GUILDFORD BOROUGH COUNCIL","Audit Management","Unit4 Business Software Ltd","975910","22/07/2021",30026549,7500,0,"Consultancy","","II","BACS","None",2021-06-28 00:00:00,"2021","04","20000012579","G3531","Future Guildford","D6001","Consultancy"
"GUILDFORD BOROUGH COUNCIL","Vehicle Maintenance","F G Barnes & Sons Ltd T/A Barnes Daf","882000","20/07/2021",30026550,34.75,0,"Repair And Maintenance Of Vehicles","Car And Van Dealers","II","BACS","None",2021-06-25 00:00:00,"2021","04","10312287","K5551","Fleet Workshops","C1002","Repair And Maintenance Of Vehicles"
"GUILDFORD BOROUGH COUNCIL","Digital Services","Goss Interactive Ltd","577320","06/07/2021",30026551,850,0,"ICT Software","Digital Marketing Service Providers","II","BACS","None",2021-05-27 00:00:00,"2021","04","19942","F1141","Internet Site Access","D7002","ICT Software"
"GUILDFORD BOROUGH COUNCIL","Homelessness Support","Martin Conway","442100","15/07/2021",30026552,110,0,"Emergency Accomodation","","II","BACS","None",2021-06-21 00:00:00,"2021","04","74433","C3311","Homelessness","D8009","Emergency Accomodation"
"GUILDFORD BOROUGH COUNCIL","Building Maintenance","RGB Decorating Limited (CIS)","769600","06/07/2021",30026553,5300,0,"Services","Painters And Decorators","II","BACS","None",2021-06-24 00:00:00,"2021","04","82021","K1515","Building Maintenance","D6004","Services"
"GUILDFORD BOROUGH COUNCIL","Vehicle Maintenance","IC Autocare Limited","938530","20/07/2021",30026554,974.4,0,"Repair And Maintenance Of Vehicles","Other Retailers","II","BACS","None",2021-06-23 00:00:00,"2021","04","0206882","K5551","Fleet Workshops","C1002","Repair And Maintenance Of Vehicles"
"GUILDFORD BOROUGH COUNCIL","Vehicle Maintenance","IC Autocare Limited","938530","20/07/2021",30026554,75,0,"Repair And Maintenance Of Vehicles","Other Retailers","II","BACS","None",2021-06-23 00:00:00,"2021","04","0206882","K5551","Fleet Workshops","C1002","Repair And Maintenance Of Vehicles"
"GUILDFORD BOROUGH COUNCIL","Vehicle Maintenance","IC Autocare Limited","938530","20/07/2021",30026554,365.2,0,"Repair And Maintenance Of Vehicles","Other Retailers","II","BACS","None",2021-06-23 00:00:00,"2021","04","0206882","K5551","Fleet Workshops","C1002","Repair And Maintenance Of Vehicles"
"GUILDFORD BOROUGH COUNCIL","Car Leasing Holding Code (Service)","Alphabet (GB) Ltd","878400","06/07/2021",30026555,212.1,0,"Car Leasing","Fleet Management Agencies","II","BACS","None",2021-04-30 00:00:00,"2021","04","80264121","G1131","Car Leasing Holding Code","C3002","Car Leasing"
"GUILDFORD BOROUGH COUNCIL","Vehicle Maintenance","Southern Electromotive Distribution Ltd","760300","20/07/2021",30026556,156.52,0,"Repair And Maintenance Of Vehicles","Car And Van Servicing And Maintenance Providers","II","BACS","None",2021-06-23 00:00:00,"2021","04","413184","K5551","Fleet Workshops","C1002","Repair And Maintenance Of Vehicles"
"GUILDFORD BOROUGH COUNCIL","Lead Specialist - Finance","Hays Specialist Recruitment Limited","156250","22/07/2021",30026557,1297.16,0,"Agency","Other Recruitment Agencies And Service Providers","II","BACS","None",2021-06-28 00:00:00,"2021","04","1011432058","G3593","Procurement Services","A5191","Agency"
"GUILDFORD BOROUGH COUNCIL","Inventories","Akw Medi-Care Limited","178400","13/07/2021",30026558,460.3,0,"Purchases","Mobility Disability Equipment Suppliers","II","BACS","None",2021-06-16 00:00:00,"2021","04","1935810","I01001","Stocks","2591","Purchases"
"GUILDFORD BOROUGH COUNCIL","Tenant Services","EDF Energy","656190","15/07/2021",30026559,90.73,0,"Utilities","Mains Electricity Suppliers","II","BACS","None",2021-06-21 00:00:00,"2021","04","671147494111SCCMCF","M1151","Tenants Services (BHS)","B2001","Utilities"
"GUILDFORD BOROUGH COUNCIL","Inventories","M E Duffell Ltd","510200","13/07/2021",30026560,116.7,0,"Purchases","Keys And Locksmiths","II","BACS","None",2021-06-18 00:00:00,"2021","04","I2247020","I01001","Stocks","2591","Purchases"
"GUILDFORD BOROUGH COUNCIL","Building Control","JJ Surveying Ltd","877460","22/07/2021",30026561,473.38,0,"Consultancy","Surveyors And Inspectors","II","BACS","None",2021-06-28 00:00:00,"2021","04","1328","D5700","Building Control - Fee","D6001","Consultancy"
"GUILDFORD BOROUGH COUNCIL","Inventories","Saint-Gobain Building Distribution Limited (Jewson)","271200","06/07/2021",30026562,198.4,0,"Purchases","Builders Merchants","II","BACS","None",2021-06-13 00:00:00,"2021","04","0652/00792470","I01001","Stocks","2591","Purchases"
"GUILDFORD BOROUGH COUNCIL","Building Maintenance","R Moore","413190","06/07/2021",30026563,1600.5,0,"Services","","II","BACS","None",2021-06-23 00:00:00,"2021","04","407","K1515","Building Maintenance","D6004","Services"
"GUILDFORD BOROUGH COUNCIL","Building Maintenance","R Moore","413190","06/07/2021",30026563,499.5,0,"Materials","","II","BACS","None",2021-06-23 00:00:00,"2021","04","407","K1515","Building Maintenance","D2003","Materials"
"GUILDFORD BOROUGH COUNCIL","Property","Lambert Smith Hampton Group Limited","291600","22/07/2021",30026564,1500,0,"Consultants Fees","Outsourced Building Management Service Providers","II","BACS","None",2021-06-28 00:00:00,"2021","04","ARINV/00458722","P74064","The Billings Roof","1221","Consultants Fees"
"GUILDFORD BOROUGH COUNCIL","Income Collection","Royal Mail Group Ltd (Chesterfield)","878030","13/07/2021",30026565,860.37,0,"Postage","","II","BACS","None",2021-06-16 00:00:00,"2021","04","9063134143","M1121","Income Collection (BHS)","D5003","Postage"
"GUILDFORD BOROUGH COUNCIL","Building Maintenance","RGB Decorating Limited (CIS)","769600","06/07/2021",30026566,50,0,"Services","Painters And Decorators","II","BACS","None",2021-06-24 00:00:00,"2021","04","X0068120/9/240621","K1515","Building Maintenance","D6004","Services"
"GUILDFORD BOROUGH COUNCIL","Building Maintenance","A Star Maintenance Contractors Ltd (CIS)","969700","06/07/2021",30026567,9762.6,0,"Services","Property Maintenance Contractors","II","BACS","None",2021-06-25 00:00:00,"2021","04","13970","K1515","Building Maintenance","D6004","Services"
"GUILDFORD BOROUGH COUNCIL","Grants to Voluntary Organisations","Home Support Services  (Guildford) Cic","234100","13/07/2021",30026568,10000,0,"Grants And Subscriptions","Home Care Service Providers","II","BACS","None",2021-06-29 00:00:00,"2021","04","36-2021/1","C3111","Community Grant Scheme","D9001","Grants And Subscriptions"
"GUILDFORD BOROUGH COUNCIL","Vehicle Maintenance","Partsplusuk","984320","20/07/2021",30026569,227.16,0,"Repair And Maintenance Of Vehicles","Third Party Supplier","II","BACS","None",2021-06-23 00:00:00,"2021","04","16468404","K5551","Fleet Workshops","C1002","Repair And Maintenance Of Vehicles"
"GUILDFORD BOROUGH COUNCIL","Lead Specialist - HR","Comensura Ltd","324350","22/07/2021",30026570,17729.08,0,"Consultancy","Other Recruitment Agencies And Service Providers","II","BACS","None",2021-06-29 00:00:00,"2021","04","1068727","G2555","HR Services","D6001","Consultancy"
"GUILDFORD BOROUGH COUNCIL","Property","The Oyster Partnership Ltd","814220","13/07/2021",30026571,4400,0,"Agency Staff","Other Recruitment Agencies And Service Providers","II","BACS","None",2021-06-16 00:00:00,"2021","04","1097584","P74040","Slyfield Area Regeneration Project","1222","Agency Staff"
"GUILDFORD BOROUGH COUNCIL","Inventories","Akw Medi-Care Limited","178400","08/07/2021",30026572,99.62,0,"Purchases","Mobility Disability Equipment Suppliers","II","BACS","None",2021-06-15 00:00:00,"2021","04","1935343","I01001","Stocks","2591","Purchases"
"GUILDFORD BOROUGH COUNCIL","IT Renewals","Gravitas Recruitment Group","1000035","06/07/2021",30026573,3630,0,"Miscellaneous Expenses","","II","BACS","None",2021-06-28 00:00:00,"2021","04","INV169428","P81002","IT Renewals Reserve Funded General","1444","Miscellaneous Expenses"
"GUILDFORD BOROUGH COUNCIL","Homelessness Support","Guildford Action","809270","06/07/2021",30026575,10000,0,"Grants And Subscriptions","Community Services Providers","II","BACS","None",2021-02-24 00:00:00,"2021","04","809270/13/240221","C3311","Homelessness","D9001","Grants And Subscriptions"
"GUILDFORD BOROUGH COUNCIL","Inventories","M E Duffell Ltd","510200","06/07/2021",30026576,-4.2,0,"Purchases","Keys And Locksmiths","II","BACS","None",2021-06-23 00:00:00,"2021","04","CN2249132","I01001","Stocks","2591","Purchases"
"GUILDFORD BOROUGH COUNCIL","Vehicle Maintenance","Rossetts (UK) Ltd","720900","22/07/2021",30026578,49.95,0,"Repair And Maintenance Of Vehicles","Truck And Bus Dealers","II","BACS","None",2021-06-28 00:00:00,"2021","04","52528918","K5551","Fleet Workshops","C1002","Repair And Maintenance Of Vehicles"
"GUILDFORD BOROUGH COUNCIL","Building Maintenance","Cinnamon Construction Limited (CIS)","921860","06/07/2021",30026579,6451.5,0,"Services","General Builders","II","BACS","None",2021-06-28 00:00:00,"2021","04","62","K1515","Building Maintenance","D6004","Services"
"GUILDFORD BOROUGH COUNCIL","Climate Change","APSE","105080","06/07/2021",30026580,6500,0,"Consultancy","Trade Associations And Regulatory Bodies","II","BACS","None",2021-03-15 00:00:00,"2021","04","2021/2107","B3911","Climate Change Strategy","D6001","Consultancy"
"GUILDFORD BOROUGH COUNCIL","Vehicle Maintenance","Fuller Tyres Limited","882220","15/07/2021",30026581,40,0,"Repair And Maintenance Of Vehicles","Other Vehicle Equipment Providers","II","BACS","None",2021-06-21 00:00:00,"2021","04","FTI-31030","K5551","Fleet Workshops","C1002","Repair And Maintenance Of Vehicles"
"GUILDFORD BOROUGH COUNCIL","Car Leasing Holding Code (Service)","Alphabet (GB) Ltd","878400","06/07/2021",30026582,219.17,0,"Car Leasing","Fleet Management Agencies","II","BACS","None",2021-03-31 00:00:00,"2021","04","80262493","G1131","Car Leasing Holding Code","C3002","Car Leasing"
"GUILDFORD BOROUGH COUNCIL","Crematorium","Town & Country Memorials  Ltd","826500","20/07/2021",30026583,101.2,0,"Stock For Re-Sale","Third Party Supplier","II","BACS","None",2021-06-24 00:00:00,"2021","04","29567","A1500","Crematorium","D2004","Stock For Re-Sale"
"GUILDFORD BOROUGH COUNCIL","Private Sector Housing Maintenance","BJC Design (Southeast) Ltd","938540","15/07/2021",30026584,319.5,0,"Services","Surveyors And Inspectors","II","BACS","None",2021-06-22 00:00:00,"2021","04","INV000694","C5132","Care And Repair (Detr)","D6004","Services"
"GUILDFORD BOROUGH COUNCIL","Car Leasing Holding Code (Service)","Alphabet (GB) Ltd","878400","06/07/2021",30026585,219.17,0,"Car Leasing","Fleet Management Agencies","II","BACS","None",2021-05-31 00:00:00,"2021","04","80265687","G1131","Car Leasing Holding Code","C3002","Car Leasing"
"GUILDFORD BOROUGH COUNCIL","Inventories","UK Plumbing Supplies T/AS Graham the Plumbers Merchant","220400","06/07/2021",30026587,4334.05,0,"Purchases","Plumbing, Heating And Ac (Hvac) Equipment Suppliers","II","BACS","None",2021-06-13 00:00:00,"2021","04","0357/00792419","I01001","Stocks","2591","Purchases"
"GUILDFORD BOROUGH COUNCIL","Grants","SCBS (Grants only)","729250","20/07/2021",30026588,4558.89,0,"Outgoing VAT on sales to EU Member states","General Builders","II","BACS","None",2021-06-25 00:00:00,"2021","04","1421","N51008","Mandatory DFG","1311","Outgoing VAT on sales to EU Member states"
"GUILDFORD BOROUGH COUNCIL","Grants","SCBS (Grants only)","729250","20/07/2021",30026588,4558.89,0,"Grants To Private Owners","General Builders","II","BACS","None",2021-06-25 00:00:00,"2021","04","1421","N51008","Mandatory DFG","1311","Grants To Private Owners"
"GUILDFORD BOROUGH COUNCIL","Grants","SCBS (Grants only)","729250","20/07/2021",30026588,4558.89,0,"Outgoing VAT on sales to EU Member states","General Builders","II","BACS","None",2021-06-25 00:00:00,"2021","04","1421","N51008","Mandatory DFG","1311","Outgoing VAT on sales to EU Member states"
"GUILDFORD BOROUGH COUNCIL","Other Short Term Creditors","SCBS (Grants only)","729250","20/07/2021",30026589,1182.57,0,"Payments","General Builders","II","BACS","None",2021-06-25 00:00:00,"2021","04","1422","L02088","Care & Repair Client Fund","2489","Payments"
"GUILDFORD BOROUGH COUNCIL","Millmead House","Chartered Management Institute","808300","27/07/2021",30026590,183,0,"Materials","Trade Associations And Regulatory Bodies","II","BACS","None",2021-07-01 00:00:00,"2021","04","3583532","G7511","Millmead House","D2003","Materials"
"GUILDFORD BOROUGH COUNCIL","Resources Caseworker","Chartered Management Institute","808300","27/07/2021",30026590,183,0,"Materials","Trade Associations And Regulatory Bodies","II","BACS","None",2021-07-01 00:00:00,"2021","04","3583532","G7511","Millmead House","D2003","Materials"
"GUILDFORD BOROUGH COUNCIL","Countryside and Parks Services","Tudor (UK) Ltd T/A Tudor Environmental","950920","27/07/2021",30026591,66.75,0,"Equipment","Gardening Equipment Suppliers","II","BACS","None",2021-06-30 00:00:00,"2021","04","IN0135528","A1100","Horticulture","D2001","Equipment"
"GUILDFORD BOROUGH COUNCIL","Countryside and Parks Services","Barnsfold Nurseries Ltd","323440","27/07/2021",30026592,1856.38,0,"Materials","Garden Centres And Nurseries","II","BACS","None",2021-06-30 00:00:00,"2021","04","90444","A1100","Horticulture","D2003","Materials"
"GUILDFORD BOROUGH COUNCIL","Building Maintenance","Revive Services (CIS)","846250","06/07/2021",30026593,2760,0,"Services","Other Cleaning And Janitorial Service Providers","II","BACS","None",2021-06-28 00:00:00,"2021","04","X0068125/116/280621","K1515","Building Maintenance","D6004","Services"
"GUILDFORD BOROUGH COUNCIL","Off Street Parking","Nilfisk Ltd","232730","06/07/2021",30026594,164,0,"Services","Cleaning And Janitorial Equipment And Supplies Providers","II","BACS","None",2021-05-25 00:00:00,"2021","04","3024566271","B2216","General Upkeep- Urban Car Pks","D6004","Services"
"GUILDFORD BOROUGH COUNCIL","Industrial Estates","A.S.L. Ltd (CIS)","667000","06/07/2021",30026595,840,0,"Asset Maintenance","Sewerage And Drainage Service Providers","II","BACS","None",2021-07-01 00:00:00,"2021","04","69083","B5332","Lysons Avenue Small Units - Rechargeable","B1001","Asset Maintenance"
"GUILDFORD BOROUGH COUNCIL","Inventories","FASTSIGNS (Guildford) Ltd","199300","13/07/2021",30026596,416.25,0,"Purchases","Building Signage Suppliers","II","BACS","None",2021-06-17 00:00:00,"2021","04","858--17680","I01001","Stocks","2591","Purchases"
"GUILDFORD BOROUGH COUNCIL","Crematorium","The Yaboo Co Ltd","792870","22/07/2021",30026597,667,0,"Services","Media Production Agencies","II","BACS","None",2021-06-28 00:00:00,"2021","04","24216","A1500","Crematorium","D6004","Services"
"GUILDFORD BOROUGH COUNCIL","Inventories","Height Safety (Inspections & Solutions) Ltd","1000214","06/07/2021",30026598,389,0,"Purchases","","II","BACS","None",2021-05-20 00:00:00,"2021","04","1083","I01001","Stocks","2591","Purchases"
"GUILDFORD BOROUGH COUNCIL","Affordable Housing","Vivid Resourcing Limited","856800","27/07/2021",30026599,1926,0,"Agency","Other Recruitment Agencies And Service Providers","II","BACS","None",2021-06-30 00:00:00,"2021","04","61574","C4111","Affordable Housing Development","A5191","Agency"
"GUILDFORD BOROUGH COUNCIL","Affordable Hsg - Site Prep Etc","Richard Foakes","711600","06/07/2021",30026600,1070,0,"Consultants Fees","Sewerage And Drainage Service Providers","II","BACS","None",2021-06-30 00:00:00,"2021","04","9762","N55023","Clover Road Garages","1221","Consultants Fees"
"GUILDFORD BOROUGH COUNCIL","Affordable Hsg - Site Prep Etc","Richard Foakes","711600","06/07/2021",30026600,180,0,"Consultants Fees","Sewerage And Drainage Service Providers","II","BACS","None",2021-06-30 00:00:00,"2021","04","9762","N55023","Clover Road Garages","1221","Consultants Fees"
"GUILDFORD BOROUGH COUNCIL","Countryside and Parks Services","SDK Environmental Ltd","800110","27/07/2021",30026601,1675,0,"Materials","Pest And Vermin Control Service Providers","II","BACS","None",2021-06-30 00:00:00,"2021","04","46181","A1250","Stoke Park","D2003","Materials"
"GUILDFORD BOROUGH COUNCIL","Crematorium","The Yaboo Co Ltd","792870","27/07/2021",30026602,960,0,"Services","Media Production Agencies","II","BACS","None",2021-06-30 00:00:00,"2021","04","56983","A1500","Crematorium","D6004","Services"
"GUILDFORD BOROUGH COUNCIL","Crematorium","The Yaboo Co Ltd","792870","27/07/2021",30026603,588,0,"Services","Media Production Agencies","II","BACS","None",2021-06-30 00:00:00,"2021","04","56980","A1500","Crematorium","D6004","Services"
"GUILDFORD BOROUGH COUNCIL","Inventories","MAGNET CKS","1000216","13/07/2021",30026604,282.08,0,"Purchases","","II","BACS","None",2021-06-19 00:00:00,"2021","04","58740164","I01001","Stocks","2591","Purchases"
"GUILDFORD BOROUGH COUNCIL","Inventories","Howden Joinery Limited","247800","22/07/2021",30026605,59.58,0,"Purchases","Joiners And Carpenters","II","BACS","None",2021-06-29 00:00:00,"2021","04","971/0205115","I01001","Stocks","2591","Purchases"
"GUILDFORD BOROUGH COUNCIL","Corporate Health and Safety","Ideagen Gael Ltd","1000101","20/07/2021",30026606,4796.29,0,"Staff Costs","","II","BACS","None",2021-06-24 00:00:00,"2021","04","SIEK10346","G2525","Health And Safety","A7100","Staff Costs"
"GUILDFORD BOROUGH COUNCIL","Street Cleansing","CTG Enterprises Ltd","795800","27/07/2021",30026607,1186.6,0,"Services","Other Cleaning And Janitorial Service Providers","II","BACS","None",2021-07-01 00:00:00,"2021","04","GU1795GBC","K4551","Street Cleansing","D6004","Services"
"GUILDFORD BOROUGH COUNCIL","Executive - Miscellaneous","Perfect Circle JV Ltd","919010","08/07/2021",30026608,10424.9,0,"Consultants Fees","Construction Project Management Consultants","II","BACS","None",2021-02-15 00:00:00,"2021","04","28450715","P79100","Wuv - Allotment Relocation","1221","Consultants Fees"
"GUILDFORD BOROUGH COUNCIL","Development Control","Vivid Resourcing Limited","856800","27/07/2021",30026609,1643,0,"Agency","Other Recruitment Agencies And Service Providers","II","BACS","None",2021-06-30 00:00:00,"2021","04","61575","D5200","Development Control Non Fee","A5191","Agency"
"GUILDFORD BOROUGH COUNCIL","Vehicle Maintenance","Lister Wilder Ltd","299800","27/07/2021",30026610,762.28,0,"Repair And Maintenance Of Vehicles","Emergency And Other Specialist Vehicle Dealers","II","BACS","None",2021-06-30 00:00:00,"2021","04","508787","K5551","Fleet Workshops","C1002","Repair And Maintenance Of Vehicles"
"GUILDFORD BOROUGH COUNCIL","Vehicle Maintenance","Lister Wilder Ltd","299800","27/07/2021",30026610,76.23,0,"Repair And Maintenance Of Vehicles","Emergency And Other Specialist Vehicle Dealers","II","BACS","None",2021-06-30 00:00:00,"2021","04","508787","K5551","Fleet Workshops","C1002","Repair And Maintenance Of Vehicles"
"GUILDFORD BOROUGH COUNCIL","Crematorium","The Yaboo Co Ltd","792870","27/07/2021",30026611,280,0,"Services","Media Production Agencies","II","BACS","None",2021-06-30 00:00:00,"2021","04","56985","A1500","Crematorium","D6004","Services"
"GUILDFORD BOROUGH COUNCIL","Crematorium","Swift Industrial Supplies Ltd","783800","27/07/2021",30026612,48,0,"Clothing & Uniform","Personal Protective Equipment (Ppe) Suppliers","II","BACS","None",2021-06-30 00:00:00,"2021","04","IN352066","A1500","Crematorium","D4001","Clothing & Uniform"
"GUILDFORD BOROUGH COUNCIL","Crematorium","Swift Industrial Supplies Ltd","783800","27/07/2021",30026612,27.3,0,"Clothing & Uniform","Personal Protective Equipment (Ppe) Suppliers","II","BACS","None",2021-06-30 00:00:00,"2021","04","IN352066","A1500","Crematorium","D4001","Clothing & Uniform"
"GUILDFORD BOROUGH COUNCIL","Crematorium","Swift Industrial Supplies Ltd","783800","27/07/2021",30026612,51,0,"Clothing & Uniform","Personal Protective Equipment (Ppe) Suppliers","II","BACS","None",2021-06-30 00:00:00,"2021","04","IN352066","A1500","Crematorium","D4001","Clothing & Uniform"
"GUILDFORD BOROUGH COUNCIL","Crematorium","Swift Industrial Supplies Ltd","783800","27/07/2021",30026612,3.1,0,"Clothing & Uniform","Personal Protective Equipment (Ppe) Suppliers","II","BACS","None",2021-06-30 00:00:00,"2021","04","IN352066","A1500","Crematorium","D4001","Clothing & Uniform"
"GUILDFORD BOROUGH COUNCIL","Inventories","M E Duffell Ltd","510200","20/07/2021",30026613,12.04,0,"Purchases","Keys And Locksmiths","II","BACS","None",2021-06-23 00:00:00,"2021","04","I2249447","I01001","Stocks","2591","Purchases"
"GUILDFORD BOROUGH COUNCIL","Inventories","Akw Medi-Care Limited","178400","15/07/2021",30026614,243.78,0,"Purchases","Mobility Disability Equipment Suppliers","II","BACS","None",2021-06-22 00:00:00,"2021","04","1937399","I01001","Stocks","2591","Purchases"
"GUILDFORD BOROUGH COUNCIL","Guildford House","Woodmansterne Publications Ltd","370020","20/07/2021",30026615,66.56,0,"Materials","","II","BACS","None",2021-06-25 00:00:00,"2021","04","91814076","A4511","Guildford House Administration","D2003","Materials"
"GUILDFORD BOROUGH COUNCIL","Tenant Services","Southern Electric Gas","260350","20/07/2021",30026616,387,0,"Utilities","Mains Gas Suppliers","II","BACS","None",2021-06-24 00:00:00,"2021","04","5685263519/240621","M1151","Tenants Services (BHS)","B2001","Utilities"
"GUILDFORD BOROUGH COUNCIL","Environmental Health","Bracknell Forest Borough Council","931600","06/07/2021",30026617,1248,0,"Services","Local Government [Uk Only]","II","BACS","None",2021-06-10 00:00:00,"2021","04","6553508","C1113","Environmental Control","D6004","Services"
"GUILDFORD BOROUGH COUNCIL","Inventories","M E Duffell Ltd","510200","20/07/2021",30026618,4.2,0,"Purchases","Keys And Locksmiths","II","BACS","None",2021-06-23 00:00:00,"2021","04","I2249170","I01001","Stocks","2591","Purchases"
"GUILDFORD BOROUGH COUNCIL","Housing Benefits","Eden Brown Ltd","829540","27/07/2021",30026619,971.25,0,"Agency","Other Recruitment Agencies And Service Providers","II","BACS","None",2021-06-30 00:00:00,"2021","04","1273720","C4511","Housing Benefits Admin.","A5191","Agency"
"GUILDFORD BOROUGH COUNCIL","Affordable Hsg - Site Prep Etc","Carrington West Limited","950550","27/07/2021",30026620,1462.5,0,"Agency Staff","Other Recruitment Agencies And Service Providers","II","BACS","None",2021-06-30 00:00:00,"2021","04","165036","N55023","Clover Road Garages","1222","Agency Staff"
"GUILDFORD BOROUGH COUNCIL","New Build","Carrington West Limited","950550","27/07/2021",30026620,195,0,"Agency Staff","Other Recruitment Agencies And Service Providers","II","BACS","None",2021-06-30 00:00:00,"2021","04","165036","N30012","Appletree Pub Site","1222","Agency Staff"
"GUILDFORD BOROUGH COUNCIL","New Build","Carrington West Limited","950550","27/07/2021",30026620,292.5,0,"Agency Staff","Other Recruitment Agencies And Service Providers","II","BACS","None",2021-06-30 00:00:00,"2021","04","165036","N30019","Ladymead/Fire Station Site","1222","Agency Staff"
"GUILDFORD BOROUGH COUNCIL","Inventories","MAGNET CKS","1000216","13/07/2021",30026621,36.82,0,"Purchases","","II","BACS","None",2021-06-18 00:00:00,"2021","04","58739110","I01001","Stocks","2591","Purchases"
"GUILDFORD BOROUGH COUNCIL","Income Collection","Allpay Ltd","914220","27/07/2021",30026622,1268.06,0,"Bank Charges","Other Financial Service Providers","II","BACS","None",2021-06-30 00:00:00,"2021","04","0000692919GBDD","M1121","Income Collection (BHS)","D8002","Bank Charges"
"GUILDFORD BOROUGH COUNCIL","Crematorium","The Yaboo Co Ltd","792870","27/07/2021",30026623,900,0,"Services","Media Production Agencies","II","BACS","None",2021-06-30 00:00:00,"2021","04","56981","A1500","Crematorium","D6004","Services"
"GUILDFORD BOROUGH COUNCIL","Vehicle Maintenance","Lister Wilder Ltd","299800","27/07/2021",30026624,47.38,0,"Repair And Maintenance Of Vehicles","Emergency And Other Specialist Vehicle Dealers","II","BACS","None",2021-06-30 00:00:00,"2021","04","508789","K5551","Fleet Workshops","C1002","Repair And Maintenance Of Vehicles"
"GUILDFORD BOROUGH COUNCIL","Vehicle Maintenance","Lister Wilder Ltd","299800","27/07/2021",30026624,473.81,0,"Repair And Maintenance Of Vehicles","Emergency And Other Specialist Vehicle Dealers","II","BACS","None",2021-06-30 00:00:00,"2021","04","508789","K5551","Fleet Workshops","C1002","Repair And Maintenance Of Vehicles"
"GUILDFORD BOROUGH COUNCIL","Vehicle Maintenance","TGS (UK) Ltd","1000183","13/07/2021",30026625,25,0,"Postage","","II","BACS","None",2021-05-28 00:00:00,"2021","04","112053","K5551","Fleet Workshops","D5003","Postage"
"GUILDFORD BOROUGH COUNCIL","Vehicle Maintenance","TGS (UK) Ltd","1000183","13/07/2021",30026625,297.75,0,"Repair And Maintenance Of Vehicles","","II","BACS","None",2021-05-28 00:00:00,"2021","04","112053","K5551","Fleet Workshops","C1002","Repair And Maintenance Of Vehicles"
"GUILDFORD BOROUGH COUNCIL","Inventories","M E Duffell Ltd","510200","20/07/2021",30026626,21.54,0,"Purchases","Keys And Locksmiths","II","BACS","None",2021-06-24 00:00:00,"2021","04","I2249961","I01001","Stocks","2591","Purchases"
"GUILDFORD BOROUGH COUNCIL","Miscellaneous Expenses","Printed Agility LTD","1000352","20/07/2021",30026627,465.66,0,"Printing, Photocopying And Reprographics External","","II","BACS","None",2021-06-23 00:00:00,"2021","04","SHPAEC15041120","F7539","COVID-19","D5005","Printing, Photocopying And Reprographics External"
"GUILDFORD BOROUGH COUNCIL","Guildford House","Woodmansterne Publications Ltd","370020","20/07/2021",30026628,91.2,0,"Materials","","II","BACS","None",2021-06-25 00:00:00,"2021","04","91814077","A4511","Guildford House Administration","D2003","Materials"
"GUILDFORD BOROUGH COUNCIL","Day Services","Cheesman Brothers Limited","129100","27/07/2021",30026629,853.01,0,"Catering","Fruit And Vegetable Suppliers","II","BACS","None",2021-06-30 00:00:00,"2021","04","893540","C8100","Community Hubs","D3001","Catering"
"GUILDFORD BOROUGH COUNCIL","Day Services","Cheesman Brothers Limited","129100","27/07/2021",30026629,24,0,"Catering","Fruit And Vegetable Suppliers","II","BACS","None",2021-06-30 00:00:00,"2021","04","893540","C8100","Community Hubs","D3001","Catering"
"GUILDFORD BOROUGH COUNCIL","Vehicle Maintenance","Partsplusuk","984320","22/07/2021",30026630,228.39,0,"Repair And Maintenance Of Vehicles","Third Party Supplier","II","BACS","None",2021-06-29 00:00:00,"2021","04","16513356","K5551","Fleet Workshops","C1002","Repair And Maintenance Of Vehicles"
"GUILDFORD BOROUGH COUNCIL","Crematorium","The Yaboo Co Ltd","792870","27/07/2021",30026631,170,0,"Services","Media Production Agencies","II","BACS","None",2021-06-30 00:00:00,"2021","04","56984","A1500","Crematorium","D6004","Services"
"GUILDFORD BOROUGH COUNCIL","Affordable Hsg - Site Prep Etc","Richard Foakes","711600","06/07/2021",30026632,144,0,"Consultants Fees","Sewerage And Drainage Service Providers","II","BACS","None",2021-06-30 00:00:00,"2021","04","9763","N55023","Clover Road Garages","1221","Consultants Fees"
"GUILDFORD BOROUGH COUNCIL","Affordable Hsg - Site Prep Etc","Richard Foakes","711600","06/07/2021",30026632,806,0,"Consultants Fees","Sewerage And Drainage Service Providers","II","BACS","None",2021-06-30 00:00:00,"2021","04","9763","N55023","Clover Road Garages","1221","Consultants Fees"
"GUILDFORD BOROUGH COUNCIL","Woking Road Depot","CTG Enterprises Ltd","795800","27/07/2021",30026633,180,0,"Cleaning Contractors","Other Cleaning And Janitorial Service Providers","II","BACS","None",2021-07-01 00:00:00,"2021","04","GU1796GBC","B4452","Woking Road Depot","D6006","Cleaning Contractors"
"GUILDFORD BOROUGH COUNCIL","Grants to Voluntary Organisations","Woking Citizens Advice Bureau","510110","13/07/2021",30026634,2500,0,"Grants And Subscriptions","Youth Clubs, Hostels And Associations","II","BACS","None",2021-06-30 00:00:00,"2021","04","1009","C3111","Community Grant Scheme","D9001","Grants And Subscriptions"
"GUILDFORD BOROUGH COUNCIL","Vehicle Maintenance","Prax Petroleum Ltd","634040","15/07/2021",30026635,8639.1,0,"Vehicle Operating Costs","Petrol, Diesel And Lubricant Suppliers","II","BACS","None",2021-06-22 00:00:00,"2021","04","200018442","K5551","Fleet Workshops","C1001","Vehicle Operating Costs"
"GUILDFORD BOROUGH COUNCIL","Vehicle Maintenance","Prax Petroleum Ltd","634040","15/07/2021",30026635,6593.4,0,"Vehicle Operating Costs","Petrol, Diesel And Lubricant Suppliers","II","BACS","None",2021-06-22 00:00:00,"2021","04","200018442","K5551","Fleet Workshops","C1001","Vehicle Operating Costs"
"GUILDFORD BOROUGH COUNCIL","Major Projects","The Oyster Partnership Ltd","814220","20/07/2021",30026636,2505.6,0,"Agency Staff","Other Recruitment Agencies And Service Providers","II","BACS","None",2021-06-23 00:00:00,"2021","04","1098017","F5530","Major Projects","1222","Agency Staff"
"GUILDFORD BOROUGH COUNCIL","Executive - Miscellaneous","The Oyster Partnership Ltd","814220","20/07/2021",30026636,1252.8,0,"Agency Staff","Other Recruitment Agencies And Service Providers","II","BACS","None",2021-06-23 00:00:00,"2021","04","1098017","P79102","WUV - New GBC Depot","1222","Agency Staff"
"GUILDFORD BOROUGH COUNCIL","Executive - Miscellaneous","The Oyster Partnership Ltd","814220","20/07/2021",30026636,2505.6,0,"Agency Staff","Other Recruitment Agencies And Service Providers","II","BACS","None",2021-06-23 00:00:00,"2021","04","1098017","P79100","Wuv - Allotment Relocation","1222","Agency Staff"
"GUILDFORD BOROUGH COUNCIL","New Build","Mildren Construction Ltd (CIS)","935490","06/07/2021",30026638,33596.39,0,"Contractor Payments","Civil Engineers","II","BACS","None",2021-06-30 00:00:00,"2021","04","17670/06/15885","N30011","Guildford Park","1233","Contractor Payments"
"GUILDFORD BOROUGH COUNCIL","Crematorium","The Yaboo Co Ltd","792870","27/07/2021",30026639,450,0,"Services","Media Production Agencies","II","BACS","None",2021-06-30 00:00:00,"2021","04","56982","A1500","Crematorium","D6004","Services"
"GUILDFORD BOROUGH COUNCIL","Inventories","Crown Paints Ltd","497000","06/07/2021",30026640,1349.17,0,"Purchases","Paint And Coating Suppliers","II","BACS","None",2021-05-27 00:00:00,"2021","04","8206454755","I01001","Stocks","2591","Purchases"
"GUILDFORD BOROUGH COUNCIL","Off Street Parking","Contract Security Services Ltd","146600","20/07/2021",30026641,8883.76,0,"Bank Charges","Other Security Service Providers","II","BACS","None",2021-06-25 00:00:00,"2021","04","60611","B2111","Car Parks - Administration","D8002","Bank Charges"
"GUILDFORD BOROUGH COUNCIL","Off Street Parking","Contract Security Services Ltd","146600","20/07/2021",30026641,414,0,"Bank Charges","Other Security Service Providers","II","BACS","None",2021-06-25 00:00:00,"2021","04","60611","B2111","Car Parks - Administration","D8002","Bank Charges"
"GUILDFORD BOROUGH COUNCIL","Park and Ride Service","Contract Security Services Ltd","146600","20/07/2021",30026641,46.5,0,"Bank Charges","Other Security Service Providers","II","BACS","None",2021-06-25 00:00:00,"2021","04","60611","B5201","Artington Park & Ride","D8002","Bank Charges"
"GUILDFORD BOROUGH COUNCIL","On Street Parking","Contract Security Services Ltd","146600","20/07/2021",30026641,2322.5,0,"Bank Charges","Other Security Service Providers","II","BACS","None",2021-06-25 00:00:00,"2021","04","60611","B2217","Guildford On-Street","D8002","Bank Charges"
"GUILDFORD BOROUGH COUNCIL","Inventories","Hire Decks Limited T/A The Metal Store","955060","20/07/2021",30026642,564.68,0,"Purchases","Third Party Supplier","II","BACS","None",2021-06-23 00:00:00,"2021","04","551932","I01001","Stocks","2591","Purchases"
"GUILDFORD BOROUGH COUNCIL","Inventories","Akw Medi-Care Limited","178400","15/07/2021",30026643,303.3,0,"Purchases","Mobility Disability Equipment Suppliers","II","BACS","None",2021-06-22 00:00:00,"2021","04","1937396","I01001","Stocks","2591","Purchases"
"GUILDFORD BOROUGH COUNCIL","Responsive & Planned Maintenance","Monatrix Ltd","851140","06/07/2021",30026645,1268,0,"Asset Maintenance","Closed Circuit Television (Cctv) Suppliers","II","BACS","None",2021-05-19 00:00:00,"2021","04","15091","M5106","Repairs-Shelt-Responsive (BHS)","B1001","Asset Maintenance"
"GUILDFORD BOROUGH COUNCIL","Community Development","Community Foundation For Surrey","774460","27/07/2021",30026685,1459,0,"Grants And Subscriptions","Community Partnerships","II","BACS","None",2021-07-02 00:00:00,"2021","04","Guildford Philanthropy 2107 (Matchfunding)","F1127","Community Development","D9001","Grants And Subscriptions"
"GUILDFORD BOROUGH COUNCIL","Inventories","UK Plumbing Supplies T/AS Graham the Plumbers Merchant","220400","06/07/2021",30026686,184.86,0,"Purchases","Plumbing, Heating And Ac (Hvac) Equipment Suppliers","II","BACS","None",2020-12-17 00:00:00,"2021","04","0374/00166482 Correction","I01001","Stocks","2591","Purchases"
"GUILDFORD BOROUGH COUNCIL","Inventories","UK Plumbing Supplies T/AS Graham the Plumbers Merchant","220400","06/07/2021",30026687,11.18,0,"Purchases","Plumbing, Heating And Ac (Hvac) Equipment Suppliers","II","BACS","None",2020-12-17 00:00:00,"2021","04","0374/00166484A Correction","I01001","Stocks","2591","Purchases"
"GUILDFORD BOROUGH COUNCIL","Inventories","UK Plumbing Supplies T/AS Graham the Plumbers Merchant","220400","06/07/2021",30026688,18.81,0,"Purchases","Plumbing, Heating And Ac (Hvac) Equipment Suppliers","II","BACS","None",2020-12-17 00:00:00,"2021","04","0374/00166487A Correction","I01001","Stocks","2591","Purchases"
"GUILDFORD BOROUGH COUNCIL","Countryside and Parks Services","A & P Services (Surrey) Ltd","320160","27/07/2021",30026689,204.47,0,"Repair And Maintenance Of Vehicles","Agricultural Engineers","II","BACS","None",2021-07-01 00:00:00,"2021","04","6835","A1100","Horticulture","C1002","Repair And Maintenance Of Vehicles"
"GUILDFORD BOROUGH COUNCIL","Countryside and Parks Services","CTG Enterprises Ltd","795800","27/07/2021",30026690,1918.73,0,"Materials","Other Cleaning And Janitorial Service Providers","II","BACS","None",2021-07-01 00:00:00,"2021","04","GU1800GBC","A1100","Horticulture","D2003","Materials"
"GUILDFORD BOROUGH COUNCIL","Countryside and Parks Services","CTG Enterprises Ltd","795800","27/07/2021",30026690,57.83,0,"Materials","Other Cleaning And Janitorial Service Providers","II","BACS","None",2021-07-01 00:00:00,"2021","04","GU1800GBC","A1245","Stoke Recreation Ground","D2003","Materials"
"GUILDFORD BOROUGH COUNCIL","Countryside and Parks Services","CTG Enterprises Ltd","795800","27/07/2021",30026690,116.05,0,"Materials","Other Cleaning And Janitorial Service Providers","II","BACS","None",2021-07-01 00:00:00,"2021","04","GU1800GBC","A1269","Tilehouse Rec Ground","D2003","Materials"
"GUILDFORD BOROUGH COUNCIL","Countryside and Parks Services","CTG Enterprises Ltd","795800","27/07/2021",30026690,116.05,0,"Materials","Other Cleaning And Janitorial Service Providers","II","BACS","None",2021-07-01 00:00:00,"2021","04","GU1800GBC","A1285","Onslow Village","D2003","Materials"
"GUILDFORD BOROUGH COUNCIL","Countryside and Parks Services","CTG Enterprises Ltd","795800","27/07/2021",30026690,290.68,0,"Materials","Other Cleaning And Janitorial Service Providers","II","BACS","None",2021-07-01 00:00:00,"2021","04","GU1800GBC","A1232","Sutherland Memorial Park","D2003","Materials"
"GUILDFORD BOROUGH COUNCIL","Countryside and Parks Services","CTG Enterprises Ltd","795800","27/07/2021",30026690,58.21,0,"Materials","Other Cleaning And Janitorial Service Providers","II","BACS","None",2021-07-01 00:00:00,"2021","04","GU1800GBC","A1260","Allen House Grounds","D2003","Materials"
"GUILDFORD BOROUGH COUNCIL","Countryside and Parks Services","CTG Enterprises Ltd","795800","27/07/2021",30026690,290.68,0,"Materials","Other Cleaning And Janitorial Service Providers","II","BACS","None",2021-07-01 00:00:00,"2021","04","GU1800GBC","A1290","Kingston Meadows And Pavillion","D2003","Materials"
"GUILDFORD BOROUGH COUNCIL","Countryside and Parks Services","CTG Enterprises Ltd","795800","27/07/2021",30026690,290.68,0,"Materials","Other Cleaning And Janitorial Service Providers","II","BACS","None",2021-07-01 00:00:00,"2021","04","GU1800GBC","A1250","Stoke Park","D2003","Materials"
"GUILDFORD BOROUGH COUNCIL","Countryside and Parks Services","CTG Enterprises Ltd","795800","27/07/2021",30026690,174.64,0,"Materials","Other Cleaning And Janitorial Service Providers","II","BACS","None",2021-07-01 00:00:00,"2021","04","GU1800GBC","A1210","Stoughton Rec Ground","D2003","Materials"
"GUILDFORD BOROUGH COUNCIL","Environmental Works","CTG Enterprises Ltd","795800","27/07/2021",30026690,466.45,0,"Materials","Other Cleaning And Janitorial Service Providers","II","BACS","None",2021-07-01 00:00:00,"2021","04","GU1800GBC","M4615","Env Wks To Estate (BHS)","D2003","Materials"
"GUILDFORD BOROUGH COUNCIL","Crematorium","Contract Cleaning & Facilities Ltd","974800","27/07/2021",30026691,650,0,"Cleaning Contractors","Commercial Cleaners","II","BACS","None",2021-06-30 00:00:00,"2021","04","61157","A1500","Crematorium","D6006","Cleaning Contractors"
"GUILDFORD BOROUGH COUNCIL","Grants","The OT Practice Ltd","984970","27/07/2021",30026692,1755,0,"Contractor Payments","","II","BACS","None",2021-06-30 00:00:00,"2021","04","INV-028746","N51019","BCF Non Grant Expenditure","1233","Contractor Payments"
"GUILDFORD BOROUGH COUNCIL","Tourism & Development","Business South Limited","886040","13/07/2021",30026693,3000,0,"Grants And Subscriptions","Trade Associations And Regulatory Bodies","II","BACS","None",2021-05-11 00:00:00,"2021","04","BSOU-00005478","F5525","Economic Development","D9001","Grants And Subscriptions"
"GUILDFORD BOROUGH COUNCIL","Executive - Miscellaneous","Curtin & C","984360","13/07/2021",30026694,13525,0,"Consultants Fees","","II","BACS","None",2021-04-30 00:00:00,"2021","04","C06506","P79100","Wuv - Allotment Relocation","1221","Consultants Fees"
"GUILDFORD BOROUGH COUNCIL","Building Maintenance","Chambers Waste Management Plc","127500","20/07/2021",30026695,104.6,0,"Materials","Other Waste Disposal Suppliers","II","BACS","None",2021-06-27 00:00:00,"2021","04","P487144","K1515","Building Maintenance","D2003","Materials"
"GUILDFORD BOROUGH COUNCIL","Lead Specialist - Finance","Hays Specialist Recruitment Limited","156250","27/07/2021",30026696,2005,0,"Agency","Other Recruitment Agencies And Service Providers","II","BACS","None",2021-06-30 00:00:00,"2021","04","1011446892","G3593","Procurement Services","A5191","Agency"
"GUILDFORD BOROUGH COUNCIL","Planning Policy","Haymarket Media Group Ltd","802350","27/07/2021",30026697,1925,0,"Vacancy And Interview Costs","Other Information Service Providers","II","BACS","None",2021-06-30 00:00:00,"2021","04","50199698","D5300","Policy","A7120","Vacancy And Interview Costs"
"GUILDFORD BOROUGH COUNCIL","Executive - Miscellaneous","Curtin & C","984360","13/07/2021",30026698,1500,0,"Consultants Fees","","II","BACS","None",2021-05-31 00:00:00,"2021","04","C06552","P79100","Wuv - Allotment Relocation","1221","Consultants Fees"
"GUILDFORD BOROUGH COUNCIL","Executive - Miscellaneous","Perfect Circle JV Ltd","919010","22/07/2021",30026699,1339.95,0,"Consultants Fees","Construction Project Management Consultants","II","BACS","None",2021-06-29 00:00:00,"2021","04","28463899","P79037","Ash Road Bridge","1221","Consultants Fees"
"GUILDFORD BOROUGH COUNCIL","Crematorium","Anglia Sign Casting Limited","754150","27/07/2021",30026700,65.16,0,"Stock For Re-Sale","Other Metal Product Suppliers","II","BACS","None",2021-06-30 00:00:00,"2021","04","INV-52719","A1500","Crematorium","D2004","Stock For Re-Sale"
"GUILDFORD BOROUGH COUNCIL","Licensing","Mayes & Scrine","753000","13/07/2021",30026701,659.7,0,"Services","Veterinary Service Providers","II","BACS","None",2021-06-16 00:00:00,"2021","04","I-32795","H2100","Licensing Services","D6004","Services"
"GUILDFORD BOROUGH COUNCIL","Vehicle Maintenance","Lister Wilder Ltd","299800","27/07/2021",30026702,834.84,0,"Repair And Maintenance Of Vehicles","Emergency And Other Specialist Vehicle Dealers","II","BACS","None",2021-06-30 00:00:00,"2021","04","508790","K5551","Fleet Workshops","C1002","Repair And Maintenance Of Vehicles"
"GUILDFORD BOROUGH COUNCIL","Vehicle Maintenance","Lister Wilder Ltd","299800","27/07/2021",30026702,83.48,0,"Repair And Maintenance Of Vehicles","Emergency And Other Specialist Vehicle Dealers","II","BACS","None",2021-06-30 00:00:00,"2021","04","508790","K5551","Fleet Workshops","C1002","Repair And Maintenance Of Vehicles"
"GUILDFORD BOROUGH COUNCIL","Vehicle Maintenance","Lister Wilder Ltd","299800","27/07/2021",30026703,232.5,0,"Repair And Maintenance Of Vehicles","Emergency And Other Specialist Vehicle Dealers","II","BACS","None",2021-06-30 00:00:00,"2021","04","508794","K5551","Fleet Workshops","C1002","Repair And Maintenance Of Vehicles"
"GUILDFORD BOROUGH COUNCIL","Vehicle Maintenance","Lister Wilder Ltd","299800","27/07/2021",30026703,23.25,0,"Repair And Maintenance Of Vehicles","Emergency And Other Specialist Vehicle Dealers","II","BACS","None",2021-06-30 00:00:00,"2021","04","508794","K5551","Fleet Workshops","C1002","Repair And Maintenance Of Vehicles"
"GUILDFORD BOROUGH COUNCIL","Executive - Miscellaneous","Curtin & C","984360","13/07/2021",30026704,5700,0,"Consultants Fees","","II","BACS","None",2021-05-31 00:00:00,"2021","04","C06551","P79100","Wuv - Allotment Relocation","1221","Consultants Fees"
"GUILDFORD BOROUGH COUNCIL","Supported Housing Management","Town and Country Cleaners Ltd","690490","27/07/2021",30026705,585,0,"Cleaning Contractors","Commercial Cleaners","II","BACS","None",2021-06-30 00:00:00,"2021","04","79136","M3690","Supported Hsg-General (SHS)","D6006","Cleaning Contractors"
"GUILDFORD BOROUGH COUNCIL","Sheltered Housing","Town and Country Cleaners Ltd","690490","27/07/2021",30026705,8376,0,"Cleaning Contractors","Commercial Cleaners","II","BACS","None",2021-06-30 00:00:00,"2021","04","79136","M1515","Sheltered Accomodation","D6006","Cleaning Contractors"
"GUILDFORD BOROUGH COUNCIL","Lead Specialist - Finance","Hays Specialist Recruitment Limited","156250","27/07/2021",30026706,1297.16,0,"Agency","Other Recruitment Agencies And Service Providers","II","BACS","None",2021-07-01 00:00:00,"2021","04","1011444357","G3593","Procurement Services","A5191","Agency"
"GUILDFORD BOROUGH COUNCIL","Building Maintenance","Chambers Waste Management Plc","127500","20/07/2021",30026707,1533.48,0,"Materials","Other Waste Disposal Suppliers","II","BACS","None",2021-06-27 00:00:00,"2021","04","P487143","K1515","Building Maintenance","D2003","Materials"
"GUILDFORD BOROUGH COUNCIL","Vehicle Maintenance","Lister Wilder Ltd","299800","27/07/2021",30026708,31.35,0,"Repair And Maintenance Of Vehicles","Emergency And Other Specialist Vehicle Dealers","II","BACS","None",2021-06-30 00:00:00,"2021","04","508793","K5551","Fleet Workshops","C1002","Repair And Maintenance Of Vehicles"
"GUILDFORD BOROUGH COUNCIL","Vehicle Maintenance","Lister Wilder Ltd","299800","27/07/2021",30026708,313.48,0,"Repair And Maintenance Of Vehicles","Emergency And Other Specialist Vehicle Dealers","II","BACS","None",2021-06-30 00:00:00,"2021","04","508793","K5551","Fleet Workshops","C1002","Repair And Maintenance Of Vehicles"
"GUILDFORD BOROUGH COUNCIL","Executive - Miscellaneous","Curtin & C","984360","06/07/2021",30026709,700,0,"Consultants Fees","","II","BACS","None",2021-04-30 00:00:00,"2021","04","C06507","P79100","Wuv - Allotment Relocation","1221","Consultants Fees"
"GUILDFORD BOROUGH COUNCIL","Countryside and Parks Services","Amazon Payments Europe S.C.A.","951330","27/07/2021",30026710,75.92,0,"Materials","Other Retailers","II","BACS","None",2021-07-01 00:00:00,"2021","04","INV-GB-122499711-2021-59037","A1340","Chantry Wood","D2003","Materials"
"GUILDFORD BOROUGH COUNCIL","Parks Countryside Management","Amazon Payments Europe S.C.A.","951330","27/07/2021",30026710,75.92,0,"Materials","Other Retailers","II","BACS","None",2021-07-01 00:00:00,"2021","04","INV-GB-122499711-2021-59037","A1340","Chantry Wood","D2003","Materials"
"GUILDFORD BOROUGH COUNCIL","Environmental Health","Funeral Partners Ltd t/a James and Thomas Funeral","1000227","06/07/2021",30026711,832,0,"Services","","II","BACS","None",2021-03-22 00:00:00,"2021","04","253959/1311/30681","C1113","Environmental Control","D6004","Services"
"GUILDFORD BOROUGH COUNCIL","Private Sector Housing Maintenance","Waltonhall Construction Services Ltd","1000389","13/07/2021",30026712,420,0,"Services","","II","BACS","None",2021-04-29 00:00:00,"2021","04","WCR001","C5132","Care And Repair (Detr)","D6004","Services"
"GUILDFORD BOROUGH COUNCIL","Property","John Thompson & Partners LLP","974700","27/07/2021",30026713,18700,0,"Consultants Fees","","II","BACS","None",2021-06-30 00:00:00,"2021","04","S2008","P74040","Slyfield Area Regeneration Project","1221","Consultants Fees"
"GUILDFORD BOROUGH COUNCIL","Executive - Miscellaneous","Curtin & C","984360","06/07/2021",30026714,1500,0,"Consultants Fees","","II","BACS","None",2021-04-30 00:00:00,"2021","04","C06508","P79100","Wuv - Allotment Relocation","1221","Consultants Fees"
"GUILDFORD BOROUGH COUNCIL","Property","Pinsent Masons LLP","992900","22/07/2021",30026715,73.5,0,"Consultants Fees","Other Legal Service Providers","II","BACS","None",2021-06-29 00:00:00,"2021","04","6614580","P74040","Slyfield Area Regeneration Project","1221","Consultants Fees"
"GUILDFORD BOROUGH COUNCIL","Executive - Miscellaneous","Perfect Circle JV Ltd","919010","22/07/2021",30026716,137045.95,0,"Consultants Fees","Construction Project Management Consultants","II","BACS","None",2021-06-29 00:00:00,"2021","04","28463898","P79037","Ash Road Bridge","1221","Consultants Fees"
"GUILDFORD BOROUGH COUNCIL","Sheltered Housing","Storm Technologies Ltd","1000210","27/07/2021",30026717,354.16,0,"Materials","","II","BACS","None",2021-07-01 00:00:00,"2021","04","796680","M1515","Sheltered Accomodation","D2003","Materials"
"GUILDFORD BOROUGH COUNCIL","Council Tax","Civica UK Ltd","963100","27/07/2021",30026718,2558.52,0,"Agency","Computer Systems Integrators","II","BACS","None",2021-06-30 00:00:00,"2021","04","C/BN220361","F6141","Council Tax Collectn Expenses","A5191","Agency"
"GUILDFORD BOROUGH COUNCIL","Environmental Health","SDK Environmental Ltd","800110","27/07/2021",30026719,4020.3,0,"Contractors","Pest And Vermin Control Service Providers","II","BACS","None",2021-06-30 00:00:00,"2021","04","46167","C1113","Environmental Control","D6012","Contractors"
"GUILDFORD BOROUGH COUNCIL","Property","Haverly Consulting Ltd","979080","27/07/2021",30026720,6120,0,"Consultants Fees","","II","BACS","None",2021-06-30 00:00:00,"2021","04","HC2053","P74040","Slyfield Area Regeneration Project","1221","Consultants Fees"
"GUILDFORD BOROUGH COUNCIL","Private Sector Housing Maintenance","Waltonhall Construction Services Ltd","1000389","13/07/2021",30026721,427.4,0,"Services","","II","BACS","None",2021-06-14 00:00:00,"2021","04","GCR002","C5132","Care And Repair (Detr)","D6004","Services"
"GUILDFORD BOROUGH COUNCIL","Industrial Estates","Rider Levett Bucknall UK Ltd","1000349","27/07/2021",30026722,3970,0,"Consultants Fees","","II","BACS","None",2021-06-30 00:00:00,"2021","04","928851","P72045","Strategic Property Acquisitions","1221","Consultants Fees"
"GUILDFORD BOROUGH COUNCIL","Executive - Miscellaneous","Pinsent Masons LLP","992900","03/08/2021",30026723,2886,0,"Consultants Fees","Other Legal Service Providers","II","BACS","None",2021-06-29 00:00:00,"2021","04","6614584","P79100","Wuv - Allotment Relocation","1221","Consultants Fees"
"GUILDFORD BOROUGH COUNCIL","Other Property","Valuation Office Agency","842300","20/07/2021",30026724,18143.44,0,"Valuers Fees","Central Government","II","BACS","None",2021-06-25 00:00:00,"2021","04","25000014792021","B6100","Other Property Admin","D6002","Valuers Fees"
"GUILDFORD BOROUGH COUNCIL","Investment Properties","Valuation Office Agency","842300","20/07/2021",30026724,32375.56,0,"Valuers Fees","Central Government","II","BACS","None",2021-06-25 00:00:00,"2021","04","25000014792021","B6111","Investment Property","D6002","Valuers Fees"
"GUILDFORD BOROUGH COUNCIL","Vehicle Maintenance","Handsfree Group Limited","945250","27/07/2021",30026725,36,0,"Vehicle Operating Costs","Third Party Supplier","II","BACS","None",2021-07-01 00:00:00,"2021","04","2014523","K5551","Fleet Workshops","C1001","Vehicle Operating Costs"
"GUILDFORD BOROUGH COUNCIL","Homelessness Support","The Lion Brewery","1000169","15/07/2021",30026726,248.57,0,"Emergency Accomodation","","II","BACS","None",2021-06-22 00:00:00,"2021","04","ER006","C3311","Homelessness","D8009","Emergency Accomodation"
"GUILDFORD BOROUGH COUNCIL","Environmental Health","SDK Environmental Ltd","800110","27/07/2021",30026727,-109.14,0,"Contractors","Pest And Vermin Control Service Providers","II","BACS","None",2021-06-30 00:00:00,"2021","04","2288","C1113","Environmental Control","D6012","Contractors"
"GUILDFORD BOROUGH COUNCIL","Vehicle Maintenance","Lister Wilder Ltd","299800","27/07/2021",30026728,29.25,0,"Repair And Maintenance Of Vehicles","Emergency And Other Specialist Vehicle Dealers","II","BACS","None",2021-06-30 00:00:00,"2021","04","508792","K5551","Fleet Workshops","C1002","Repair And Maintenance Of Vehicles"
"GUILDFORD BOROUGH COUNCIL","Vehicle Maintenance","Lister Wilder Ltd","299800","27/07/2021",30026728,292.49,0,"Repair And Maintenance Of Vehicles","Emergency And Other Specialist Vehicle Dealers","II","BACS","None",2021-06-30 00:00:00,"2021","04","508792","K5551","Fleet Workshops","C1002","Repair And Maintenance Of Vehicles"
"GUILDFORD BOROUGH COUNCIL","Executive - Miscellaneous","Perfect Circle JV Ltd","919010","22/07/2021",30026729,8009.04,0,"Consultants Fees","Construction Project Management Consultants","II","BACS","None",2021-06-29 00:00:00,"2021","04","28463900","P79037","Ash Road Bridge","1221","Consultants Fees"
"GUILDFORD BOROUGH COUNCIL","Property","Pinsent Masons LLP","992900","22/07/2021",30026730,9930.5,0,"Consultants Fees","Other Legal Service Providers","II","BACS","None",2021-06-29 00:00:00,"2021","04","6614658","P74040","Slyfield Area Regeneration Project","1221","Consultants Fees"
"GUILDFORD BOROUGH COUNCIL","Climate Change","RN Coverly","701280","27/07/2021",30026731,900,0,"Asset Maintenance","","II","BACS","None",2021-07-01 00:00:00,"2021","04","W167","G4587","Toll House Turbine, Millbrook","B1001","Asset Maintenance"
"GUILDFORD BOROUGH COUNCIL","Building Maintenance","AMG Electrical Ltd","1000451","06/07/2021",30026732,317.35,0,"Materials","","II","BACS","None",2021-06-29 00:00:00,"2021","04","2106-06","K1515","Building Maintenance","D2003","Materials"
"GUILDFORD BOROUGH COUNCIL","Building Maintenance","AMG Electrical Ltd","1000451","06/07/2021",30026732,1742.63,0,"Services","","II","BACS","None",2021-06-29 00:00:00,"2021","04","2106-06","K1515","Building Maintenance","D6004","Services"
"GUILDFORD BOROUGH COUNCIL","Executive - Miscellaneous","Curtin & C","984360","13/07/2021",30026733,48.45,0,"Consultants Fees","","II","BACS","None",2021-05-31 00:00:00,"2021","04","C06554","P79100","Wuv - Allotment Relocation","1221","Consultants Fees"
"GUILDFORD BOROUGH COUNCIL","Executive - Miscellaneous","Curtin & C","984360","06/07/2021",30026734,6000,0,"Consultants Fees","","II","BACS","None",2021-05-31 00:00:00,"2021","04","C06553","P79100","Wuv - Allotment Relocation","1221","Consultants Fees"
"GUILDFORD BOROUGH COUNCIL","Major Projects","Leonard Design Architects","1000127","06/07/2021",30026735,9750,0,"Consultancy","","II","BACS","None",2021-04-30 00:00:00,"2021","04","11906","F5530","Major Projects","D6001","Consultancy"
"GUILDFORD BOROUGH COUNCIL","Countryside and Parks Services","A.S.L. Ltd (CIS)","667000","06/07/2021",30026736,3480,0,"Asset Maintenance","Sewerage And Drainage Service Providers","II","BACS","None",2021-06-21 00:00:00,"2021","04","69074","A1250","Stoke Park","B1001","Asset Maintenance"
"GUILDFORD BOROUGH COUNCIL","Renovations","The OT Practice Ltd","984970","27/07/2021",30026737,1750,0,"Contractor Payments","","II","BACS","None",2021-06-30 00:00:00,"2021","04","INV-028776","N40295","Disabled adaptations 2021/22","1233","Contractor Payments"
"GUILDFORD BOROUGH COUNCIL","Off Street Parking","Hub Parking Technology","757270","27/07/2021",30026738,922.5,0,"Materials","Parking Management Providers","II","BACS","None",2021-07-02 00:00:00,"2021","04","SIN361589","B2111","Car Parks - Administration","D2003","Materials"
"GUILDFORD BOROUGH COUNCIL","Off Street Parking","Hub Parking Technology","757270","27/07/2021",30026738,19.5,0,"Postage","Parking Management Providers","II","BACS","None",2021-07-02 00:00:00,"2021","04","SIN361589","B2111","Car Parks - Administration","D5003","Postage"
"GUILDFORD BOROUGH COUNCIL","Street Cleansing","Car And Metal Recycles Ltd","685200","22/07/2021",30026739,400,0,"Services","Scrap Merchants","II","BACS","None",2021-06-28 00:00:00,"2021","04","U317626-S","K4551","Street Cleansing","D6004","Services"
"GUILDFORD BOROUGH COUNCIL","Responsive & Planned Maintenance","JC Electrics (Guildford) Ltd","748360","06/07/2021",30026740,685.4,0,"Asset Maintenance","Electrical Wiring And Parts Suppliers","II","BACS","None",2021-03-09 00:00:00,"2021","04","T0682","M5106","Repairs-Shelt-Responsive (BHS)","B1001","Asset Maintenance"
"GUILDFORD BOROUGH COUNCIL","Off Street Parking","Otis Limited","629800","06/07/2021",30026741,1089.66,0,"Asset Maintenance","Lift Contractors","II","BACS","None",2021-04-13 00:00:00,"2021","04","RTS 11653497","B2257","Leapale Road Mscp","B1001","Asset Maintenance"
"GUILDFORD BOROUGH COUNCIL","Renovations","Saltash Enterprises Limited (CIS)","689740","06/07/2021",30026742,3083.52,0,"Contractor Payments","General Builders","II","BACS","None",2021-01-29 00:00:00,"2021","04","30275","N40282","Disabled adaptations 2020-21","1233","Contractor Payments"
"GUILDFORD BOROUGH COUNCIL","Renovations","Saltash Enterprises Limited (CIS)","689740","06/07/2021",30026743,6804.96,0,"Contractor Payments","General Builders","II","BACS","None",2021-05-11 00:00:00,"2021","04","30484","N40282","Disabled adaptations 2020-21","1233","Contractor Payments"
"GUILDFORD BOROUGH COUNCIL","Off Street Parking","Monatrix Ltd","851140","06/07/2021",30026744,570,0,"Asset Maintenance","Closed Circuit Television (Cctv) Suppliers","II","BACS","None",2021-04-22 00:00:00,"2021","04","15017","B2277","Castle Mscp","B1001","Asset Maintenance"
"GUILDFORD BOROUGH COUNCIL","Off Street Parking","Kone Plc","904300","06/07/2021",30026745,53.38,0,"Asset Maintenance","Lift Contractors","II","BACS","None",2021-06-15 00:00:00,"2021","04","38356781","B2277","Castle Mscp","B1001","Asset Maintenance"
"GUILDFORD BOROUGH COUNCIL","Responsive & Planned Maintenance","Thomas Door & Window Controls Ltd","183530","06/07/2021",30026746,770,0,"Asset Maintenance","Security Shutter, Door And Gate Contractors","II","BACS","None",2021-06-16 00:00:00,"2021","04","181956","M5113","Repairs-Responsive (BHS)","B1001","Asset Maintenance"
"GUILDFORD BOROUGH COUNCIL","Renovations","C L C Contractors Limited","982900","06/07/2021",30026747,146.37,0,"Contractor Payments","Property Maintenance Contractors","II","BACS","None",2021-06-14 00:00:00,"2021","04","AP93092-001","N40281","Condition Appraisals works 2020-21","1233","Contractor Payments"
"GUILDFORD BOROUGH COUNCIL","Renovations","C L C Contractors Limited","982900","06/07/2021",30026747,146.37,0,"Contractor Payments","Property Maintenance Contractors","II","BACS","None",2021-06-14 00:00:00,"2021","04","AP93092-001","N40281","Condition Appraisals works 2020-21","1233","Contractor Payments"
"GUILDFORD BOROUGH COUNCIL","Renovations","C L C Contractors Limited","982900","06/07/2021",30026747,146.37,0,"Contractor Payments","Property Maintenance Contractors","II","BACS","None",2021-06-14 00:00:00,"2021","04","AP93092-001","N40281","Condition Appraisals works 2020-21","1233","Contractor Payments"
"GUILDFORD BOROUGH COUNCIL","Renovations","C L C Contractors Limited","982900","06/07/2021",30026747,146.37,0,"Contractor Payments","Property Maintenance Contractors","II","BACS","None",2021-06-14 00:00:00,"2021","04","AP93092-001","N40281","Condition Appraisals works 2020-21","1233","Contractor Payments"
"GUILDFORD BOROUGH COUNCIL","Renovations","C L C Contractors Limited","982900","06/07/2021",30026747,146.37,0,"Contractor Payments","Property Maintenance Contractors","II","BACS","None",2021-06-14 00:00:00,"2021","04","AP93092-001","N40281","Condition Appraisals works 2020-21","1233","Contractor Payments"
"GUILDFORD BOROUGH COUNCIL","Renovations","C L C Contractors Limited","982900","06/07/2021",30026747,146.37,0,"Contractor Payments","Property Maintenance Contractors","II","BACS","None",2021-06-14 00:00:00,"2021","04","AP93092-001","N40281","Condition Appraisals works 2020-21","1233","Contractor Payments"
"GUILDFORD BOROUGH COUNCIL","Renovations","C L C Contractors Limited","982900","06/07/2021",30026747,146.37,0,"Contractor Payments","Property Maintenance Contractors","II","BACS","None",2021-06-14 00:00:00,"2021","04","AP93092-001","N40281","Condition Appraisals works 2020-21","1233","Contractor Payments"
"GUILDFORD BOROUGH COUNCIL","Renovations","C L C Contractors Limited","982900","06/07/2021",30026747,146.37,0,"Contractor Payments","Property Maintenance Contractors","II","BACS","None",2021-06-14 00:00:00,"2021","04","AP93092-001","N40281","Condition Appraisals works 2020-21","1233","Contractor Payments"
"GUILDFORD BOROUGH COUNCIL","Renovations","C L C Contractors Limited","982900","06/07/2021",30026747,146.37,0,"Contractor Payments","Property Maintenance Contractors","II","BACS","None",2021-06-14 00:00:00,"2021","04","AP93092-001","N40281","Condition Appraisals works 2020-21","1233","Contractor Payments"
"GUILDFORD BOROUGH COUNCIL","Renovations","C L C Contractors Limited","982900","06/07/2021",30026747,146.37,0,"Contractor Payments","Property Maintenance Contractors","II","BACS","None",2021-06-14 00:00:00,"2021","04","AP93092-001","N40281","Condition Appraisals works 2020-21","1233","Contractor Payments"
"GUILDFORD BOROUGH COUNCIL","Renovations","C L C Contractors Limited","982900","06/07/2021",30026747,146.37,0,"Contractor Payments","Property Maintenance Contractors","II","BACS","None",2021-06-14 00:00:00,"2021","04","AP93092-001","N40281","Condition Appraisals works 2020-21","1233","Contractor Payments"
"GUILDFORD BOROUGH COUNCIL","Renovations","C L C Contractors Limited","982900","06/07/2021",30026747,146.37,0,"Contractor Payments","Property Maintenance Contractors","II","BACS","None",2021-06-14 00:00:00,"2021","04","AP93092-001","N40281","Condition Appraisals works 2020-21","1233","Contractor Payments"
"GUILDFORD BOROUGH COUNCIL","Renovations","C L C Contractors Limited","982900","06/07/2021",30026747,146.37,0,"Contractor Payments","Property Maintenance Contractors","II","BACS","None",2021-06-14 00:00:00,"2021","04","AP93092-001","N40281","Condition Appraisals works 2020-21","1233","Contractor Payments"
"GUILDFORD BOROUGH COUNCIL","Renovations","C L C Contractors Limited","982900","06/07/2021",30026747,146.37,0,"Contractor Payments","Property Maintenance Contractors","II","BACS","None",2021-06-14 00:00:00,"2021","04","AP93092-001","N40281","Condition Appraisals works 2020-21","1233","Contractor Payments"
"GUILDFORD BOROUGH COUNCIL","Renovations","C L C Contractors Limited","982900","06/07/2021",30026747,146.37,0,"Contractor Payments","Property Maintenance Contractors","II","BACS","None",2021-06-14 00:00:00,"2021","04","AP93092-001","N40281","Condition Appraisals works 2020-21","1233","Contractor Payments"
"GUILDFORD BOROUGH COUNCIL","Renovations","C L C Contractors Limited","982900","06/07/2021",30026747,146.37,0,"Contractor Payments","Property Maintenance Contractors","II","BACS","None",2021-06-14 00:00:00,"2021","04","AP93092-001","N40281","Condition Appraisals works 2020-21","1233","Contractor Payments"
"GUILDFORD BOROUGH COUNCIL","Renovations","C L C Contractors Limited","982900","06/07/2021",30026748,146.37,0,"Contractor Payments","Property Maintenance Contractors","II","BACS","None",2021-06-14 00:00:00,"2021","04","AP93093-001","N40281","Condition Appraisals works 2020-21","1233","Contractor Payments"
"GUILDFORD BOROUGH COUNCIL","Renovations","C L C Contractors Limited","982900","06/07/2021",30026748,146.37,0,"Contractor Payments","Property Maintenance Contractors","II","BACS","None",2021-06-14 00:00:00,"2021","04","AP93093-001","N40281","Condition Appraisals works 2020-21","1233","Contractor Payments"
"GUILDFORD BOROUGH COUNCIL","Renovations","C L C Contractors Limited","982900","06/07/2021",30026748,146.37,0,"Contractor Payments","Property Maintenance Contractors","II","BACS","None",2021-06-14 00:00:00,"2021","04","AP93093-001","N40281","Condition Appraisals works 2020-21","1233","Contractor Payments"
"GUILDFORD BOROUGH COUNCIL","Renovations","C L C Contractors Limited","982900","06/07/2021",30026748,146.37,0,"Contractor Payments","Property Maintenance Contractors","II","BACS","None",2021-06-14 00:00:00,"2021","04","AP93093-001","N40281","Condition Appraisals works 2020-21","1233","Contractor Payments"
"GUILDFORD BOROUGH COUNCIL","Renovations","C L C Contractors Limited","982900","06/07/2021",30026748,146.37,0,"Contractor Payments","Property Maintenance Contractors","II","BACS","None",2021-06-14 00:00:00,"2021","04","AP93093-001","N40281","Condition Appraisals works 2020-21","1233","Contractor Payments"
"GUILDFORD BOROUGH COUNCIL","Renovations","C L C Contractors Limited","982900","06/07/2021",30026748,146.37,0,"Contractor Payments","Property Maintenance Contractors","II","BACS","None",2021-06-14 00:00:00,"2021","04","AP93093-001","N40281","Condition Appraisals works 2020-21","1233","Contractor Payments"
"GUILDFORD BOROUGH COUNCIL","Renovations","C L C Contractors Limited","982900","06/07/2021",30026748,146.37,0,"Contractor Payments","Property Maintenance Contractors","II","BACS","None",2021-06-14 00:00:00,"2021","04","AP93093-001","N40281","Condition Appraisals works 2020-21","1233","Contractor Payments"
"GUILDFORD BOROUGH COUNCIL","Renovations","C L C Contractors Limited","982900","06/07/2021",30026748,146.37,0,"Contractor Payments","Property Maintenance Contractors","II","BACS","None",2021-06-14 00:00:00,"2021","04","AP93093-001","N40281","Condition Appraisals works 2020-21","1233","Contractor Payments"
"GUILDFORD BOROUGH COUNCIL","Renovations","C L C Contractors Limited","982900","06/07/2021",30026748,146.37,0,"Contractor Payments","Property Maintenance Contractors","II","BACS","None",2021-06-14 00:00:00,"2021","04","AP93093-001","N40281","Condition Appraisals works 2020-21","1233","Contractor Payments"
"GUILDFORD BOROUGH COUNCIL","Renovations","C L C Contractors Limited","982900","06/07/2021",30026749,1850,0,"Contractor Payments","Property Maintenance Contractors","II","BACS","None",2021-06-14 00:00:00,"2021","04","AP93095-001","N40281","Condition Appraisals works 2020-21","1233","Contractor Payments"
"GUILDFORD BOROUGH COUNCIL","Renovations","C L C Contractors Limited","982900","06/07/2021",30026749,760.43,0,"Contractor Payments","Property Maintenance Contractors","II","BACS","None",2021-06-14 00:00:00,"2021","04","AP93095-001","N40281","Condition Appraisals works 2020-21","1233","Contractor Payments"
"GUILDFORD BOROUGH COUNCIL","Flats Communal Services","Guildford Lock And Safe Limited","229400","06/07/2021",30026750,206,0,"Asset Maintenance","Keys And Locksmiths","II","BACS","None",2020-09-08 00:00:00,"2021","04","27188","M2787","Manor Road 90A-92B  (6)","B1001","Asset Maintenance"
"GUILDFORD BOROUGH COUNCIL","Traveller Caravan Sites","Paul Phelan","261400","06/07/2021",30026751,76,0,"Asset Maintenance","Sewerage And Drainage Service Providers","II","BACS","None",2021-06-23 00:00:00,"2021","04","83530","C1500","Traveller Caravan Sites","B1001","Asset Maintenance"
"GUILDFORD BOROUGH COUNCIL","Responsive & Planned Maintenance","Paul Phelan","261400","06/07/2021",30026752,59.5,0,"Asset Maintenance","Sewerage And Drainage Service Providers","II","BACS","None",2021-06-16 00:00:00,"2021","04","83535","M5113","Repairs-Responsive (BHS)","B1001","Asset Maintenance"
"GUILDFORD BOROUGH COUNCIL","Responsive & Planned Maintenance","Paul Phelan","261400","06/07/2021",30026753,59.5,0,"Asset Maintenance","Sewerage And Drainage Service Providers","II","BACS","None",2021-06-16 00:00:00,"2021","04","83536","M5113","Repairs-Responsive (BHS)","B1001","Asset Maintenance"
"GUILDFORD BOROUGH COUNCIL","Responsive & Planned Maintenance","Paul Phelan","261400","06/07/2021",30026754,59.5,0,"Asset Maintenance","Sewerage And Drainage Service Providers","II","BACS","None",2021-06-17 00:00:00,"2021","04","83541","M5113","Repairs-Responsive (BHS)","B1001","Asset Maintenance"
"GUILDFORD BOROUGH COUNCIL","Responsive & Planned Maintenance","Paul Phelan","261400","06/07/2021",30026755,59.5,0,"Asset Maintenance","Sewerage And Drainage Service Providers","II","BACS","None",2021-06-17 00:00:00,"2021","04","83542","M5113","Repairs-Responsive (BHS)","B1001","Asset Maintenance"
"GUILDFORD BOROUGH COUNCIL","Responsive & Planned Maintenance","Paul Phelan","261400","06/07/2021",30026756,59.5,0,"Asset Maintenance","Sewerage And Drainage Service Providers","II","BACS","None",2021-06-18 00:00:00,"2021","04","83547","M5113","Repairs-Responsive (BHS)","B1001","Asset Maintenance"
"GUILDFORD BOROUGH COUNCIL","Responsive & Planned Maintenance","Paul Phelan","261400","06/07/2021",30026757,59.5,0,"Asset Maintenance","Sewerage And Drainage Service Providers","II","BACS","None",2021-06-21 00:00:00,"2021","04","83560","M5113","Repairs-Responsive (BHS)","B1001","Asset Maintenance"
"GUILDFORD BOROUGH COUNCIL","Traveller Caravan Sites","Paul Phelan","261400","06/07/2021",30026758,76,0,"Asset Maintenance","Sewerage And Drainage Service Providers","II","BACS","None",2021-06-21 00:00:00,"2021","04","83561","C1500","Traveller Caravan Sites","B1001","Asset Maintenance"
"GUILDFORD BOROUGH COUNCIL","Responsive & Planned Maintenance","Paul Phelan","261400","06/07/2021",30026759,59.5,0,"Asset Maintenance","Sewerage And Drainage Service Providers","II","BACS","None",2021-06-21 00:00:00,"2021","04","83562","M5113","Repairs-Responsive (BHS)","B1001","Asset Maintenance"
"GUILDFORD BOROUGH COUNCIL","Responsive & Planned Maintenance","Paul Phelan","261400","06/07/2021",30026760,119,0,"Asset Maintenance","Sewerage And Drainage Service Providers","II","BACS","None",2021-06-21 00:00:00,"2021","04","83563","M5113","Repairs-Responsive (BHS)","B1001","Asset Maintenance"
"GUILDFORD BOROUGH COUNCIL","Responsive & Planned Maintenance","Paul Phelan","261400","06/07/2021",30026761,76,0,"Asset Maintenance","Sewerage And Drainage Service Providers","II","BACS","None",2021-06-23 00:00:00,"2021","04","83574","M5113","Repairs-Responsive (BHS)","B1001","Asset Maintenance"
"GUILDFORD BOROUGH COUNCIL","Responsive & Planned Maintenance","Paul Phelan","261400","06/07/2021",30026762,64,0,"Asset Maintenance","Sewerage And Drainage Service Providers","II","BACS","None",2021-06-23 00:00:00,"2021","04","83587","M5113","Repairs-Responsive (BHS)","B1001","Asset Maintenance"
"GUILDFORD BOROUGH COUNCIL","Off Street Parking","Parking Refunds","9999994","06/07/2021",30026763,7,0,"Car Parks and Parking","","II","BACS","None",2021-07-05 00:00:00,"2021","04","Mr N Gray Castle Car Park parking refund","B2277","Castle Mscp","K4015","Car Parks and Parking"
"GUILDFORD BOROUGH COUNCIL","Off Street Parking","Parking Refunds","9999994","06/07/2021",30026764,13,0,"Car Parks and Parking","","II","BACS","None",2021-07-05 00:00:00,"2021","04","Miss T R Cook refund for lost ticket Castle Car Pa","B2277","Castle Mscp","K4015","Car Parks and Parking"
"GUILDFORD BOROUGH COUNCIL","Licensing","NewsTeam Group Ltd","1000248","20/07/2021",30026765,10.17,0,"Publications","","II","BACS","None",2021-06-26 00:00:00,"2021","04","10245","H2100","Licensing Services","D5001","Publications"
"GUILDFORD BOROUGH COUNCIL","Corporate Services","NewsTeam Group Ltd","1000248","20/07/2021",30026765,69.06,0,"Publications","","II","BACS","None",2021-06-26 00:00:00,"2021","04","10245","F1111","Corporate Services","D5001","Publications"
"GUILDFORD BOROUGH COUNCIL","Woking Road Depot","NewsTeam Group Ltd","1000248","20/07/2021",30026765,10.17,0,"Publications","","II","BACS","None",2021-06-26 00:00:00,"2021","04","10245","B4452","Woking Road Depot","D5001","Publications"
"GUILDFORD BOROUGH COUNCIL","Other Property","E.On","178880","15/07/2021",30026766,40,0,"Utilities","Mains Utility Multiple Service Providers","II","BACS","None",2021-06-22 00:00:00,"2021","04","H19FCC4BE7","B6594","White Hart Meadows Car Park","B2001","Utilities"
"GUILDFORD BOROUGH COUNCIL","Other Property","E.On","178880","15/07/2021",30026766,56.08,0,"Utilities","Mains Utility Multiple Service Providers","II","BACS","None",2021-06-22 00:00:00,"2021","04","H19FCC4BE7","B6594","White Hart Meadows Car Park","B2001","Utilities"
"GUILDFORD BOROUGH COUNCIL","Building Maintenance","D G Property Refurbishment Ltd","713710","06/07/2021",30026767,2493.95,0,"Services","Restoration Specialists","II","BACS","None",2021-05-04 00:00:00,"2021","04","103","K1515","Building Maintenance","D6004","Services"
"GUILDFORD BOROUGH COUNCIL","Building Maintenance","D G Property Refurbishment Ltd","713710","06/07/2021",30026767,2300,0,"Materials","Restoration Specialists","II","BACS","None",2021-05-04 00:00:00,"2021","04","103","K1515","Building Maintenance","D2003","Materials"
"GUILDFORD BOROUGH COUNCIL","Non Reportable Activity","Community Foundation For Surrey","774460","29/07/2021",30026768,874.2,0,"Materials","Community Partnerships","II","BACS","None",2021-07-05 00:00:00,"2021","04","Lottery Proceeds 050721","G1188","Community Lottery Holding Acc","D2003","Materials"
"GUILDFORD BOROUGH COUNCIL","Industrial Estates","Southern Gas Networks Plc","531740","13/07/2021",30026769,1041.6,0,"Contractor Payments","Mains Gas Suppliers","II","BACS","None",2021-07-05 00:00:00,"2021","04","SGN Ref. Number: 2180162","P72037","Midleton Ind Est Redevelop","1233","Contractor Payments"
"GUILDFORD BOROUGH COUNCIL","Industrial Estates","Uk Power Networks","202460","29/07/2021",30026772,1324.8,0,"Contractor Payments","Property Letting And Estate Agents","II","BACS","None",2021-07-05 00:00:00,"2021","04","UK Power Networks Ref. Number: 3300014361","P72037","Midleton Ind Est Redevelop","1233","Contractor Payments"
"GUILDFORD BOROUGH COUNCIL","Tenant Services","The Public Trustee","178720","06/07/2021",30026773,40,0,"Services","Other Legal Service Providers","II","BACS","None",2021-07-05 00:00:00,"2021","04","Public Trustee payment Charman 65 Dunmore","M1151","Tenants Services (BHS)","D6004","Services"
"GUILDFORD BOROUGH COUNCIL","Homelessness Support","Martin & Co Lettings","951870","06/07/2021",30026774,500,0,"Partnerships","","II","BACS","None",2021-07-05 00:00:00,"2021","04","Miss N Jeffery Harts Gardens bond claim","C3311","Homelessness","D6013","Partnerships"
"GUILDFORD BOROUGH COUNCIL","Homelessness Support","Martin & Co Lettings","951870","06/07/2021",30026774,1500,0,"Deposit/Bonds Re-Paid","","II","BACS","None",2021-07-05 00:00:00,"2021","04","Miss N Jeffery Harts Gardens bond claim","C3311","Homelessness","D1202","Deposit/Bonds Re-Paid"
"GUILDFORD BOROUGH COUNCIL","Development Control","Portal Planquest Ltd.","1000021","08/07/2021",30026786,118,0,"Planning Fees","","II","BACS","None",2021-07-05 00:00:00,"2021","04","PP-09975882v1 HPA","D5100","Development Control - Fee Earn","K4006","Planning Fees"
"GUILDFORD BOROUGH COUNCIL","Major Projects","3R Finance Ltd","1000077","29/07/2021",30026788,990,0,"Agency Staff","","II","BACS","None",2021-07-05 00:00:00,"2021","04","INV-48200","F5530","Major Projects","1222","Agency Staff"
"GUILDFORD BOROUGH COUNCIL","New Build","3R Finance Ltd","1000077","29/07/2021",30026788,247.5,0,"Agency Staff","","II","BACS","None",2021-07-05 00:00:00,"2021","04","INV-48200","N30022","Manor House Flats","1222","Agency Staff"
"GUILDFORD BOROUGH COUNCIL","Property","Thames Water Utilities Limited (Reading)","827120","15/07/2021",30026790,342152.35,0,"Consultants Fees","Mains Water Suppliers","II","BACS","None",2021-07-01 00:00:00,"2021","04","CBA2102311","P74040","Slyfield Area Regeneration Project","1221","Consultants Fees"
"GUILDFORD BOROUGH COUNCIL","Building Maintenance","C A Moore (CIS)","113100","06/07/2021",30026791,2500,0,"Materials","Joiners And Carpenters","II","BACS","None",2021-06-29 00:00:00,"2021","04","480","K1515","Building Maintenance","D2003","Materials"
"GUILDFORD BOROUGH COUNCIL","Building Maintenance","C A Moore (CIS)","113100","06/07/2021",30026791,500,0,"Services","Joiners And Carpenters","II","BACS","None",2021-06-29 00:00:00,"2021","04","480","K1515","Building Maintenance","D6004","Services"
"GUILDFORD BOROUGH COUNCIL","Miscellaneous Expenses","Risk Security Solutions Limited (RSS)","1000118","29/07/2021",30026793,2470,0,"Contractors","","II","BACS","None",2021-07-05 00:00:00,"2021","04","RSS-0877","F7539","COVID-19","D6012","Contractors"
"GUILDFORD BOROUGH COUNCIL","Inventories","UK Plumbing Supplies T/AS Graham the Plumbers Merchant","220400","06/07/2021",30026794,-144.6,0,"Purchases","Plumbing, Heating And Ac (Hvac) Equipment Suppliers","II","BACS","None",2021-06-25 00:00:00,"2021","04","0357/00164067","I01001","Stocks","2591","Purchases"
"GUILDFORD BOROUGH COUNCIL","Off Street Parking","Hako Machines Limited","235000","27/07/2021",30026795,237.5,0,"Asset Maintenance","Cleaning And Janitorial Equipment And Supplies Providers","II","BACS","None",2021-07-02 00:00:00,"2021","04","9002059850","B2244","Farnham Road Mscp","B1001","Asset Maintenance"
"GUILDFORD BOROUGH COUNCIL","Vehicle Maintenance","Partsplusuk","984320","22/07/2021",30026796,29.34,0,"Repair And Maintenance Of Vehicles","Third Party Supplier","II","BACS","None",2021-06-29 00:00:00,"2021","04","16517455","K5551","Fleet Workshops","C1002","Repair And Maintenance Of Vehicles"
"GUILDFORD BOROUGH COUNCIL","Inventories","UK Plumbing Supplies T/AS Graham the Plumbers Merchant","220400","20/07/2021",30026797,32.17,0,"Purchases","Plumbing, Heating And Ac (Hvac) Equipment Suppliers","II","BACS","None",2021-06-25 00:00:00,"2021","04","0357/00164085","I01001","Stocks","2591","Purchases"
"GUILDFORD BOROUGH COUNCIL","Private Sector Housing Maintenance","BJC Design (Southeast) Ltd","938540","20/07/2021",30026798,1091,0,"Services","Surveyors And Inspectors","II","BACS","None",2021-06-24 00:00:00,"2021","04","000695","C5132","Care And Repair (Detr)","D6004","Services"
"GUILDFORD BOROUGH COUNCIL","Inventories","UK Plumbing Supplies T/AS Graham the Plumbers Merchant","220400","06/07/2021",30026799,-0.93,0,"Purchases","Plumbing, Heating And Ac (Hvac) Equipment Suppliers","II","BACS","None",2021-06-25 00:00:00,"2021","04","0357/00164089","I01001","Stocks","2591","Purchases"
"GUILDFORD BOROUGH COUNCIL","Countryside and Parks Services","Rigby Taylor Limited","714600","27/07/2021",30026800,865.2,0,"Materials","Gardening Equipment Suppliers","II","BACS","None",2021-07-02 00:00:00,"2021","04","RSIN0380209","A1100","Horticulture","D2003","Materials"
"GUILDFORD BOROUGH COUNCIL","Countryside and Parks Services","Rigby Taylor Limited","714600","27/07/2021",30026800,50,0,"Materials","Gardening Equipment Suppliers","II","BACS","None",2021-07-02 00:00:00,"2021","04","RSIN0380209","A1100","Horticulture","D2003","Materials"
"GUILDFORD BOROUGH COUNCIL","Inventories","Saint-Gobain Building Distribution Limited (Jewson)","271200","06/07/2021",30026801,-53.84,0,"Purchases","Builders Merchants","II","BACS","None",2021-06-23 00:00:00,"2021","04","0652/00105898","I01001","Stocks","2591","Purchases"
"GUILDFORD BOROUGH COUNCIL","Inventories","UK Plumbing Supplies T/AS Graham the Plumbers Merchant","220400","06/07/2021",30026802,-14.65,0,"Purchases","Plumbing, Heating And Ac (Hvac) Equipment Suppliers","II","BACS","None",2021-06-25 00:00:00,"2021","04","0357/00164084","I01001","Stocks","2591","Purchases"
"GUILDFORD BOROUGH COUNCIL","Inventories","UK Plumbing Supplies T/AS Graham the Plumbers Merchant","220400","06/07/2021",30026803,-0.45,0,"Purchases","Plumbing, Heating And Ac (Hvac) Equipment Suppliers","II","BACS","None",2021-06-25 00:00:00,"2021","04","0357/00164092","I01001","Stocks","2591","Purchases"
"GUILDFORD BOROUGH COUNCIL","Inventories","UK Plumbing Supplies T/AS Graham the Plumbers Merchant","220400","06/07/2021",30026804,-28.92,0,"Purchases","Plumbing, Heating And Ac (Hvac) Equipment Suppliers","II","BACS","None",2021-06-25 00:00:00,"2021","04","0357/00164065","I01001","Stocks","2591","Purchases"
"GUILDFORD BOROUGH COUNCIL","Inventories","UK Plumbing Supplies T/AS Graham the Plumbers Merchant","220400","06/07/2021",30026805,-231.36,0,"Purchases","Plumbing, Heating And Ac (Hvac) Equipment Suppliers","II","BACS","None",2021-06-25 00:00:00,"2021","04","0357/00164071","I01001","Stocks","2591","Purchases"
"GUILDFORD BOROUGH COUNCIL","Emergency Communications","Tunstall Healthcare (UK) Ltd","100310","06/07/2021",30026806,365,0,"Equipment","Community Alarm Suppliers","II","BACS","None",2021-02-19 00:00:00,"2021","04","3IN/10368894","C2511","Careline/Telecare","D2001","Equipment"
"GUILDFORD BOROUGH COUNCIL","Homelessness Support","LHG Thornton Heath Ltd","1000382","27/07/2021",30026807,165,0,"Emergency Accomodation","","II","BACS","None",2021-06-30 00:00:00,"2021","04","GT19024","C3311","Homelessness","D8009","Emergency Accomodation"
"GUILDFORD BOROUGH COUNCIL","Inventories","UK Plumbing Supplies T/AS Graham the Plumbers Merchant","220400","06/07/2021",30026808,-28.92,0,"Purchases","Plumbing, Heating And Ac (Hvac) Equipment Suppliers","II","BACS","None",2021-06-25 00:00:00,"2021","04","0357/00164070","I01001","Stocks","2591","Purchases"
"GUILDFORD BOROUGH COUNCIL","Countryside and Parks Services","Bowcom (Fiddes & Son T/A)","1000390","06/07/2021",30026810,1365,0,"Materials","","II","BACS","None",2021-05-28 00:00:00,"2021","04","I52684","A1200","Sports Grounds","D2003","Materials"
"GUILDFORD BOROUGH COUNCIL","Executive - Miscellaneous","Pinsent Masons LLP","992900","03/08/2021",30026811,23949.2,0,"Consultants Fees","Other Legal Service Providers","II","BACS","None",2021-06-29 00:00:00,"2021","04","6614890","P79100","Wuv - Allotment Relocation","1221","Consultants Fees"
"GUILDFORD BOROUGH COUNCIL","Business Improvement","Unit4 Business Software Ltd","975910","06/07/2021",30026812,21071,0,"Consultancy","","II","BACS","None",2021-03-31 00:00:00,"2021","04","2000011400","G3531","Future Guildford","D6001","Consultancy"
"GUILDFORD BOROUGH COUNCIL","Audit Management","Unit4 Business Software Ltd","975910","06/07/2021",30026812,21071,0,"Consultancy","","II","BACS","None",2021-03-31 00:00:00,"2021","04","2000011400","G3531","Future Guildford","D6001","Consultancy"
"GUILDFORD BOROUGH COUNCIL","Countryside and Parks Services","AGB Contractors Limited","766060","08/07/2021",30026813,2520,0,"Asset Maintenance","General Builders","II","BACS","None",2021-07-03 00:00:00,"2021","04","210703","A1250","Stoke Park","B1001","Asset Maintenance"
"GUILDFORD BOROUGH COUNCIL","Countryside and Parks Services","AGB Contractors Limited","766060","08/07/2021",30026813,278,0,"Asset Maintenance","General Builders","II","BACS","None",2021-07-03 00:00:00,"2021","04","210703","A1250","Stoke Park","B1001","Asset Maintenance"
"GUILDFORD BOROUGH COUNCIL","Countryside and Parks Services","Barnsfold Nurseries Ltd","323440","27/07/2021",30026814,1632.14,0,"Materials","Garden Centres And Nurseries","II","BACS","None",2021-06-30 00:00:00,"2021","04","90443","A1250","Stoke Park","D2003","Materials"
"GUILDFORD BOROUGH COUNCIL","Countryside and Parks Services","Barnsfold Nurseries Ltd","323440","27/07/2021",30026814,14036.36,0,"Materials","Garden Centres And Nurseries","II","BACS","None",2021-06-30 00:00:00,"2021","04","90443","A1130","Castle Grounds","D2003","Materials"
"GUILDFORD BOROUGH COUNCIL","Countryside and Parks Services","Barnsfold Nurseries Ltd","323440","27/07/2021",30026814,652.85,0,"Materials","Garden Centres And Nurseries","II","BACS","None",2021-06-30 00:00:00,"2021","04","90443","A1000","Parks Contracts","D2003","Materials"
"GUILDFORD BOROUGH COUNCIL","Business Forum","The Stuart Mitchell Group","1000075","27/07/2021",30026815,3465,0,"Grants And Subscriptions","","II","BACS","None",2021-07-02 00:00:00,"2021","04","410701","F7520","Business Forum","D9001","Grants And Subscriptions"
"GUILDFORD BOROUGH COUNCIL","Homelessness Support","London Hounslow Ltd","1000033","27/07/2021",30026816,1080,0,"Emergency Accomodation","","II","BACS","None",2021-06-30 00:00:00,"2021","04","H20685","C3311","Homelessness","D8009","Emergency Accomodation"
"GUILDFORD BOROUGH COUNCIL","Inventories","UK Plumbing Supplies T/AS Graham the Plumbers Merchant","220400","06/07/2021",30026817,-0.3,0,"Purchases","Plumbing, Heating And Ac (Hvac) Equipment Suppliers","II","BACS","None",2021-06-25 00:00:00,"2021","04","0357/00164086","I01001","Stocks","2591","Purchases"
"GUILDFORD BOROUGH COUNCIL","Emergency Communications","Tunstall Healthcare (UK) Ltd","100310","06/07/2021",30026818,374.7,0,"Equipment","Community Alarm Suppliers","II","BACS","None",2021-04-16 00:00:00,"2021","04","3IN/10371965","C2511","Careline/Telecare","D2001","Equipment"
"GUILDFORD BOROUGH COUNCIL","Countryside and Parks Services","A1-CBISS Limited","1000401","27/07/2021",30026820,1041.74,0,"Clothing & Uniform","","II","BACS","None",2021-07-02 00:00:00,"2021","04","OP/I079197","A1250","Stoke Park","D4001","Clothing & Uniform"
"GUILDFORD BOROUGH COUNCIL","Inventories","UK Plumbing Supplies T/AS Graham the Plumbers Merchant","220400","13/07/2021",30026821,-173.52,0,"Purchases","Plumbing, Heating And Ac (Hvac) Equipment Suppliers","II","BACS","None",2021-06-25 00:00:00,"2021","04","0357/00164066","I01001","Stocks","2591","Purchases"
"GUILDFORD BOROUGH COUNCIL","Building Control","Concept Group Ltd","856810","27/07/2021",30026822,364.09,0,"Printing, Photocopying And Reprographics Internal","Other Office Equipment Suppliers","II","BACS","None",2021-06-30 00:00:00,"2021","04","583328CO","D5700","Building Control - Fee","D5006","Printing, Photocopying And Reprographics Internal"
"GUILDFORD BOROUGH COUNCIL","Development Control","Concept Group Ltd","856810","27/07/2021",30026822,364.09,0,"Printing, Photocopying And Reprographics Internal","Other Office Equipment Suppliers","II","BACS","None",2021-06-30 00:00:00,"2021","04","583328CO","D5100","Development Control - Fee Earn","D5006","Printing, Photocopying And Reprographics Internal"
"GUILDFORD BOROUGH COUNCIL","Community Safety","Applied Resilience Limited","822600","27/07/2021",30026823,700.42,0,"Consultancy","Other Business Service Providers","II","BACS","None",2021-07-01 00:00:00,"2021","04","GBC92","F5724","Safer Guildford Partnership","D6001","Consultancy"
"GUILDFORD BOROUGH COUNCIL","Vehicle Maintenance","F G Barnes & Sons Ltd T/A Barnes Daf","882000","27/07/2021",30026824,2153.51,0,"Repair And Maintenance Of Vehicles","Car And Van Dealers","II","BACS","None",2021-06-30 00:00:00,"2021","04","81509080","K5551","Fleet Workshops","C1002","Repair And Maintenance Of Vehicles"
"GUILDFORD BOROUGH COUNCIL","Inventories","UK Plumbing Supplies T/AS Graham the Plumbers Merchant","220400","13/07/2021",30026826,-173.52,0,"Purchases","Plumbing, Heating And Ac (Hvac) Equipment Suppliers","II","BACS","None",2021-06-25 00:00:00,"2021","04","0357/00164069","I01001","Stocks","2591","Purchases"
"GUILDFORD BOROUGH COUNCIL","Major Projects","The Oyster Partnership Ltd","814220","20/07/2021",30026827,567.23,0,"Agency","Other Recruitment Agencies And Service Providers","II","BACS","None",2021-06-23 00:00:00,"2021","04","1098019","F5530","Major Projects","A5191","Agency"
"GUILDFORD BOROUGH COUNCIL","Executive - Miscellaneous","The Oyster Partnership Ltd","814220","20/07/2021",30026827,425.42,0,"Agency Staff","Other Recruitment Agencies And Service Providers","II","BACS","None",2021-06-23 00:00:00,"2021","04","1098019","P79038","Ash Road Footbridge","1222","Agency Staff"
"GUILDFORD BOROUGH COUNCIL","Executive - Miscellaneous","The Oyster Partnership Ltd","814220","20/07/2021",30026827,1843.48,0,"Agency Staff","Other Recruitment Agencies And Service Providers","II","BACS","None",2021-06-23 00:00:00,"2021","04","1098019","P79037","Ash Road Bridge","1222","Agency Staff"
"GUILDFORD BOROUGH COUNCIL","Building Maintenance","D G Property Refurbishment Ltd","713710","06/07/2021",30026830,2800,0,"Materials","Restoration Specialists","II","BACS","None",2021-06-14 00:00:00,"2021","04","X0068124/111/140621","K1515","Building Maintenance","D2003","Materials"
"GUILDFORD BOROUGH COUNCIL","Building Maintenance","D G Property Refurbishment Ltd","713710","06/07/2021",30026830,2780.82,0,"Services","Restoration Specialists","II","BACS","None",2021-06-14 00:00:00,"2021","04","X0068124/111/140621","K1515","Building Maintenance","D6004","Services"
"GUILDFORD BOROUGH COUNCIL","Emergency Communications","Tunstall Healthcare (UK) Ltd","100310","06/07/2021",30026831,562.05,0,"Equipment","Community Alarm Suppliers","II","BACS","None",2021-03-29 00:00:00,"2021","04","3IN/10371120","C2511","Careline/Telecare","D2001","Equipment"
"GUILDFORD BOROUGH COUNCIL","Vehicle Maintenance","F G Barnes & Sons Ltd T/A Barnes Daf","882000","27/07/2021",30026832,100.71,0,"Repair And Maintenance Of Vehicles","Car And Van Dealers","II","BACS","None",2021-07-02 00:00:00,"2021","04","10312315","K5551","Fleet Workshops","C1002","Repair And Maintenance Of Vehicles"
"GUILDFORD BOROUGH COUNCIL","Civil Emergencies","Applied Resilience Limited","822600","27/07/2021",30026833,2750,0,"Specialist Services","Other Business Service Providers","II","BACS","None",2021-07-01 00:00:00,"2021","04","GBC91","F1511","Civil Emergencies","D6009","Specialist Services"
"GUILDFORD BOROUGH COUNCIL","Inventories","UK Plumbing Supplies T/AS Graham the Plumbers Merchant","220400","13/07/2021",30026834,-2.2,0,"Purchases","Plumbing, Heating And Ac (Hvac) Equipment Suppliers","II","BACS","None",2021-06-25 00:00:00,"2021","04","0357/00164091","I01001","Stocks","2591","Purchases"
"GUILDFORD BOROUGH COUNCIL","Inventories","UK Plumbing Supplies T/AS Graham the Plumbers Merchant","220400","13/07/2021",30026835,-260.37,0,"Purchases","Plumbing, Heating And Ac (Hvac) Equipment Suppliers","II","BACS","None",2021-06-29 00:00:00,"2021","04","0357/00164135","I01001","Stocks","2591","Purchases"
"GUILDFORD BOROUGH COUNCIL","Other Short Term Creditors","My Staff Shop Limited","971670","13/07/2021",30026836,1971,0,"Payments","Other Business Service Providers","II","BACS","None",2021-07-05 00:00:00,"2021","04","INV-6207","L08013","Sals Dedns - Childcare Voucher","2489","Payments"
"GUILDFORD BOROUGH COUNCIL","Inventories","UK Plumbing Supplies T/AS Graham the Plumbers Merchant","220400","13/07/2021",30026837,-86.76,0,"Purchases","Plumbing, Heating And Ac (Hvac) Equipment Suppliers","II","BACS","None",2021-06-25 00:00:00,"2021","04","0357/00164068","I01001","Stocks","2591","Purchases"
"GUILDFORD BOROUGH COUNCIL","Inventories","UK Plumbing Supplies T/AS Graham the Plumbers Merchant","220400","13/07/2021",30026838,-2.74,0,"Purchases","Plumbing, Heating And Ac (Hvac) Equipment Suppliers","II","BACS","None",2021-06-25 00:00:00,"2021","04","0357/00164083","I01001","Stocks","2591","Purchases"
"GUILDFORD BOROUGH COUNCIL","Homelessness Support","Project 114 Ltd","847120","29/07/2021",30026839,945,0,"Emergency Accomodation","Property Letting And Estate Agents","II","BACS","None",2021-07-05 00:00:00,"2021","04","3240","C3311","Homelessness","D8009","Emergency Accomodation"
"GUILDFORD BOROUGH COUNCIL","Inventories","UK Plumbing Supplies T/AS Graham the Plumbers Merchant","220400","13/07/2021",30026841,-3.8,0,"Purchases","Plumbing, Heating And Ac (Hvac) Equipment Suppliers","II","BACS","None",2021-06-25 00:00:00,"2021","04","0357/00164087","I01001","Stocks","2591","Purchases"
"GUILDFORD BOROUGH COUNCIL","Inventories","UK Plumbing Supplies T/AS Graham the Plumbers Merchant","220400","13/07/2021",30026843,-21.84,0,"Purchases","Plumbing, Heating And Ac (Hvac) Equipment Suppliers","II","BACS","None",2021-06-25 00:00:00,"2021","04","0357/00164093","I01001","Stocks","2591","Purchases"
"GUILDFORD BOROUGH COUNCIL","Tenant Services","Penna Plc","674100","27/07/2021",30026844,7590,0,"Agency","Human Resources Consultants","II","BACS","None",2021-07-02 00:00:00,"2021","04","635469","M1151","Tenants Services (BHS)","A5191","Agency"
"GUILDFORD BOROUGH COUNCIL","Council Tax","Penna Plc","674100","27/07/2021",30026844,759,0,"Agency","Human Resources Consultants","II","BACS","None",2021-07-02 00:00:00,"2021","04","635469","F6141","Council Tax Collectn Expenses","A5191","Agency"
"GUILDFORD BOROUGH COUNCIL","Affordable Housing","Penna Plc","674100","27/07/2021",30026844,4554,0,"Agency","Human Resources Consultants","II","BACS","None",2021-07-02 00:00:00,"2021","04","635469","C4111","Affordable Housing Development","A5191","Agency"
"GUILDFORD BOROUGH COUNCIL","Housing Benefits","Penna Plc","674100","27/07/2021",30026844,759,0,"Agency","Human Resources Consultants","II","BACS","None",2021-07-02 00:00:00,"2021","04","635469","C4511","Housing Benefits Admin.","A5191","Agency"
"GUILDFORD BOROUGH COUNCIL","Private Sector Housing","Penna Plc","674100","27/07/2021",30026844,1518,0,"Agency","Human Resources Consultants","II","BACS","None",2021-07-02 00:00:00,"2021","04","635469","C5122","Private Sector Housing Standard","A5191","Agency"
"GUILDFORD BOROUGH COUNCIL","Private Sector Housing Maintenance","Penna Plc","674100","27/07/2021",30026844,1518,0,"Agency","Human Resources Consultants","II","BACS","None",2021-07-02 00:00:00,"2021","04","635469","C5122","Private Sector Housing Standard","A5191","Agency"
"GUILDFORD BOROUGH COUNCIL","Citizens Advice Bureau","Ash Citizens Advice Bureau","653000","13/07/2021",30026845,75000,0,"Grants And Subscriptions","Counselling Service Providers","II","BACS","None",2021-07-02 00:00:00,"2021","04","CAB/020721","C2112","Ash CAB","D9001","Grants And Subscriptions"
"GUILDFORD BOROUGH COUNCIL","Building Maintenance","D G Property Refurbishment Ltd","713710","06/07/2021",30026846,120.5,0,"Services","Restoration Specialists","II","BACS","None",2021-06-21 00:00:00,"2021","04","X0068124/112/210621","K1515","Building Maintenance","D6004","Services"
"GUILDFORD BOROUGH COUNCIL","Guildford House","Cooper & Withycombe Ltd","146900","29/07/2021",30026847,537.5,0,"Consultancy","Other Construction Consultants","II","BACS","None",2021-07-05 00:00:00,"2021","04","21-3671","A4511","Guildford House Administration","D6001","Consultancy"
"GUILDFORD BOROUGH COUNCIL","Guildford House","Pierra Ltd (CIS)","958530","06/07/2021",30026848,2603.1,0,"Asset Maintenance","Other Construction Contractors","II","BACS","None",2021-07-02 00:00:00,"2021","04","2856","A4511","Guildford House Administration","B1001","Asset Maintenance"
"GUILDFORD BOROUGH COUNCIL","Homelessness Support","Gilroy Court Ltd","831800","27/07/2021",30026849,150,0,"Emergency Accomodation","Health And Safety Consultants","II","BACS","None",2021-06-30 00:00:00,"2021","04","GC11155","C3311","Homelessness","D8009","Emergency Accomodation"
"GUILDFORD BOROUGH COUNCIL","Vehicle Maintenance","Southern Electromotive Distribution Ltd","760300","20/07/2021",30026850,78.22,0,"Repair And Maintenance Of Vehicles","Car And Van Servicing And Maintenance Providers","II","BACS","None",2021-06-24 00:00:00,"2021","04","413245","K5551","Fleet Workshops","C1002","Repair And Maintenance Of Vehicles"
"GUILDFORD BOROUGH COUNCIL","Licensing","NewsTeam Group Ltd","1000248","06/07/2021",30026852,9.92,0,"Publications","","II","BACS","None",2021-02-27 00:00:00,"2021","04","8841","H2100","Licensing Services","D5001","Publications"
"GUILDFORD BOROUGH COUNCIL","Woking Road Depot","NewsTeam Group Ltd","1000248","06/07/2021",30026852,9.92,0,"Publications","","II","BACS","None",2021-02-27 00:00:00,"2021","04","8841","B4452","Woking Road Depot","D5001","Publications"
"GUILDFORD BOROUGH COUNCIL","Corporate Services","NewsTeam Group Ltd","1000248","06/07/2021",30026852,66.84,0,"Publications","","II","BACS","None",2021-02-27 00:00:00,"2021","04","8841","F1111","Corporate Services","D5001","Publications"
"GUILDFORD BOROUGH COUNCIL","Development Control","NewsTeam Group Ltd","1000248","06/07/2021",30026852,9.92,0,"Publications","","II","BACS","None",2021-02-27 00:00:00,"2021","04","8841","D5100","Development Control - Fee Earn","D5001","Publications"
"GUILDFORD BOROUGH COUNCIL","Street Furniture","Southern Electric (Business Accounts)","760100","22/07/2021",30026853,599.75,0,"Utilities","Mains Electricity Suppliers","II","BACS","None",2021-06-29 00:00:00,"2021","04","8305006505/290621","B3711","Civic Amenities Administration","B2001","Utilities"
"GUILDFORD BOROUGH COUNCIL","Off Street Parking","Southern Electric (Business Accounts)","760100","22/07/2021",30026854,93.89,0,"Utilities","Mains Electricity Suppliers","II","BACS","None",2021-06-29 00:00:00,"2021","04","0172433110 7","B2521","Ash Vale Rural Car Park","B2001","Utilities"
"GUILDFORD BOROUGH COUNCIL","Development Control","Portal Planquest Ltd.","1000021","08/07/2021",30026855,228,0,"Planning Fees","","II","BACS","None",2021-07-05 00:00:00,"2021","04","PP09889043v1","D5100","Development Control - Fee Earn","K4006","Planning Fees"
"GUILDFORD BOROUGH COUNCIL","Off Street Parking","Southern Electric (Business Accounts)","760100","22/07/2021",30026856,272.95,0,"Utilities","Mains Electricity Suppliers","II","BACS","None",2021-06-29 00:00:00,"2021","04","3088583010 5","B2521","Ash Vale Rural Car Park","B2001","Utilities"
"GUILDFORD BOROUGH COUNCIL","Other Short Term Debtors","Mrs Jp Lawrence","321040","08/07/2021",30026857,4440,0,"Cash Paid","","II","BACS","None",2021-07-06 00:00:00,"2021","04","Tiller - Colburn Crescent RIA","J01064","Housing H4U Scheme","2175","Cash Paid"
"GUILDFORD BOROUGH COUNCIL","Tenant Services","Southern Electric (Business Accounts)","760100","27/07/2021",30026858,150.29,0,"Utilities","Mains Electricity Suppliers","II","BACS","None",2021-07-02 00:00:00,"2021","04","09841 97413 4","M1151","Tenants Services (BHS)","B2001","Utilities"
"GUILDFORD BOROUGH COUNCIL","HRA Income","Rent Refunds","9999997","08/07/2021",30026929,95.18,0,"Rent","","II","BACS","None",2021-07-06 00:00:00,"2021","04","Mr M Fowler rent credit 100481640004","M9111","General Income","K5001","Rent"
"GUILDFORD BOROUGH COUNCIL","Countryside and Parks Services","C Brewer & Sons Limited","115700","08/07/2021",30026931,370.5,0,"Materials","Decorating Materials Suppliers","II","BACS","None",2021-03-18 00:00:00,"2021","04","GFB/308389","A1100","Horticulture","D2003","Materials"
"GUILDFORD BOROUGH COUNCIL","Woking Road Depot","Waterlogic Gb Limited","952250","27/07/2021",30026932,216.67,0,"Hire","Water Cooler And Bottled Water Suppliers","II","BACS","None",2021-06-30 00:00:00,"2021","04","6299500","B4452","Woking Road Depot","D1001","Hire"
"GUILDFORD BOROUGH COUNCIL","Tenant Selection","Language Line Limited","292900","27/07/2021",30026933,317.15,0,"Expenses","Translation And Interpretation Service Providers","II","BACS","None",2021-06-30 00:00:00,"2021","04","10266173","M1131","Advice,Regs,Tenant Select(SHS)","D8004","Expenses"
"GUILDFORD BOROUGH COUNCIL","Vehicle Maintenance","Charters Of Aldershot Limited","128600","29/07/2021",30026934,64.08,0,"Repair And Maintenance Of Vehicles","Third Party Supplier","II","BACS","None",2021-07-06 00:00:00,"2021","04","10252100","K5551","Fleet Workshops","C1002","Repair And Maintenance Of Vehicles"
"GUILDFORD BOROUGH COUNCIL","Industrial Estates","Indent Design Ltd","1000048","08/07/2021",30026935,300,0,"Consultants Fees","","II","BACS","None",2021-05-31 00:00:00,"2021","04","IN39792","P72037","Midleton Ind Est Redevelop","1221","Consultants Fees"
"GUILDFORD BOROUGH COUNCIL","Tenant Participation","Up North Communications Ltd","948420","29/07/2021",30026936,945,0,"Advertising, Publicity & Promotion","Media Production Agencies","II","BACS","None",2021-07-06 00:00:00,"2021","04","INV-0488","M1152","Tenant Participation (BHS)","D5002","Advertising, Publicity & Promotion"
"GUILDFORD BOROUGH COUNCIL","Building Control","JJ Surveying Ltd","877460","29/07/2021",30026937,550,0,"Consultancy","Surveyors And Inspectors","II","BACS","None",2021-07-05 00:00:00,"2021","04","1329","D5700","Building Control - Fee","D6001","Consultancy"
"GUILDFORD BOROUGH COUNCIL","Tenant Selection","HML Independent Medical Advice Ltd","372840","08/07/2021",30026938,332.37,0,"Services","Other Medical Professionals","II","BACS","None",2021-03-30 00:00:00,"2021","04","GU/3912/21","M1131","Advice,Regs,Tenant Select(SHS)","D6004","Services"
"GUILDFORD BOROUGH COUNCIL","Homelessness Support","London Croydon Ltd","1000383","27/07/2021",30026939,900,0,"Emergency Accomodation","","II","BACS","None",2021-06-30 00:00:00,"2021","04","IBC37","C3311","Homelessness","D8009","Emergency Accomodation"
"GUILDFORD BOROUGH COUNCIL","Off Street Parking","Restore Datashred Limited","753320","27/07/2021",30026940,69.51,0,"Waste Removal","Confidential Waste Disposal Providers","II","BACS","None",2021-06-30 00:00:00,"2021","04","1314711","B2111","Car Parks - Administration","D6010","Waste Removal"
"GUILDFORD BOROUGH COUNCIL","Lead Specialist - Finance","Adelante Software Ltd","789120","29/07/2021",30026941,746.85,0,"ICT Software","Software Developers","II","BACS","None",2021-07-06 00:00:00,"2021","04","125050","G3565","Finance Specialists","D7002","ICT Software"
"GUILDFORD BOROUGH COUNCIL","Property","The Oyster Partnership Ltd","814220","27/07/2021",30026943,4400,0,"Agency Staff","Other Recruitment Agencies And Service Providers","II","BACS","None",2021-06-30 00:00:00,"2021","04","1098467","P74040","Slyfield Area Regeneration Project","1222","Agency Staff"
"GUILDFORD BOROUGH COUNCIL","IT Renewals","Gravitas Recruitment Group","1000035","13/07/2021",30026944,3630,0,"Miscellaneous Expenses","","II","BACS","None",2021-07-05 00:00:00,"2021","04","INV169662","P81002","IT Renewals Reserve Funded General","1444","Miscellaneous Expenses"
"GUILDFORD BOROUGH COUNCIL","Lead Specialist - Finance","CCS Media Ltd","239430","29/07/2021",30026945,210,0,"ICT Hardware And Consumables","It Consumables Suppliers","II","BACS","None",2021-07-05 00:00:00,"2021","04","4257447","G3565","Finance Specialists","D7001","ICT Hardware And Consumables"
"GUILDFORD BOROUGH COUNCIL","Countryside and Parks Services","Guildford Lock And Safe Limited","229400","08/07/2021",30026946,12.6,0,"Materials","Keys And Locksmiths","II","BACS","None",2021-06-15 00:00:00,"2021","04","34768","A1100","Horticulture","D2003","Materials"
"GUILDFORD BOROUGH COUNCIL","Building Maintenance","Chambers Waste Management Plc","127500","20/07/2021",30026947,303.9,0,"Materials","Other Waste Disposal Suppliers","II","BACS","None",2021-06-26 00:00:00,"2021","04","P487378","K1515","Building Maintenance","D2003","Materials"
"GUILDFORD BOROUGH COUNCIL","Tenant Services","Glencross Cleaning Limited","217900","22/07/2021",30026948,246.59,0,"Cleaning Contractors","Other Cleaning And Janitorial Service Providers","II","BACS","None",2021-06-28 00:00:00,"2021","04","25434","M1151","Tenants Services (BHS)","D6006","Cleaning Contractors"
"GUILDFORD BOROUGH COUNCIL","Lead Specialist - ICT","Unit4 Business Software Ltd","975910","13/07/2021",30026950,27889.06,0,"ICT Software","","II","BACS","None",2021-04-26 00:00:00,"2021","04","20000012271","G3548","ICT Technical & Infrastructure","D7002","ICT Software"
"GUILDFORD BOROUGH COUNCIL","Guildford House","Cooper & Withycombe Ltd","146900","29/07/2021",30026951,1047.5,0,"Consultancy","Other Construction Consultants","II","BACS","None",2021-07-06 00:00:00,"2021","04","21-3703","A4511","Guildford House Administration","D6001","Consultancy"
"GUILDFORD BOROUGH COUNCIL","SPA Sites","Beaver Plants Ltd","1000398","27/07/2021",30026952,416.35,0,"Materials","","II","BACS","None",2021-06-16 00:00:00,"2021","04","87697","A1010","SPA Sites","D2003","Materials"
"GUILDFORD BOROUGH COUNCIL","Day Services","Matthew Algie & Company Limited","989610","27/07/2021",30026953,151.2,0,"Catering","","II","BACS","None",2021-07-01 00:00:00,"2021","04","0003089056","C8100","Community Hubs","D3001","Catering"
"GUILDFORD BOROUGH COUNCIL","Off Street Parking","Metric Group Limited","322900","08/07/2021",30026954,100,0,"Materials","Parking Management Providers","II","BACS","None",2021-07-01 00:00:00,"2021","04","C59895","B2216","General Upkeep- Urban Car Pks","D2003","Materials"
"GUILDFORD BOROUGH COUNCIL","Parks & Countryside","Broxap Limited","106700","08/07/2021",30026955,2620,0,"Contractor Payments","Sheet Metal And Fabrication Suppliers","II","BACS","None",2021-05-27 00:00:00,"2021","04","INV276046","P18234","LIDO ROAD CAR PARK 17P00509","1233","Contractor Payments"
"GUILDFORD BOROUGH COUNCIL","Major Projects","The Oyster Partnership Ltd","814220","27/07/2021",30026956,597.48,0,"Agency","Other Recruitment Agencies And Service Providers","II","BACS","None",2021-06-30 00:00:00,"2021","04","1098468","F5530","Major Projects","A5191","Agency"
"GUILDFORD BOROUGH COUNCIL","Executive - Miscellaneous","The Oyster Partnership Ltd","814220","27/07/2021",30026956,448.11,0,"Agency Staff","Other Recruitment Agencies And Service Providers","II","BACS","None",2021-06-30 00:00:00,"2021","04","1098468","P79038","Ash Road Footbridge","1222","Agency Staff"
"GUILDFORD BOROUGH COUNCIL","Executive - Miscellaneous","The Oyster Partnership Ltd","814220","27/07/2021",30026956,1941.8,0,"Agency Staff","Other Recruitment Agencies And Service Providers","II","BACS","None",2021-06-30 00:00:00,"2021","04","1098468","P79037","Ash Road Bridge","1222","Agency Staff"
"GUILDFORD BOROUGH COUNCIL","Council Tax","Royal Mail Group Ltd (Chesterfield)","878030","22/07/2021",30026957,1201.61,0,"Postage","","II","BACS","None",2021-06-28 00:00:00,"2021","04","9063175425","F6141","Council Tax Collectn Expenses","D5003","Postage"
"GUILDFORD BOROUGH COUNCIL","Business Rates","Royal Mail Group Ltd (Chesterfield)","878030","22/07/2021",30026957,343.77,0,"Postage","","II","BACS","None",2021-06-28 00:00:00,"2021","04","9063175425","F6151","Business Rates Collection Exps","D5003","Postage"
"GUILDFORD BOROUGH COUNCIL","Resources Caseworker","Royal Mail Group Ltd (Chesterfield)","878030","22/07/2021",30026957,300.95,0,"Postage","","II","BACS","None",2021-06-28 00:00:00,"2021","04","9063175425","G3550","Resources Caseworker","D5003","Postage"
"GUILDFORD BOROUGH COUNCIL","Inventories","M E Duffell Ltd","510200","22/07/2021",30026958,103.4,0,"Purchases","Keys And Locksmiths","II","BACS","None",2021-06-29 00:00:00,"2021","04","I2252117","I01001","Stocks","2591","Purchases"
"GUILDFORD BOROUGH COUNCIL","Inventories","Akw Medi-Care Limited","178400","22/07/2021",30026960,1056.06,0,"Purchases","Mobility Disability Equipment Suppliers","II","BACS","None",2021-06-29 00:00:00,"2021","04","1940039","I01001","Stocks","2591","Purchases"
"GUILDFORD BOROUGH COUNCIL","Leisure Management Contract","Press & Starkey","851330","27/07/2021",30026961,1300,0,"Asset Maintenance","Quantity Surveyors","II","BACS","None",2021-06-30 00:00:00,"2021","04","693","A7550","Lido","B1001","Asset Maintenance"
"GUILDFORD BOROUGH COUNCIL","Inventories","Akw Medi-Care Limited","178400","27/07/2021",30026962,355.13,0,"Purchases","Mobility Disability Equipment Suppliers","II","BACS","None",2021-06-30 00:00:00,"2021","04","1940446","I01001","Stocks","2591","Purchases"
"GUILDFORD BOROUGH COUNCIL","Lead Specialist - HR","Comensura Ltd","324350","27/07/2021",30026963,25829.28,0,"Consultancy","Other Recruitment Agencies And Service Providers","II","BACS","None",2021-07-04 00:00:00,"2021","04","1069298","G2555","HR Services","D6001","Consultancy"
"GUILDFORD BOROUGH COUNCIL","Vehicle Maintenance","Charters Of Aldershot Limited","128600","29/07/2021",30026964,21.36,0,"Repair And Maintenance Of Vehicles","Third Party Supplier","II","BACS","None",2021-07-06 00:00:00,"2021","04","10252102","K5551","Fleet Workshops","C1002","Repair And Maintenance Of Vehicles"
"GUILDFORD BOROUGH COUNCIL","Inventories","Chambers Waste Management Plc","127500","20/07/2021",30026965,500,0,"Purchases","Other Waste Disposal Suppliers","II","BACS","None",2021-06-27 00:00:00,"2021","04","P487145","I01001","Stocks","2591","Purchases"
"GUILDFORD BOROUGH COUNCIL","Major Projects","Network Rail Infrastructure Ltd","144690","27/07/2021",30026966,5803,0,"Consultancy","Rail Companies","II","BACS","None",2021-07-01 00:00:00,"2021","04","1282901","F5530","Major Projects","D6001","Consultancy"
"GUILDFORD BOROUGH COUNCIL","Leisure Management Contract","Fitzgerald Building Services Ltd","824480","08/07/2021",30026967,180,0,"Asset Maintenance","General Builders","II","BACS","None",2021-07-02 00:00:00,"2021","04","2117","A7550","Lido","B1001","Asset Maintenance"
"GUILDFORD BOROUGH COUNCIL","Homelessness Support","London Croydon Ltd","1000383","27/07/2021",30026968,2100,0,"Emergency Accomodation","","II","BACS","None",2021-06-30 00:00:00,"2021","04","IBC38","C3311","Homelessness","D8009","Emergency Accomodation"
"GUILDFORD BOROUGH COUNCIL","Millmead House","Berendsen Workwear Ltd T/A Elis","817300","27/07/2021",30026969,401.65,0,"Materials","Linen And Blanket Suppliers","II","BACS","None",2021-07-01 00:00:00,"2021","04","SN3390558","G7511","Millmead House","D2003","Materials"
"GUILDFORD BOROUGH COUNCIL","Resources Caseworker","Berendsen Workwear Ltd T/A Elis","817300","27/07/2021",30026969,401.65,0,"Materials","Linen And Blanket Suppliers","II","BACS","None",2021-07-01 00:00:00,"2021","04","SN3390558","G7511","Millmead House","D2003","Materials"
"GUILDFORD BOROUGH COUNCIL","Vehicle Maintenance","Motormech Gfd Ltd","418700","29/07/2021",30026970,40,0,"Vehicle Operating Costs","Car And Van Parts Suppliers","II","BACS","None",2021-07-06 00:00:00,"2021","04","291474","K5551","Fleet Workshops","C1001","Vehicle Operating Costs"
"GUILDFORD BOROUGH COUNCIL","Other Short Term Debtors","Ethical Lettings Cic (Pound Lane)","971400","08/07/2021",30026971,1096,0,"Cash Paid","","II","BACS","None",2021-07-05 00:00:00,"2021","04","2769","J01064","Housing H4U Scheme","2175","Cash Paid"
"GUILDFORD BOROUGH COUNCIL","Other Short Term Debtors","Ethical Lettings Cic (Pound Lane)","971400","08/07/2021",30026971,1073.17,0,"Cash Paid","","II","BACS","None",2021-07-05 00:00:00,"2021","04","2769","J01064","Housing H4U Scheme","2175","Cash Paid"
"GUILDFORD BOROUGH COUNCIL","Other Short Term Debtors","Ethical Lettings Cic (Pound Lane)","971400","08/07/2021",30026971,2926.83,0,"Cash Paid","","II","BACS","None",2021-07-05 00:00:00,"2021","04","2769","J01064","Housing H4U Scheme","2175","Cash Paid"
"GUILDFORD BOROUGH COUNCIL","Property","Fitzgerald Building Services Ltd","824480","08/07/2021",30026972,200,0,"Contractor Payments","General Builders","II","BACS","None",2021-07-02 00:00:00,"2021","04","2116","P74077","2 THE BILLINGS VOID WORKS","1233","Contractor Payments"
"GUILDFORD BOROUGH COUNCIL","Property","Fitzgerald Building Services Ltd","824480","08/07/2021",30026972,350,0,"Contractor Payments","General Builders","II","BACS","None",2021-07-02 00:00:00,"2021","04","2116","P74077","2 THE BILLINGS VOID WORKS","1233","Contractor Payments"
"GUILDFORD BOROUGH COUNCIL","Countryside and Parks Services","SMI Group Ltd","792570","29/07/2021",30026973,5.19,0,"Clothing & Uniform","Personal Protective Equipment (Ppe) Suppliers","II","BACS","None",2021-07-05 00:00:00,"2021","04","INV902104","A1960","Guildford In Bloom","D4001","Clothing & Uniform"
"GUILDFORD BOROUGH COUNCIL","Parks Countryside Management","SMI Group Ltd","792570","29/07/2021",30026973,5.19,0,"Clothing & Uniform","Personal Protective Equipment (Ppe) Suppliers","II","BACS","None",2021-07-05 00:00:00,"2021","04","INV902104","A1960","Guildford In Bloom","D4001","Clothing & Uniform"
"GUILDFORD BOROUGH COUNCIL","Countryside and Parks Services","SMI Group Ltd","792570","29/07/2021",30026973,828.5,0,"Clothing & Uniform","Personal Protective Equipment (Ppe) Suppliers","II","BACS","None",2021-07-05 00:00:00,"2021","04","INV902104","A1100","Horticulture","D4001","Clothing & Uniform"
"GUILDFORD BOROUGH COUNCIL","Responsive & Planned Maintenance","F & G Cleaners Ltd","959080","20/07/2021",30026974,431,0,"Cleaning Contractors","","II","BACS","None",2021-06-26 00:00:00,"2021","04","58517","M5113","Repairs-Responsive (BHS)","D6006","Cleaning Contractors"
"GUILDFORD BOROUGH COUNCIL","Miscellaneous Expenses","Lexicon School Ltd","1000454","13/07/2021",30026975,1500,0,"Grants And Subscriptions","","II","BACS","None",2021-06-20 00:00:00,"2021","04","050721_5","F7539","COVID-19","D9001","Grants And Subscriptions"
"GUILDFORD BOROUGH COUNCIL","Countryside and Parks Services","C Brewer & Sons Limited","115700","08/07/2021",30026976,61.75,0,"Materials","Decorating Materials Suppliers","II","BACS","None",2021-03-25 00:00:00,"2021","04","GFB/308456","A1100","Horticulture","D2003","Materials"
"GUILDFORD BOROUGH COUNCIL","Miscellaneous Expenses","Chambers Waste Management Plc","127500","20/07/2021",30026977,99,0,"Materials","Other Waste Disposal Suppliers","II","BACS","None",2021-06-27 00:00:00,"2021","04","P486829","F7539","COVID-19","D2003","Materials"
"GUILDFORD BOROUGH COUNCIL","Homelessness Support","London Clapham South Ltd","996170","27/07/2021",30026978,945,0,"Emergency Accomodation","","II","BACS","None",2021-06-30 00:00:00,"2021","04","B2201","C3311","Homelessness","D8009","Emergency Accomodation"
"GUILDFORD BOROUGH COUNCIL","Executive - Miscellaneous","The Oyster Partnership Ltd","814220","27/07/2021",30026979,1450,0,"Agency Staff","Other Recruitment Agencies And Service Providers","II","BACS","None",2021-06-30 00:00:00,"2021","04","1098465","P79023","Guild Town Centre Regeneration","1222","Agency Staff"
"GUILDFORD BOROUGH COUNCIL","Major Projects","The Oyster Partnership Ltd","814220","27/07/2021",30026979,435,0,"Agency","Other Recruitment Agencies And Service Providers","II","BACS","None",2021-06-30 00:00:00,"2021","04","1098465","F5530","Major Projects","A5191","Agency"
"GUILDFORD BOROUGH COUNCIL","Major Projects","The Oyster Partnership Ltd","814220","27/07/2021",30026979,1015,0,"Agency","Other Recruitment Agencies And Service Providers","II","BACS","None",2021-06-30 00:00:00,"2021","04","1098465","F5530","Major Projects","A5191","Agency"
"GUILDFORD BOROUGH COUNCIL","Miscellaneous Expenses","Fidelis Security Limited","200000","27/07/2021",30026980,303.5,0,"Services","Security Guards","II","BACS","None",2021-06-30 00:00:00,"2021","04","10947","F7539","COVID-19","D6004","Services"
"GUILDFORD BOROUGH COUNCIL","Building Maintenance","Chambers Waste Management Plc","127500","27/07/2021",30026981,788.09,0,"Materials","Other Waste Disposal Suppliers","II","BACS","None",2021-06-30 00:00:00,"2021","04","P487685","K1515","Building Maintenance","D2003","Materials"
"GUILDFORD BOROUGH COUNCIL","Miscellaneous Expenses","Fidelis Security Limited","200000","27/07/2021",30026982,664.28,0,"Services","Security Guards","II","BACS","None",2021-06-30 00:00:00,"2021","04","10952","F7539","COVID-19","D6004","Services"
"GUILDFORD BOROUGH COUNCIL","Guildford Museum","C Brewer & Sons Limited","115700","27/07/2021",30026983,-49.54,0,"Specialist Services","Decorating Materials Suppliers","II","BACS","None",2021-05-18 00:00:00,"2021","04","GFB/809244","A5511","Museum","D6009","Specialist Services"
"GUILDFORD BOROUGH COUNCIL","Inventories","Lister Wilder Ltd","299800","27/07/2021",30026984,445,0,"Purchases","Emergency And Other Specialist Vehicle Dealers","II","BACS","None",2021-06-30 00:00:00,"2021","04","508766","I01001","Stocks","2591","Purchases"
"GUILDFORD BOROUGH COUNCIL","Woking Road Depot","Professional Construction Recruitment Limited","1000119","22/07/2021",30026985,108.75,0,"Services","","II","BACS","None",2021-06-28 00:00:00,"2021","04","137801","B4452","Woking Road Depot","D6004","Services"
"GUILDFORD BOROUGH COUNCIL","Woking Road Depot","Siemens Financial Services Limited","192880","29/07/2021",30026986,1105,0,"Hire","Other Leasing Companies","II","BACS","None",2021-07-05 00:00:00,"2021","04","244/21/0201013","B4452","Woking Road Depot","D1001","Hire"
"GUILDFORD BOROUGH COUNCIL","Guildford Museum","C Brewer & Sons Limited","115700","27/07/2021",30026987,49.54,0,"Specialist Services","Decorating Materials Suppliers","II","BACS","None",2021-05-11 00:00:00,"2021","04","GFB/310817","A5511","Museum","D6009","Specialist Services"
"GUILDFORD BOROUGH COUNCIL","Industrial Estates","Indent Design Ltd","1000048","08/07/2021",30026988,2350,0,"Consultants Fees","","II","BACS","None",2021-03-28 00:00:00,"2021","04","IN39711","P72037","Midleton Ind Est Redevelop","1221","Consultants Fees"
"GUILDFORD BOROUGH COUNCIL","Lead Specialist - ICT","Lorna Mertins Ltd","1000319","13/07/2021",30026990,5850,0,"ICT Support & Maintenance","","II","BACS","None",2021-07-06 00:00:00,"2021","04","542","G3548","ICT Technical & Infrastructure","D7003","ICT Support & Maintenance"
"GUILDFORD BOROUGH COUNCIL","Lead Specialist - ICT","Lorna Mertins Ltd","1000319","13/07/2021",30026990,6825,0,"ICT Support & Maintenance","","II","BACS","None",2021-07-06 00:00:00,"2021","04","542","G3548","ICT Technical & Infrastructure","D7003","ICT Support & Maintenance"
"GUILDFORD BOROUGH COUNCIL","Inventories","M E Duffell Ltd","510200","27/07/2021",30026992,13.26,0,"Purchases","Keys And Locksmiths","II","BACS","None",2021-07-01 00:00:00,"2021","04","I2253508","I01001","Stocks","2591","Purchases"
"GUILDFORD BOROUGH COUNCIL","Building Maintenance","Professional Construction Recruitment Limited","1000119","22/07/2021",30026993,580,0,"Services","","II","BACS","None",2021-06-28 00:00:00,"2021","04","137800","K1515","Building Maintenance","D6004","Services"
"GUILDFORD BOROUGH COUNCIL","Industrial Estates","Indent Design Ltd","1000048","08/07/2021",30026994,1750,0,"Consultants Fees","","II","BACS","None",2021-05-10 00:00:00,"2021","04","IN39756","P72037","Midleton Ind Est Redevelop","1221","Consultants Fees"
"GUILDFORD BOROUGH COUNCIL","Executive - Miscellaneous","The Oyster Partnership Ltd","814220","20/07/2021",30026995,1450,0,"Agency Staff","Other Recruitment Agencies And Service Providers","II","BACS","None",2021-06-23 00:00:00,"2021","04","1098016","P79023","Guild Town Centre Regeneration","1222","Agency Staff"
"GUILDFORD BOROUGH COUNCIL","Major Projects","The Oyster Partnership Ltd","814220","20/07/2021",30026995,435,0,"Agency","Other Recruitment Agencies And Service Providers","II","BACS","None",2021-06-23 00:00:00,"2021","04","1098016","F5530","Major Projects","A5191","Agency"
"GUILDFORD BOROUGH COUNCIL","Major Projects","The Oyster Partnership Ltd","814220","20/07/2021",30026995,1015,0,"Agency","Other Recruitment Agencies And Service Providers","II","BACS","None",2021-06-23 00:00:00,"2021","04","1098016","F5530","Major Projects","A5191","Agency"
"GUILDFORD BOROUGH COUNCIL","Inventories","Akw Medi-Care Limited","178400","27/07/2021",30026996,1056.06,0,"Purchases","Mobility Disability Equipment Suppliers","II","BACS","None",2021-06-30 00:00:00,"2021","04","1940487","I01001","Stocks","2591","Purchases"
"GUILDFORD BOROUGH COUNCIL","Business Improvement","Ignite Consulting Limited T/A Ignite","945780","27/07/2021",30026997,128892.83,0,"Consultancy","Construction Project Management Consultants","II","BACS","None",2021-06-30 00:00:00,"2021","04","2360","G3531","Future Guildford","D6001","Consultancy"
"GUILDFORD BOROUGH COUNCIL","Audit Management","Ignite Consulting Limited T/A Ignite","945780","27/07/2021",30026997,128892.83,0,"Consultancy","Construction Project Management Consultants","II","BACS","None",2021-06-30 00:00:00,"2021","04","2360","G3531","Future Guildford","D6001","Consultancy"
"GUILDFORD BOROUGH COUNCIL","Industrial Estates","Chambers Runfold Plc","127400","08/07/2021",30026998,300,0,"Asset Maintenance","Quarry And Aggregates Suppliers","II","BACS","None",2021-03-31 00:00:00,"2021","04","0000004248","B5351","Slyfield Industrial Estate","B1001","Asset Maintenance"
"GUILDFORD BOROUGH COUNCIL","Industrial Estates","Chambers Runfold Plc","127400","08/07/2021",30026998,270,0,"Asset Maintenance","Quarry And Aggregates Suppliers","II","BACS","None",2021-03-31 00:00:00,"2021","04","0000004248","B5341","Midleton Industrial Estate","B1001","Asset Maintenance"
"GUILDFORD BOROUGH COUNCIL","Emergency Communications","Tunstall Healthcare (UK) Ltd","100310","08/07/2021",30026999,1123.75,0,"Equipment","Community Alarm Suppliers","II","BACS","None",2020-07-13 00:00:00,"2021","04","3IN/10357939","C2511","Careline/Telecare","D2001","Equipment"
